date,department/service,beneficiary,amount,summary of purpose,category,transaction number,SAP vendor number
01.01.2022,ASSET MANAGEMENT,ASHFORDS LLP OFFICE ACCOUNT,"1,325.00",DISREPAIR,PAYMENTS FOR LEGAL SERVICES,5902503536,1000082695
01.01.2022,ASSET MANAGEMENT,ASHFORDS LLP OFFICE ACCOUNT,"1,325.00",DISREPAIR,PAYMENTS FOR LEGAL SERVICES,5902503537,1000082695
01.01.2022,ASSET MANAGEMENT,LONDON FIRE BRIGADE,352.00,ENG CONTRACTS (NORTH),LIFTS,5902503555,1000083629
01.01.2022,ASSET MANAGEMENT HGF,OT GROUP LIMITED,273.11,160 TOOLEY ST.,STATIONERY,5902503488,1000087285
01.01.2022,CENTRAL FUNCTIONS,BRESLIN CONSTRUCTION LTD,"1,050.00",COMMERCIAL PROPERTIES,BUILDING R&M,5902503438,1000078031
01.01.2022,CENTRAL FUNCTIONS,BRESLIN CONSTRUCTION LTD,"1,050.00",COMMERCIAL PROPERTIES,BUILDING R&M,5902503445,1000078031
01.01.2022,CENTRAL FUNCTIONS,ASHFORDS LLP OFFICE ACCOUNT,"2,451.50",TECHNICAL SUPPORT,SOLICITORS FRAMEWORK LEGAL SERVICES,5902503491,1000082695
01.01.2022,CHIEF EXECUTIVE'S OFFICE,UNIVERSITY OF THE ARTS LONDON,"7,600.00",ADDITIONAL RESTRICTIONS GRANT,GRANTS,5902503423,11042483
01.01.2022,CHIEF EXECUTIVE'S OFFICE,RICE RETAIL MARKETING LTD,"5,000.00",ADDITIONAL RESTRICTIONS GRANT,GRANTS,5902503426,1000082370
01.01.2022,CUSTOMER EXPERIENCE HGF,TYNETEC LEGRAND LTD,"1,109.21",LAMBETH RESPONSE,EQUIPMENT PURCHASE & REPAIR,5902503430,1000066068
01.01.2022,ENVIRONMENT AND LEISURE,ERECT ARCHITECTURE LTD,"1,952.00",CAPITAL PS (LEISURE),CONSTRUCTION FEES  - EXTERNAL,5902503518,1000078487
01.01.2022,ENVIRONMENT AND LEISURE,WSP UK LTD,"7,990.00",CAPITAL PS (LEISURE),"PLANT, MACHINERY & EQUIPMENT ACQUISITION",5902503392,1000054214
01.01.2022,ENVIRONMENT DIRECTORATE,FAROL LTD,599.24,ICC SPECIAL TEAMS,EQUIPMENT PURCHASE & REPAIR,5902503591,1000078940
01.01.2022,F & C S EXCLUDING CORPORATE BUDGETS,GREENCROFT CONSULTING,"9,300.00",PROJECTS,OTHER CONTRACTORS,5902503255,1000078147
01.01.2022,F & C S EXCLUDING CORPORATE BUDGETS,BDO LLP,"2,083.33",RISK ADMIN,PROFESSIONAL FEES,5902503407,1000057898
01.01.2022,HOUSING HRA,ENGIE REGENERATION  LTD,"53,000.00",CAPITAL PS (HRA),CONSTRUCTION FEES  - EXTERNAL,5902503213,1000013358
01.01.2022,HOUSING HRA,MAX FORDHAM LLP,"4,017.25",CAPITAL PS (HRA),CONSTRUCTION FEES  - EXTERNAL,5902503171,1000082810
01.01.2022,HOUSING HRA,KARAKUSEVIC CARSON ARCHITECTS,"232,429.00",CAPITAL PS (HRA),CONSTRUCTION FEES - ARCHITECT,5902503592,1000055150
01.01.2022,HOUSING HRA,GIBSON THORNLEY ARCHITECTS LTD,"6,751.72",CAPITAL PS (HRA),CONSTRUCTION FEES - ARCHITECT,5902503380,1000079298
01.01.2022,HOUSING HRA,GIBSON THORNLEY ARCHITECTS LTD,"11,621.98",CAPITAL PS (HRA),CONSTRUCTION FEES - ARCHITECT,5902503381,1000079298
01.01.2022,HOUSING HRA,GATTI ROUTH RHODES LTD,"4,978.70",CAPITAL PS (HRA),CONSTRUCTION FEES - ARCHITECT,5902503378,1000086968
01.01.2022,HOUSING HRA,GATTI ROUTH RHODES LTD,"5,028.25",CAPITAL PS (HRA),CONSTRUCTION FEES - ARCHITECT,5902503378,1000086968
01.01.2022,HOUSING HRA,GATTI ROUTH RHODES LTD,"9,115.30",CAPITAL PS (HRA),CONSTRUCTION FEES - ARCHITECT,5902503377,1000086968
01.01.2022,HOUSING HRA,GATTI ROUTH RHODES LTD,"14,174.50",CAPITAL PS (HRA),CONSTRUCTION FEES - ARCHITECT,5902503379,1000086968
01.01.2022,HOUSING HRA,PPCP LIMITED,592.50,CAPITAL PS (HRA),CONSTRUCTION FEES - ENGINEER,5902503334,1000087648
01.01.2022,PLANNING AND TRANSPORT,CALFORD SEADEN LLP,"2,545.13",OKR MASTER PLANNING,MARKETING & PUBLICITY SERVICES,5902503421,1061592
01.01.2022,PLANNING AND TRANSPORT,GVA GRIMLEY LTD T/A AVISON YOUNG,"25,475.00",STRATEGIC APPLICATIONS,PROFESSIONAL FEES,5902503572,1000016057
01.01.2022,RESIDENT SERVICES HGF,MAIER LANG LIMITED,"31,022.00",NIGHTLY TA (NSC),EXTERNAL AGENCIES AND BODIES,5902503546,1000084930
01.01.2022,RESIDENT SERVICES HGF,SOLACE WOMEN'S AID,"11,250.00",RAPID REHOUSING,PROFESSIONAL FEES,5902503581,1000057231
01.01.2022,RESIDENT SERVICES HGF,SOLACE WOMEN'S AID,"45,000.00",RAPID REHOUSING,PROFESSIONAL FEES,5902503578,1000057231
02.01.2022,CHIEF EXECUTIVE,METIS CONSULTANTS LIMITED,417.85,CAPITAL PS (REGEN),CONSTRUCTION FEES  - EXTERNAL,5902503587,1000086330
02.01.2022,CHIEF EXECUTIVE,METIS CONSULTANTS LIMITED,813.15,CAPITAL PS (REGEN),CONSTRUCTION FEES  - EXTERNAL,5902503587,1000086330
02.01.2022,CHIEF EXECUTIVE,METIS CONSULTANTS LIMITED,"1,658.20",CAPITAL PS (REGEN),CONSTRUCTION FEES  - EXTERNAL,5902503588,1000086330
02.01.2022,CHIEF EXECUTIVE,METIS CONSULTANTS LIMITED,"3,920.40",CAPITAL PS (REGEN),CONSTRUCTION FEES  - EXTERNAL,5902503590,1000086330
02.01.2022,CHILDREN AND FAMILIES,REDACTED PERSONAL DATA,260.00,ADOPTION SUPP FUND,PROFESSIONAL FEES,REDACTED,REDACTED
02.01.2022,DSG,ROCKINGHAM COMMUNITY NURSERY,"19,047.60",NURSERY ED GRANT 3 AND 4 YR OLDS,GRANTS,2103363433,1095826
02.01.2022,DSG,TRINITY CHILD CARE,"11,238.83",NURSERY ED GRANT 3 AND 4 YR OLDS,GRANTS,2103363449,1151305
02.01.2022,DSG,S R C COMMUNITY NURSERY,"21,868.28",NURSERY ED GRANT 3 AND 4 YR OLDS,GRANTS,2103363441,1414681
02.01.2022,DSG,PLAYSHACK PLAYGROUP,"5,615.03",NURSERY ED GRANT 3 AND 4 YR OLDS,GRANTS,2103363428,1608859
02.01.2022,DSG,ROCKINGHAM PRE-SCHOOL,"1,799.85",NURSERY ED GRANT 3 AND 4 YR OLDS,GRANTS,2103363434,11002695
02.01.2022,DSG,PUDDLEDUCK NURSERY,"15,673.28",NURSERY ED GRANT 3 AND 4 YR OLDS,GRANTS,2103363430,11210722
02.01.2022,DSG,PLAYDAYS UK LTD,"12,711.98",NURSERY ED GRANT 3 AND 4 YR OLDS,GRANTS,2103363438,11210767
02.01.2022,DSG,THE BEECHES NURSERY GROUP LTD,"14,555.78",NURSERY ED GRANT 3 AND 4 YR OLDS,GRANTS,2103363386,11215743
02.01.2022,DSG,HALFMOON MONTESSORI NURSERY,"12,063.64",NURSERY ED GRANT 3 AND 4 YR OLDS,GRANTS,2103363396,11219161
02.01.2022,DSG,HERMAN WHYTE T/A LITTLE CLIMBERS DAYCARE PROJECT,"6,476.93",NURSERY ED GRANT 3 AND 4 YR OLDS,GRANTS,2103363410,11230367
02.01.2022,DSG,KINGS COLLEGE NHS FOUNDATION TRUST,"9,297.60",NURSERY ED GRANT 3 AND 4 YR OLDS,GRANTS,2103363404,11255665
02.01.2022,DSG,BRIGHT HORIZONS FAMILY SOLUTIONS,"8,930.68",NURSERY ED GRANT 3 AND 4 YR OLDS,GRANTS,2103363426,11294322
02.01.2022,DSG,CEDAR HOUSE DAY NURSERY,"6,392.10",NURSERY ED GRANT 3 AND 4 YR OLDS,GRANTS,2103363373,11298694
02.01.2022,DSG,ELEPHANT & CASTLE DAY NURSERY LTD,"20,677.80",NURSERY ED GRANT 3 AND 4 YR OLDS,GRANTS,2103363383,11329999
02.01.2022,DSG,MIATA EDUCATIONAL SERVICES LTD,"11,465.03",NURSERY ED GRANT 3 AND 4 YR OLDS,GRANTS,2103363381,1000003741
02.01.2022,DSG,THE VILLA SCHOOL & NURSERY LTD,"55,785.60",NURSERY ED GRANT 3 AND 4 YR OLDS,GRANTS,2103363448,1000003742
02.01.2022,DSG,HALFPINTS PRE-SCHOOL,"7,259.07",NURSERY ED GRANT 3 AND 4 YR OLDS,GRANTS,2103363397,1000012294
02.01.2022,DSG,LITTLE ACORNS DAY NURSERY,"35,488.05",NURSERY ED GRANT 3 AND 4 YR OLDS,GRANTS,2103363407,1000015844
02.01.2022,DSG,CRYSTAL NURSERY (UK),"5,973.60",NURSERY ED GRANT 3 AND 4 YR OLDS,GRANTS,2103363394,1000016621
02.01.2022,DSG,MOTHER GOOSE NURSERIES T/A MOTHER GOOSE,"15,328.73",NURSERY ED GRANT 3 AND 4 YR OLDS,GRANTS,2103363421,1000017311
02.01.2022,DSG,MOTHER GOOSE NURSERIES - GREENDALE FIELDS LTD,"15,911.68",NURSERY ED GRANT 3 AND 4 YR OLDS,GRANTS,2103363420,1000025888
02.01.2022,DSG,BASCULE LTD,"9,354.15",NURSERY ED GRANT 3 AND 4 YR OLDS,GRANTS,2103363424,1000037268
02.01.2022,DSG,FOUNTAIN CHILDRENS CENTRE LIMITED,"8,970.98",NURSERY ED GRANT 3 AND 4 YR OLDS,GRANTS,2103363387,1000042265
02.01.2022,DSG,MAGIC ROUNDABOUT NURSERIES LTD,"20,814.30",NURSERY ED GRANT 3 AND 4 YR OLDS,GRANTS,2103363417,1000045128
02.01.2022,DSG,NICKI DAY NURSERY LTD,"13,601.18",NURSERY ED GRANT 3 AND 4 YR OLDS,GRANTS,2103363425,1000045363
02.01.2022,DSG,ARC COMMUNITY TRUSTEES,"6,839.10",NURSERY ED GRANT 3 AND 4 YR OLDS,GRANTS,2103363360,1000046206
02.01.2022,DSG,THE BOSCO CENTRE,"6,505.20",NURSERY ED GRANT 3 AND 4 YR OLDS,GRANTS,2103363366,1000046317
02.01.2022,DSG,1ST PLACE CHILDREN & PARENTS CENTRE,"18,915.90",NURSERY ED GRANT 3 AND 4 YR OLDS,GRANTS,2103363355,1000049952
02.01.2022,DSG,1ST PLACE CHILDREN & PARENTS CENTRE,"29,319.15",NURSERY ED GRANT 3 AND 4 YR OLDS,GRANTS,2103363354,1000049952
02.01.2022,DSG,1ST PLACE CHILDREN & PARENTS CENTRE,"39,290.70",NURSERY ED GRANT 3 AND 4 YR OLDS,GRANTS,2103363356,1000049952
02.01.2022,DSG,CAMBERWELL AFTER SCHOOL PROJECT,"3,599.70",NURSERY ED GRANT 3 AND 4 YR OLDS,GRANTS,2103363372,1000051625
02.01.2022,DSG,VEVIENNE CAMPBELL,"1,072.80",NURSERY ED GRANT 3 AND 4 YR OLDS,GRANTS,2103366240,1000053391
02.01.2022,DSG,JULIE THOMPSON,"11,854.44",NURSERY ED GRANT 3 AND 4 YR OLDS,GRANTS,2103363365,1000054116
02.01.2022,DSG,OLUYEMISI EKAGHA SHALOM - DESTINY DAY NURSERY,"4,126.20",NURSERY ED GRANT 3 AND 4 YR OLDS,GRANTS,2103363437,1000054464
02.01.2022,DSG,GERMAN KINDERGARTEN LTD,"8,135.40",NURSERY ED GRANT 3 AND 4 YR OLDS,GRANTS,2103363389,1000058090
02.01.2022,DSG,GERMAN KINDERGARTEN LTD,"8,537.70",NURSERY ED GRANT 3 AND 4 YR OLDS,GRANTS,2103363390,1000058090
02.01.2022,DSG,VICTORY IN COMMUNITY RESOURCE CENTRE,"14,781.98",NURSERY ED GRANT 3 AND 4 YR OLDS,GRANTS,2103363451,1000058383
02.01.2022,DSG,TINU ODEKU T/A LITTLE ANGELS CHILDCARE SERVICES,"4,733.63",NURSERY ED GRANT 3 AND 4 YR OLDS,GRANTS,2103363408,1000058464
02.01.2022,DSG,AZARMINDOKHT AALAMANI,"10,459.80",NURSERY ED GRANT 3 AND 4 YR OLDS,GRANTS,2103363361,1000059329
02.01.2022,DSG,ARK SCHOOLS T/A GLOBE ACADEMY,"16,092.00",NURSERY ED GRANT 3 AND 4 YR OLDS,GRANTS,2103363391,1000060008
02.01.2022,DSG,SUCCESS ASSOCIATES,"14,920.65",NURSERY ED GRANT 3 AND 4 YR OLDS,GRANTS,2103363405,1000060300
02.01.2022,DSG,EXCEL CHILD CARE SERVICES LTD,"18,831.08",NURSERY ED GRANT 3 AND 4 YR OLDS,GRANTS,2103363385,1000060429
02.01.2022,DSG,DIONNE CAMPBELL,"2,197.80",NURSERY ED GRANT 3 AND 4 YR OLDS,GRANTS,2103366232,1000061532
02.01.2022,DSG,MINI TREASURES NURSERY,"6,561.75",NURSERY ED GRANT 3 AND 4 YR OLDS,GRANTS,2103363419,1000062250
02.01.2022,DSG,MINI TREASURES NURSERY,"27,183.00",NURSERY ED GRANT 3 AND 4 YR OLDS,GRANTS,2103363418,1000062250
02.01.2022,DSG,CTY NURSERY LTD,"13,151.78",NURSERY ED GRANT 3 AND 4 YR OLDS,GRANTS,2103363376,1000063131
02.01.2022,DSG,K & O CHILDCARE LTD,"8,305.05",NURSERY ED GRANT 3 AND 4 YR OLDS,GRANTS,2103363403,1000065113
02.01.2022,DSG,UMU AMINATA KABIA,536.40,NURSERY ED GRANT 3 AND 4 YR OLDS,GRANTS,2103366239,1000066088
02.01.2022,DSG,SURE AND FIRM FOUNDATIONS,"11,622.00",NURSERY ED GRANT 3 AND 4 YR OLDS,GRANTS,2103363423,1000066223
02.01.2022,DSG,LITTLE JUNGLE NURSERY LIMITED,"19,176.30",NURSERY ED GRANT 3 AND 4 YR OLDS,GRANTS,2103363412,1000067064
02.01.2022,DSG,SANDRA LITCHMORE,"10,288.28",NURSERY ED GRANT 3 AND 4 YR OLDS,GRANTS,2103363384,1000067981
02.01.2022,DSG,GOOSE GREEN PRIMARY AND NURSERY SCHOOL,"14,974.50",NURSERY ED GRANT 3 AND 4 YR OLDS,GRANTS,2103363393,1000070613
02.01.2022,DSG,PIPLINGS NURSERY ED,"6,973.20",NURSERY ED GRANT 3 AND 4 YR OLDS,GRANTS,2103363427,1000070644
02.01.2022,DSG,UNDER THE WILLOW NURSERY,"5,229.90",NURSERY ED GRANT 3 AND 4 YR OLDS,GRANTS,2103363450,1000071830
02.01.2022,DSG,UNDER THE WILLOW NURSERY,"8,700.08",NURSERY ED GRANT 3 AND 4 YR OLDS,GRANTS,2103363436,1000071830
02.01.2022,DSG,THE FRUIT TREE DAY NURSERY,"21,019.20",NURSERY ED GRANT 3 AND 4 YR OLDS,GRANTS,2103363447,1000072492
02.01.2022,DSG,GODS GRACE DAYCARE,"4,180.80",NURSERY ED GRANT 3 AND 4 YR OLDS,GRANTS,2103363392,1000072790
02.01.2022,DSG,LITTLE FINGERS MONTESSORI 2,"11,040.90",NURSERY ED GRANT 3 AND 4 YR OLDS,GRANTS,2103363411,1000073415
02.01.2022,DSG,LOGICOUS LTD,"25,270.05",NURSERY ED GRANT 3 AND 4 YR OLDS,GRANTS,2103363362,1000073852
02.01.2022,DSG,BRIGHT EXPLORERS DAY NURSERY,"14,200.88",NURSERY ED GRANT 3 AND 4 YR OLDS,GRANTS,2103363367,1000074268
02.01.2022,DSG,SMART KIDS DAY NURSERY,"13,534.95",NURSERY ED GRANT 3 AND 4 YR OLDS,GRANTS,2103363439,1000074580
02.01.2022,DSG,PATRICIA IBIRONKE T/A JOYFUL STAR NURSERY,"7,837.05",NURSERY ED GRANT 3 AND 4 YR OLDS,GRANTS,2103363402,1000074638
02.01.2022,DSG,JOY ALLI,"5,371.28",NURSERY ED GRANT 3 AND 4 YR OLDS,GRANTS,2103363435,1000074965
02.01.2022,DSG,STEPHANIE BANTON,"4,343.40",NURSERY ED GRANT 3 AND 4 YR OLDS,GRANTS,2103366238,1000075038
02.01.2022,DSG,FIRST CHOICE DAY NURSERY,"9,608.63",NURSERY ED GRANT 3 AND 4 YR OLDS,GRANTS,2103363353,1000075368
02.01.2022,DSG,ANGEL OAK ACADEMY,"4,262.10",NURSERY ED GRANT 3 AND 4 YR OLDS,GRANTS,2103363359,1000075379
02.01.2022,DSG,HEAVENLY ANGELS LTD T/A BANANA MOON DAY NURSERY,"16,366.05",NURSERY ED GRANT 3 AND 4 YR OLDS,GRANTS,2103363363,1000076197
02.01.2022,DSG,EAST DULWICH GROVE NURSERY LTD,"19,797.53",NURSERY ED GRANT 3 AND 4 YR OLDS,GRANTS,2103363382,1000077140
02.01.2022,DSG,LONDON EARLY YEARS FOUNDATION,"15,831.08",NURSERY ED GRANT 3 AND 4 YR OLDS,GRANTS,2103363440,1000077919
02.01.2022,DSG,LONDON EARLY YEARS FOUNDATION,"22,795.35",NURSERY ED GRANT 3 AND 4 YR OLDS,GRANTS,2103363364,1000077919
02.01.2022,DSG,LONDON EARLY YEARS FOUNDATION,"23,244.00",NURSERY ED GRANT 3 AND 4 YR OLDS,GRANTS,2103363371,1000077919
02.01.2022,DSG,LONDON EARLY YEARS FOUNDATION,"29,055.00",NURSERY ED GRANT 3 AND 4 YR OLDS,GRANTS,2103363395,1000077919
02.01.2022,DSG,LONDON EARLY YEARS FOUNDATION,"32,039.40",NURSERY ED GRANT 3 AND 4 YR OLDS,GRANTS,2103363369,1000077919
02.01.2022,DSG,LILIES DAY NURSERY,"1,117.43",NURSERY ED GRANT 3 AND 4 YR OLDS,GRANTS,2103363406,1000078155
02.01.2022,DSG,MARIA TOVERLJANI,"2,682.00",NURSERY ED GRANT 3 AND 4 YR OLDS,GRANTS,2103366234,1000078601
02.01.2022,DSG,EAGLES FLIGHT MONTESSORI NURSERY,"2,352.68",NURSERY ED GRANT 3 AND 4 YR OLDS,GRANTS,2103363380,1000079087
02.01.2022,DSG,MAUREEN GARVIS,357.60,NURSERY ED GRANT 3 AND 4 YR OLDS,GRANTS,2103366235,1000079199
02.01.2022,DSG,LITTLEPIPS PRESCHOOL,"5,952.38",NURSERY ED GRANT 3 AND 4 YR OLDS,GRANTS,2103363414,1000079580
02.01.2022,DSG,NICOLE REYNOLDS,536.40,NURSERY ED GRANT 3 AND 4 YR OLDS,GRANTS,2103366236,1000079725
02.01.2022,DSG,POPPYS DAY NURSERY,"8,352.68",NURSERY ED GRANT 3 AND 4 YR OLDS,GRANTS,2103363429,1000080085
02.01.2022,DSG,BRIGHT SOJOURNER NURSERY LTD,"22,973.93",NURSERY ED GRANT 3 AND 4 YR OLDS,GRANTS,2103363368,1000080155
02.01.2022,DSG,BUTTERFLY LANE NURSERY LTD,"8,886.15",NURSERY ED GRANT 3 AND 4 YR OLDS,GRANTS,2103363370,1000080549
02.01.2022,DSG,KATI VALL,"1,072.80",NURSERY ED GRANT 3 AND 4 YR OLDS,GRANTS,2103366233,1000080821
02.01.2022,DSG,SUNSHINE FRUITS NURSERY LTD,"11,040.90",NURSERY ED GRANT 3 AND 4 YR OLDS,GRANTS,2103363445,1000081059
02.01.2022,DSG,PERNILLE SCHULZ,"1,635.30",NURSERY ED GRANT 3 AND 4 YR OLDS,GRANTS,2103366237,1000081650
02.01.2022,DSG,LITTLE BEARS 4 LMITED T/A LITTLE BEARS IN ELEPHANT CENTRE,"10,488.08",NURSERY ED GRANT 3 AND 4 YR OLDS,GRANTS,2103363409,1000082505
02.01.2022,DSG,LITTLE ME CANADA WATER LTD,"37,303.13",NURSERY ED GRANT 3 AND 4 YR OLDS,GRANTS,2103363413,1000083348
02.01.2022,DSG,SUNHILL DAYCARE (EUROPE) LIMITED,"14,668.88",NURSERY ED GRANT 3 AND 4 YR OLDS,GRANTS,2103363444,1000083945
02.01.2022,DSG,LITTLE RABBIT DAY NURSERY,"23,115.30",NURSERY ED GRANT 3 AND 4 YR OLDS,GRANTS,2103363415,1000084320
02.01.2022,DSG,AVRIL COLE,536.40,NURSERY ED GRANT 3 AND 4 YR OLDS,GRANTS,2103366231,1000084840
02.01.2022,DSG,COLOURBOX CHILDCARE NURSERY LTD,"1,119.00",NURSERY ED GRANT 3 AND 4 YR OLDS,GRANTS,2103363375,1000085180
02.01.2022,DSG,GALAXY EXPLORERS DAY NURSERY LIMITED,"13,247.00",NURSERY ED GRANT 3 AND 4 YR OLDS,GRANTS,2103363388,1000085260
02.01.2022,DSG,ABC STUDIOS CHILDCARE,"1,570.53",NURSERY ED GRANT 3 AND 4 YR OLDS,GRANTS,2103363357,1000085422
02.01.2022,DSG,PURPLE JAY EAST DULWICH LTD,"5,039.08",NURSERY ED GRANT 3 AND 4 YR OLDS,GRANTS,2103363431,1000086696
02.01.2022,DSG,HATCHING DRAGONS SOUTHWARK LTD,"5,827.25",NURSERY ED GRANT 3 AND 4 YR OLDS,GRANTS,2103363399,1000087180
02.01.2022,DSG,DULWICH VILLAGE PRE-SCHOOL,"7,961.07",NURSERY ED GRANT 3 AND 4 YR OLDS,GRANTS,2103363379,11171932
02.01.2022,DSG,MUSTARD SEED PRE-SCHOOL,"10,477.68",NURSERY ED GRANT 3 AND 4 YR OLDS,GRANTS,2103363422,11210829
02.01.2022,DSG,ST JOHNS PRE SCHOOL,"8,136.15",NURSERY ED GRANT 3 AND 4 YR OLDS,GRANTS,2103363442,1000013380
02.01.2022,DSG,ALLEYNS JUNIOR SCHOOL,"11,622.00",NURSERY ED GRANT 3 AND 4 YR OLDS,GRANTS,2103363358,1000020848
02.01.2022,DSG,DULWICH MONTESSORI NURSERY SCHOOL,"20,211.68",NURSERY ED GRANT 3 AND 4 YR OLDS,GRANTS,2103363377,1000020859
02.01.2022,DSG,REDRIFF PRIMARY SCHOOL,"43,001.40",NURSERY ED GRANT 3 AND 4 YR OLDS,GRANTS,2103363432,1000067877
02.01.2022,DSG,HARRIS PRIMARY ACADEMY PECKHAM PARK,"8,243.10",NURSERY ED GRANT 3 AND 4 YR OLDS,GRANTS,2103363398,1000068029
02.01.2022,DSG,DULWICH OAKS MONTESSORI NURSERY SCHOOL,"52,693.35",NURSERY ED GRANT 3 AND 4 YR OLDS,GRANTS,2103363378,1000070726
02.01.2022,DSG,JOHN DONNE PRIMARY SCHOOL,"24,272.10",NURSERY ED GRANT 3 AND 4 YR OLDS,GRANTS,2103363400,1000073253
02.01.2022,DSG,ST PAULS C OF E PRIMARY SCHOOL,"11,040.90",NURSERY ED GRANT 3 AND 4 YR OLDS,GRANTS,2103363443,1000082314
02.01.2022,DSG,JOHN KEATS PRIMARY SCHOOL,"17,343.60",NURSERY ED GRANT 3 AND 4 YR OLDS,GRANTS,2103363401,1000082645
02.01.2022,DSG,SURREY SQUARE PRIMARY SCHOOL,"29,252.93",NURSERY ED GRANT 3 AND 4 YR OLDS,GRANTS,2103363446,1000082648
02.01.2022,DSG,CHARLES DICKENS PRIMARY SCHOOL,"28,119.00",NURSERY ED GRANT 3 AND 4 YR OLDS,GRANTS,2103363374,1000085158
02.01.2022,DSG,CHARTER SCHOOLS EDUCATIONAL TRUST T/A LYNDHURST PRIMARY SCHOOL,"31,379.40",NURSERY ED GRANT 3 AND 4 YR OLDS,GRANTS,2103363416,1000086766
02.01.2022,HOUSING HRA,ROBINSON LOW FRANCIS LLP,985.00,CAPITAL PS (HRA),CONSTRUCTION FEES - EMPLOYERS AGENT,5902503549,1000025405
02.01.2022,HOUSING HRA,SIMLAW ECOLOGY LIMITED,"1,705.00",CAPITAL PS (REGEN),CONSTRUCTION FEES  - EXTERNAL,5902503420,1000081042
02.01.2022,HOUSING HRA,STEPHEN TAYLOR ARCHITECTS LTD,425.00,CAPITAL PS (REGEN),CONSTRUCTION FEES  - EXTERNAL,5902503416,1000083590
02.01.2022,HOUSING HRA,STEPHEN TAYLOR ARCHITECTS LTD,"7,005.00",CAPITAL PS (REGEN),CONSTRUCTION FEES  - EXTERNAL,5902503414,1000083590
02.01.2022,LEISURE DIRECTORATE,C S G (USHERS) LTD,"2,486.50",TREES PRINCIPAL ROADS,TREE MAINTENANCE,5902503543,1000073203
02.01.2022,LEISURE DIRECTORATE,C S G (USHERS) LTD,"3,379.50",TREES PRINCIPAL ROADS,TREE MAINTENANCE,5902503544,1000073203
02.01.2022,LEISURE DIRECTORATE,C S G (USHERS) LTD,"21,395.50",TREES PRINCIPAL ROADS,TREE MAINTENANCE,5902503547,1000073203
02.01.2022,PUBLIC HEALTH,"CHRIST APOSTOLIC CHURCH, SURREY DOC","2,340.00",PLACE & HEALTH IMPROVEMENT,EXTERNAL AGENCIES AND BODIES,5902503425,1000051903
03.01.2022,CHIEF EXECUTIVE,PURCELL ARCHITECTURE LTD,"6,721.00",CAPITAL PS (REGEN),CONSTRUCTION FEES  - EXTERNAL,5902503577,1000082955
05.01.2022,ADULT SOCIAL CARE,REDACTED PERSONAL DATA,395.20,APPOINTEESHIPS,OTHER PAYMENTS FOR CLIENTS,REDACTED,REDACTED
05.01.2022,ADULT SOCIAL CARE,EDGE TRAINING AND CONSULTANCY LTD,550.00,ASW - PROFESSIONAL DEVELOPMENT,TRAINING,5902503704,1000057249
05.01.2022,ADULT SOCIAL CARE,SIGNIS LTD,525.00,ASW - PROFESSIONAL DEVELOPMENT,TRAINING,5902503702,1000075765
05.01.2022,ADULT SOCIAL CARE,AGE UK LEWISHAM & SOUTHWARK,"272,201.50",OLDER PEOPLES HUBS,EXTERNAL AGENCIES AND BODIES,5902503616,1507154
05.01.2022,ADULT SOCIAL CARE,BLACK ELDER GROUP SWK,-405.00,PHY LTS 65+,DAYCARE,2103335184,1000067369
05.01.2022,ADULT SOCIAL CARE,BLACK ELDER GROUP SWK,500.00,PHY LTS 65+,DAYCARE,2103367782,1000067369
05.01.2022,ADULT SOCIAL CARE,BLACK ELDER GROUP SWK,600.00,PHY LTS 65+,DAYCARE,2103367779,1000067369
05.01.2022,ADULT SOCIAL CARE,BLACK ELDER GROUP SWK,700.00,PHY LTS 65+,DAYCARE,2103367780,1000067369
05.01.2022,ADULT SOCIAL CARE,"WILMINGTON MANOR NURSING HOME, BUPA",407.43,PHY LTS 65+,NURSING PLACEMENTS FEES,2103367836,1000064678
05.01.2022,ASSET MANAGEMENT,PELLINGS LLP,"1,150.00",MAJOR REPAIRS,PROFESSIONAL FEES,5902503708,1009262
05.01.2022,ASSET MANAGEMENT,PELLINGS LLP,"1,150.00",MAJOR REPAIRS,PROFESSIONAL FEES,5902503709,1009262
05.01.2022,ASSET MANAGEMENT,PELLINGS LLP,"1,150.00",MAJOR REPAIRS,PROFESSIONAL FEES,5902503710,1009262
05.01.2022,CHIEF EXECUTIVE,RED R DESIGN,475.00,CAPITAL PS (REGEN),CONSTRUCTION FEES  - EXTERNAL,5902503607,1000035984
05.01.2022,CHIEF EXECUTIVE,LDA DESIGN CONSULTING LTD,"18,306.25",CAPITAL PS (REGEN),CONSTRUCTION FEES - ARCHITECT,5902503726,1000031830
05.01.2022,CHILDREN AND FAMILIES,RAGDOLL TRAINING AND THERAPEUTIC SERVICES LIMITED,"3,070.00",ADOPTION SUPP FUND,PROFESSIONAL FEES,5902503680,1000085096
05.01.2022,CHILDREN AND FAMILIES,ALICE MALLORIE THERAPY SERVICE,360.00,ADOPTION SUPP FUND,PROFESSIONAL FEES,5902503666,1000085491
05.01.2022,CHILDREN AND FAMILIES,ALICE MALLORIE THERAPY SERVICE,390.00,ADOPTION SUPP FUND,PROFESSIONAL FEES,5902503668,1000085491
05.01.2022,CHILDREN AND FAMILIES,C E RICHARDSON CONSULTANTS LTD,286.00,ADOPTION SUPP FUND,PROFESSIONAL FEES,5902503751,1000085808
05.01.2022,CHILDREN AND FAMILIES,INDEPENDENT BIA LTD,255.00,ADOPTION SUPP FUND,PROFESSIONAL FEES,5902503669,1000086264
05.01.2022,CHILDREN AND FAMILIES,INDEPENDENT BIA LTD,255.00,ADOPTION SUPP FUND,PROFESSIONAL FEES,5902503670,1000086264
05.01.2022,CHILDREN AND FAMILIES,REDACTED PERSONAL DATA,380.00,ADOPTION SUPP FUND,PROFESSIONAL FEES,REDACTED,REDACTED
05.01.2022,CHILDREN AND FAMILIES,REDACTED PERSONAL DATA,"1,140.00",ADOPTION SUPP FUND,PROFESSIONAL FEES,REDACTED,REDACTED
05.01.2022,CHILDREN AND FAMILIES,REDACTED PERSONAL DATA,400.00,ADOPTION SUPP FUND,PROFESSIONAL FEES,REDACTED,REDACTED
05.01.2022,CHILDREN AND FAMILIES,CORAM FAMILY,"1,264.37",ALS INTER AGENCY,EXTERNAL AGENCIES AND BODIES,5902503686,1000023579
05.01.2022,CHILDREN AND FAMILIES,BELVEDERE COMMUNITY CENTRE,420.00,CONTACT SERVICE,OTHER PAYMENTS FOR CLIENTS,5902503665,1000067094
05.01.2022,CHILDREN AND FAMILIES,BELVEDERE COMMUNITY CENTRE,420.00,CONTACT SERVICE,OTHER PAYMENTS FOR CLIENTS,5902503674,1000067094
05.01.2022,CHILDREN AND FAMILIES,NETWORK RECRUITMENT SOLUTIONS,280.00,CONTACT SERVICE,OTHER PAYMENTS FOR CLIENTS,5902503678,1000071241
05.01.2022,CHILDREN AND FAMILIES,NETWORK RECRUITMENT SOLUTIONS,315.53,CONTACT SERVICE,OTHER PAYMENTS FOR CLIENTS,5902503654,1000071241
05.01.2022,CHILDREN AND FAMILIES,NETWORK RECRUITMENT SOLUTIONS,382.20,CONTACT SERVICE,OTHER PAYMENTS FOR CLIENTS,5902503675,1000071241
05.01.2022,CHILDREN AND FAMILIES,NETWORK RECRUITMENT SOLUTIONS,"1,050.00",CONTACT SERVICE,OTHER PAYMENTS FOR CLIENTS,5902503655,1000071241
05.01.2022,CHILDREN AND FAMILIES,NETWORK RECRUITMENT SOLUTIONS,"1,050.00",CONTACT SERVICE,OTHER PAYMENTS FOR CLIENTS,5902503677,1000071241
05.01.2022,CHILDREN AND FAMILIES,AIDHOUR LIMITED,"3,185.00",DIRECTOR OF C&F,PROFESSIONAL FEES,5902503684,1000057345
05.01.2022,CHILDREN AND FAMILIES,THE BEXLEY DAY NURSERY LIMITED,335.55,P & R CARE TEAM,EXTERNAL AGENCIES AND BODIES,5902503659,1000033000
05.01.2022,CHILDREN AND FAMILIES,REDACTED PERSONAL DATA,320.00,P & R CARE TEAM,OTHER PAYMENTS FOR CLIENTS,REDACTED,REDACTED
05.01.2022,COMMUNITIES,ST FAITHS COMMUNITY CENTRE,"5,000.00",VCS GRANTS,GRANTS,5902503615,1039446
05.01.2022,COMMUNITIES,TIME & TALENTS ASSOCIATION,"4,500.00",VCS GRANTS,GRANTS,5902503617,1757632
05.01.2022,COMMUNITIES,LONDON WILDLIFE TRUST,"7,500.00",VCS GRANTS,GRANTS,5902503618,1832374
05.01.2022,COMMUNITIES,SOUTHWARK CITIZENS ADVICE,"5,600.00",VCS GRANTS,GRANTS,5902503619,1874379
05.01.2022,COMMUNITIES,SOMALI INTEGRATION & DEVELOPMENT ASSOCIATION,"14,000.00",VCS GRANTS,GRANTS,5902503620,11048946
05.01.2022,COMMUNITIES,GOLDEN OLDIES COMMUNITY CARE PROJECT,"2,500.00",VCS GRANTS,GRANTS,5902503621,11122958
05.01.2022,COMMUNITIES,BEDE HSE,"4,500.00",VCS GRANTS,GRANTS,5902503622,11248731
05.01.2022,COMMUNITIES,CAMBRIDGE HOUSE & TALBOT,"4,500.00",VCS GRANTS,GRANTS,5902503623,11248874
05.01.2022,COMMUNITIES,PECAN LTD,"6,500.00",VCS GRANTS,GRANTS,5902503625,11263114
05.01.2022,COMMUNITIES,PECAN LTD,"7,375.00",VCS GRANTS,GRANTS,5902503624,11263114
05.01.2022,COMMUNITIES,SURREY DOCKS FARM PROVIDENT SOCIETY,"10,000.00",VCS GRANTS,GRANTS,5902503626,1000000958
05.01.2022,COMMUNITIES,AAINA WOMEN GROUP,"8,018.25",VCS GRANTS,GRANTS,5902503627,1000002442
05.01.2022,COMMUNITIES,BANKSIDE OPEN SPACES TRUST,"4,208.00",VCS GRANTS,GRANTS,5902503628,1000018290
05.01.2022,COMMUNITIES,SOUTHWARK PENSIONERS CENTRE,"25,855.25",VCS GRANTS,GRANTS,5902503629,1000027831
05.01.2022,COMMUNITIES,SWK DAY CTR FOR ASYLUM SEEKERS,"11,330.25",VCS GRANTS,GRANTS,5902503630,1000040491
05.01.2022,COMMUNITIES,SOUTHWARK EVERY WOMAN'S CENTRE,"5,500.00",VCS GRANTS,GRANTS,5902503631,1000042216
05.01.2022,COMMUNITIES,FUTURE MEN,"4,125.00",VCS GRANTS,GRANTS,5902503632,1000046010
05.01.2022,COMMUNITIES,THE MANNA CENTRE,"13,750.00",VCS GRANTS,GRANTS,5902503633,1000048508
05.01.2022,COMMUNITIES,MENTAL FIGHT CLUB,"2,500.00",VCS GRANTS,GRANTS,5902503634,1000051170
05.01.2022,COMMUNITIES,CRYSTAL PALACE COMM DEV TRUST,"3,000.00",VCS GRANTS,GRANTS,5902503635,1000054200
05.01.2022,COMMUNITIES,LATIN AMERICAN DISABLED PEOPLE PROJECT,"4,625.00",VCS GRANTS,GRANTS,5902503636,1000058588
05.01.2022,COMMUNITIES,LATIN AMERICAN WOMEN'S RIGHTS SERVICES,"4,625.00",VCS GRANTS,GRANTS,5902503637,1000068356
05.01.2022,COMMUNITIES,PAXTON GREEN TIME BANK,"4,250.00",VCS GRANTS,GRANTS,5902503638,1000070648
05.01.2022,COMMUNITIES,BLACKFRIARS SETTLEMENT,"4,500.00",VCS GRANTS,GRANTS,5902503639,1000071456
05.01.2022,COMMUNITIES,PEMBROKE COLLEGE SETTLEMENT,"4,500.00",VCS GRANTS,GRANTS,5902503640,1000073444
05.01.2022,COMMUNITIES,BERMONDSEY COMMUNITY KITCHEN,"3,750.00",VCS GRANTS,GRANTS,5902503641,1000075477
05.01.2022,COMMUNITIES,THE BIKE PROJECT,"3,851.00",VCS GRANTS,GRANTS,5902503642,1000077217
05.01.2022,COMMUNITIES,SOUTHWARK TRAVELLERS' ACTION,"5,750.00",VCS GRANTS,GRANTS,5902503643,1000077795
05.01.2022,COMMUNITIES,GLOBAL GENERATION,"4,250.00",VCS GRANTS,GRANTS,5902503644,1000080135
05.01.2022,COMMUNITIES,SPRING COMMUNITY HUB,"5,250.00",VCS GRANTS,GRANTS,5902503645,1000083089
05.01.2022,COMMUNITIES,OPENING DOORS LONDON,"4,750.00",VCS GRANTS,GRANTS,5902503646,1000086261
05.01.2022,CUSTOMER EXPERIENCE HGF,FRAMA (UK) LTD,"2,000.00",CORONER'S,POSTAGES,5902503722,1000046489
05.01.2022,CUSTOMER EXPERIENCE HGF,T.M.L.E LIMITED,"1,995.00",CORONER'S,PROFESSIONAL FEES,5902503713,1000085696
05.01.2022,CUSTOMER EXPERIENCE HGF,FORENSIC PATHOLOGY SERVICES,327.65,CORONER'S,PROFESSIONAL FEES,5902503608,1000086871
05.01.2022,CUSTOMER EXPERIENCE HGF,FORENSIC PATHOLOGY SERVICES,471.90,CORONER'S,PROFESSIONAL FEES,5902503610,1000086871
05.01.2022,CUSTOMER EXPERIENCE HGF,FORENSIC PATHOLOGY SERVICES,491.90,CORONER'S,PROFESSIONAL FEES,5902503609,1000086871
05.01.2022,DSG,THE DUNRAVEN EDUCATIONAL TRUST,310.00,VIRTUAL SCHOOL PP,SCHOOLS CAPITATION,2103367838,1000072365
05.01.2022,DSG,BRADGATE EDUCATION PARTNERSHIP,343.75,VIRTUAL SCHOOL PP,SCHOOLS CAPITATION,2103367839,1000086509
05.01.2022,DSG,THE CHARTER SCHOOL EDUCATIONAL TRUST,"2,600.00",VIRTUAL SCHOOL PP,SCHOOLS CAPITATION,2103367837,1000064975
05.01.2022,DSG,DOG KENNEL HILL PRIMARY SCHOOL,600.00,VIRTUAL SCHOOL PP,SCHOOLS CAPITATION,2103367840,5001000025
05.01.2022,ENVIRONMENT AND LEISURE,ROGER MEARS ARCHITECTS LLP,"2,900.00",CAPITAL PS (LEISURE),CONSTRUCTION FEES - ARCHITECT,5902503712,1000085548
05.01.2022,ENVIRONMENT AND LEISURE,ROGER MEARS ARCHITECTS LLP,"3,281.25",CAPITAL PS (LEISURE),CONSTRUCTION FEES - ARCHITECT,5902503712,1000085548
05.01.2022,ENVIRONMENT AND LEISURE,ROGER MEARS ARCHITECTS LLP,"4,354.28",CAPITAL PS (LEISURE),CONSTRUCTION FEES - ARCHITECT,5902503712,1000085548
05.01.2022,F & C S EXCLUDING CORPORATE BUDGETS,REDACTED PERSONAL DATA,500.00,SESS,OTHER PAYMENTS FOR CLIENTS,REDACTED,REDACTED
05.01.2022,HOUSING,OCO LIMITED,"138,474.17",PAYMENTS CONTROL ACCOUNT - OCO,I-WORLD CONTRACTORS HOLDING ACCOUNT,5902503647,1006066
05.01.2022,HOUSING,SMITH & BYFORD LTD,"113,765.58",SMITH AND BYFORD,I-WORLD CONTRACTORS HOLDING ACCOUNT,5902503648,11212119
05.01.2022,HOUSING HRA,CALFORD SEADEN LLP,"7,700.00",CAPITAL PS (HRA),CONSTRUCTION FEES  - EXTERNAL,5902503706,1061592
05.01.2022,HOUSING HRA,CALFORD SEADEN LLP,"10,103.00",CAPITAL PS (HRA),CONSTRUCTION FEES  - EXTERNAL,5902503707,1061592
05.01.2022,HOUSING HRA,MICHAEL GALLIE & PARTNERS LTD,"1,975.00",CAPITAL PS (HRA),CONSTRUCTION FEES  - EXTERNAL,5902503652,1000057140
05.01.2022,HOUSING HRA,MICHAEL GALLIE & PARTNERS LTD,"5,200.00",CAPITAL PS (HRA),CONSTRUCTION FEES  - EXTERNAL,5902503652,1000057140
05.01.2022,HOUSING HRA,AIR QUALITY CONSULTANTS LTD,"2,082.50",CAPITAL PS (HRA),CONSTRUCTION FEES  - EXTERNAL,5902503699,1000067343
05.01.2022,HOUSING HRA,AIR QUALITY CONSULTANTS LTD,"2,082.50",CAPITAL PS (HRA),CONSTRUCTION FEES  - EXTERNAL,5902503701,1000067343
05.01.2022,REGENERATION,INITIAL WASHROOM HYGIENE,"1,613.46",TOWER WORKSHOPS,PREMISES CLEANING,5902503729,1644695
05.01.2022,RESIDENT SERVICES,THAMES WATER,520.00,GREAT ESTATES,OTHER R&M,2103367777,3000000995
05.01.2022,RESIDENT SERVICES,THAMES WATER,"3,340.00",GREAT ESTATES,OTHER R&M,2103367777,3000000995
05.01.2022,SBS OPERATIONS,HOWDENS JOINERY CO,315.54,WALWORTH DD,MATERIALS,5902503734,1000027491
05.01.2022,SOUTHWARK BUILDING SERVICES,THAMESMEAD BUSINESS SERVICES  LTD,891.25,STORES/LOGISTICS,CREDITORS -GR/IR CLEARING ACCOUNT,5902503721,1011709
05.01.2022,SOUTHWARK BUILDING SERVICES,THAMESMEAD BUSINESS SERVICES  LTD,891.25,STORES/LOGISTICS,CREDITORS -GR/IR CLEARING ACCOUNT,5902503721,1011709
05.01.2022,SOUTHWARK BUILDING SERVICES,CROSSFOLD ELECTRICAL WHOLESALERS,408.00,STORES/LOGISTICS,CREDITORS -GR/IR CLEARING ACCOUNT,5902503730,1918395
05.01.2022,SOUTHWARK BUILDING SERVICES,CROSSFOLD ELECTRICAL WHOLESALERS,"1,770.00",STORES/LOGISTICS,CREDITORS -GR/IR CLEARING ACCOUNT,5902503731,1918395
05.01.2022,SOUTHWARK BUILDING SERVICES,PPG ARCHITECTURAL COATINGS,380.70,STORES/LOGISTICS,CREDITORS -GR/IR CLEARING ACCOUNT,5902503723,11063178
05.01.2022,SOUTHWARK BUILDING SERVICES,KEMICO LIMITED,"2,167.20",STORES/LOGISTICS,CREDITORS -GR/IR CLEARING ACCOUNT,5902503727,1000030226
05.01.2022,SOUTHWARK BUILDING SERVICES,KEMICO LIMITED,"4,797.00",STORES/LOGISTICS,CREDITORS -GR/IR CLEARING ACCOUNT,5902503727,1000030226
05.01.2022,SOUTHWARK BUILDING SERVICES,KEMICO LIMITED,"5,292.00",STORES/LOGISTICS,CREDITORS -GR/IR CLEARING ACCOUNT,5902503728,1000030226
05.01.2022,SOUTHWARK BUILDING SERVICES,CORBYS & CO,654.00,STORES/LOGISTICS,CREDITORS -GR/IR CLEARING ACCOUNT,5902503717,1000055320
06.01.2022,ADULT SOCIAL CARE,REDACTED PERSONAL DATA,600.00,APPOINTEESHIPS,OTHER PAYMENTS FOR CLIENTS,REDACTED,REDACTED
06.01.2022,ADULT SOCIAL CARE,REDACTED PERSONAL DATA,279.85,APPOINTEESHIPS,OTHER PAYMENTS FOR CLIENTS,REDACTED,REDACTED
06.01.2022,ADULT SOCIAL CARE,THE DRIVE CARE HOMES LTD,"14,872.87",DISABILITIES LAC,EXTERNAL AGENCIES AND BODIES,2103368130,1000003889
06.01.2022,ADULT SOCIAL CARE,KENT HOMEFINDING & FOSTERING LTD,"5,166.81",DISABILITIES LAC,EXTERNAL AGENCIES AND BODIES,2103367935,1000033978
06.01.2022,ADULT SOCIAL CARE,BY THE BRIDGE LTD,"5,757.01",DISABILITIES LAC,EXTERNAL AGENCIES AND BODIES,2103367915,1000043961
06.01.2022,ADULT SOCIAL CARE,BY THE BRIDGE LTD,"6,231.00",DISABILITIES LAC,EXTERNAL AGENCIES AND BODIES,2103367907,1000043961
06.01.2022,ADULT SOCIAL CARE,NEXUS FOSTERING,"5,757.01",DISABILITIES LAC,EXTERNAL AGENCIES AND BODIES,2103367974,1000069682
06.01.2022,ADULT SOCIAL CARE,AMELIA'S HOUSE LIMITED,"13,950.00",DISABILITIES LAC,EXTERNAL AGENCIES AND BODIES,2103368149,1000083007
06.01.2022,ADULT SOCIAL CARE,BROADLANDS HALL LIMITED,"9,940.00",DISABILITIES LAC,EXTERNAL AGENCIES AND BODIES,2103368139,1000084303
06.01.2022,ADULT SOCIAL CARE,THE DRIVE CARE HOMES LTD,"1,760.00",DISABILITIES LAC,OTHER PAYMENTS FOR CLIENTS,2103368129,1000003889
06.01.2022,ADULT SOCIAL CARE,THE DRIVE CARE HOMES LTD,810.00,DISABILITIES LAC,RESIDENTIAL CARE,2103368127,1000003889
06.01.2022,ADULT SOCIAL CARE,THE DRIVE CARE HOMES LTD,"14,126.52",DISABILITIES LAC,RESIDENTIAL CARE,2103368126,1000003889
06.01.2022,ADULT SOCIAL CARE,THE BEECHES UK LTD,"27,855.71",DISABILITIES LAC,RESIDENTIAL CARE,2103368148,1000083173
06.01.2022,ADULT SOCIAL CARE,BROADLANDS HALL LIMITED,"7,900.00",DISABILITIES LAC,RESIDENTIAL CARE,2103368138,1000084303
06.01.2022,ADULT SOCIAL CARE,ACCESS MOBILITY TRANSPORT LTD,"2,087.60",LD LTS 18-64,CLIENT TRANSPORT,2103367902,1000074637
06.01.2022,ADULT SOCIAL CARE,CONTACT PROFESSIONALS,465.00,LD LTS 18-64,SUPPORTED LIVING,2103367896,1000057263
06.01.2022,ADULT SOCIAL CARE,CONTACT PROFESSIONALS,684.00,LD LTS 18-64,SUPPORTED LIVING,2103367895,1000057263
06.01.2022,ADULT SOCIAL CARE,CONTACT PROFESSIONALS,912.00,LD LTS 18-64,SUPPORTED LIVING,2103367900,1000057263
06.01.2022,ADULT SOCIAL CARE,INSPIRE SUPPORT WORKERS LTD,280.00,LD LTS 18-64,SUPPORTED LIVING,2103367894,1000080725
06.01.2022,ADULT SOCIAL CARE,INSPIRE SUPPORT WORKERS LTD,"7,700.00",LD LTS 18-64,SUPPORTED LIVING,2103367899,1000080725
06.01.2022,ADULT SOCIAL CARE,SUPREME CARE SERVICES LTD,"1,285.59",LD STS 18-64,HOMECARE - IC,2103368155,1000059416
06.01.2022,ADULT SOCIAL CARE,INSPIRE SUPPORT WORKERS LTD,"1,715.00",MH LTS 65+,SUPPORTED LIVING,2103367901,1000080725
06.01.2022,ADULT SOCIAL CARE,SUPREME CARE SERVICES LTD,"1,078.80",PHY LTS 18-64,HOMECARE - C&V,2103368156,1000059416
06.01.2022,ADULT SOCIAL CARE,ELIMHOUSE COMMUNITY ASSOCIATION,350.00,PHY LTS 65+,DAYCARE,2103367903,1000076454
06.01.2022,ADULT SOCIAL CARE,ELIMHOUSE COMMUNITY ASSOCIATION,400.00,PHY LTS 65+,DAYCARE,2103367905,1000076454
06.01.2022,ADULT SOCIAL CARE,ELIMHOUSE COMMUNITY ASSOCIATION,450.00,PHY LTS 65+,DAYCARE,2103367904,1000076454
06.01.2022,ADULT SOCIAL CARE,SUPREME CARE SERVICES LTD,701.24,PHY LTS 65+,HOMECARE - C&V,2103368161,1000059416
06.01.2022,ADULT SOCIAL CARE,SUPREME CARE SERVICES LTD,"1,402.44",PHY STS 18-64,HOMECARE - IC,2103368159,1000059416
06.01.2022,ADULT SOCIAL CARE,SUPREME CARE SERVICES LTD,"1,027.43",PHY STS 65+,HOMECARE - IC,2103368158,1000059416
06.01.2022,ADULT SOCIAL CARE,SUPREME CARE SERVICES LTD,"1,078.80",PHY STS 65+,HOMECARE - IC,2103368162,1000059416
06.01.2022,ADULT SOCIAL CARE,SUPREME CARE SERVICES LTD,"1,240.62",PHY STS 65+,HOMECARE - IC,2103368157,1000059416
06.01.2022,ADULT SOCIAL CARE,KIDS,472.00,SPECIALIST CARE,SECTION 17 PAYMENTS TO AGENCIES/CARERS,2103368115,1000030036
06.01.2022,ADULT SOCIAL CARE,ADVANTAGE HEALTHCARE LTD,586.68,SPECIALIST CARE,SECTION 17 PAYMENTS TO AGENCIES/CARERS,2103368114,1000049612
06.01.2022,ADULT SOCIAL CARE,UNIQUE PERSONNEL (UK) LTD,288.48,SPECIALIST CARE,SECTION 17 PAYMENTS TO AGENCIES/CARERS,2103368119,1000075451
06.01.2022,ADULT SOCIAL CARE,UNIQUE PERSONNEL (UK) LTD,288.48,SPECIALIST CARE,SECTION 17 PAYMENTS TO AGENCIES/CARERS,2103368120,1000075451
06.01.2022,ADULT SOCIAL CARE,UNIQUE PERSONNEL (UK) LTD,288.48,SPECIALIST CARE,SECTION 17 PAYMENTS TO AGENCIES/CARERS,2103368122,1000075451
06.01.2022,ADULT SOCIAL CARE,UNIQUE PERSONNEL (UK) LTD,324.54,SPECIALIST CARE,SECTION 17 PAYMENTS TO AGENCIES/CARERS,2103368123,1000075451
06.01.2022,ADULT SOCIAL CARE,UNIQUE PERSONNEL (UK) LTD,"8,365.92",SPECIALIST CARE,SECTION 17 PAYMENTS TO AGENCIES/CARERS,2103368124,1000075451
06.01.2022,ADULT SOCIAL CARE,ACHIEVERS CARE SOLUTIONS LIMITED,700.00,SPECIALIST CARE,SECTION 17 PAYMENTS TO AGENCIES/CARERS,2103368116,1000086268
06.01.2022,ADULT SOCIAL CARE,ACHIEVERS CARE SOLUTIONS LIMITED,"1,360.00",SPECIALIST CARE,SECTION 17 PAYMENTS TO AGENCIES/CARERS,2103368117,1000086268
06.01.2022,ADULT SOCIAL CARE,ACHIEVERS CARE SOLUTIONS LIMITED,"1,360.00",SPECIALIST CARE,SECTION 17 PAYMENTS TO AGENCIES/CARERS,2103368118,1000086268
06.01.2022,ASSET MANAGEMENT,SEDGWICK INTERNATIONAL UK,356.50,MAJOR REPAIRS,BUILDING R&M,5902503820,1000082289
06.01.2022,ASSET MANAGEMENT,SEDGWICK INTERNATIONAL UK,771.00,MAJOR REPAIRS,BUILDING R&M,5902503972,1000082289
06.01.2022,ASSET MANAGEMENT,FRANKHAM CONSULTANCY GROUP LTD,895.00,REPAIRS OPERATIONS,BUILDING R&M,5902503819,1000043952
06.01.2022,CENTRAL FUNCTIONS,1ST ACE SECURITY LTD,"16,905.60",LEDBURY ESTATE,SECURITY SERVICES,5902503254,1000006992
06.01.2022,CHILDREN AND FAMILIES,SOUTH LONDON & MAUDSLEY HOSPITAL,"2,104.00",ADOPTION SUPP FUND,PROFESSIONAL FEES,5902503929,1000013096
06.01.2022,CHILDREN AND FAMILIES,THE FAMILY PLACE LTD,552.50,ADOPTION SUPP FUND,PROFESSIONAL FEES,5902503895,1000077965
06.01.2022,CHILDREN AND FAMILIES,THE FAMILY PLACE LTD,650.00,ADOPTION SUPP FUND,PROFESSIONAL FEES,5902503897,1000077965
06.01.2022,CHILDREN AND FAMILIES,ZENITH CARS LTD,"1,000.00",AI TEAMS A-D,CLIENT TRANSPORT,5902504013,1000070570
06.01.2022,CHILDREN AND FAMILIES,REDACTED PERSONAL DATA,300.00,CARELEAVER UNIV SUPP,CLIENT TRANSPORT,REDACTED,REDACTED
06.01.2022,CHILDREN AND FAMILIES,REDACTED PERSONAL DATA,800.00,CARELEAVER UNIV SUPP,OTHER PAYMENTS FOR CLIENTS,REDACTED,REDACTED
06.01.2022,CHILDREN AND FAMILIES,CASTLE HOMES LIMITED,"19,348.30",CHILDREN�S RESID,RESIDENTIAL CARE,2103368147,1000019388
06.01.2022,CHILDREN AND FAMILIES,CASTLE HOMES LIMITED,"20,227.50",CHILDREN�S RESID,RESIDENTIAL CARE,2103368146,1000019388
06.01.2022,CHILDREN AND FAMILIES,ST CHRISTOPHER FELLOWSHIP,"21,921.34",CHILDREN�S RESID,RESIDENTIAL CARE,2103368132,1000045269
06.01.2022,CHILDREN AND FAMILIES,CHANNELS & CHOICES FOSTERING LTD,"21,921.42",CHILDREN�S RESID,RESIDENTIAL CARE,2103368153,1000052855
06.01.2022,CHILDREN AND FAMILIES,LIONCARE LIMITED,"17,018.07",CHILDREN�S RESID,RESIDENTIAL CARE,2103368131,1000065330
06.01.2022,CHILDREN AND FAMILIES,THE CALDECOTT FOUNDATION,"21,367.86",CHILDREN�S RESID,RESIDENTIAL CARE,2103368142,1000074757
06.01.2022,CHILDREN AND FAMILIES,CHILDHOOD FIRST,"21,664.57",CHILDREN�S RESID,RESIDENTIAL CARE,2103368134,1000076330
06.01.2022,CHILDREN AND FAMILIES,CHILDHOOD FIRST,"26,536.00",CHILDREN�S RESID,RESIDENTIAL CARE,2103368141,1000076330
06.01.2022,CHILDREN AND FAMILIES,THE AMICUS COMMUNITY (ARUNDEL) LTD,"21,279.33",CHILDREN�S RESID,RESIDENTIAL CARE,2103368151,1000079012
06.01.2022,CHILDREN AND FAMILIES,KEYS PCE LTD,"12,978.57",CHILDREN�S RESID,RESIDENTIAL CARE,2103368135,1000080090
06.01.2022,CHILDREN AND FAMILIES,KEYS PCE LTD,"17,125.00",CHILDREN�S RESID,RESIDENTIAL CARE,2103368150,1000080090
06.01.2022,CHILDREN AND FAMILIES,PARKVIEW CARE (BROADSTAIRS) LTD,"24,335.00",CHILDREN�S RESID,RESIDENTIAL CARE,2103368133,1000083678
06.01.2022,CHILDREN AND FAMILIES,OWNLIFE RESIDENTIAL LTD,"26,128.57",CHILDREN�S RESID,RESIDENTIAL CARE,2103368136,1000085398
06.01.2022,CHILDREN AND FAMILIES,MY CHOICE CHILDREN'S HOMES LIMITED,"17,484.00",CHILDREN�S RESID,RESIDENTIAL CARE,2103368143,1000085839
06.01.2022,CHILDREN AND FAMILIES,KEDLESTON GROUP LIMITED,"15,500.00",CHILDREN�S RESID,RESIDENTIAL CARE,2103368140,1000086192
06.01.2022,CHILDREN AND FAMILIES,JAMES KIDS HOME LTD,"18,068.66",CHILDREN�S RESID,RESIDENTIAL CARE,2103368137,1000086222
06.01.2022,CHILDREN AND FAMILIES,COMPASS CHILDREN'S HOMES KENT LTD,"17,492.99",CHILDREN�S RESID,RESIDENTIAL CARE,2103368144,1000087062
06.01.2022,CHILDREN AND FAMILIES,COMPASS CHILDREN'S HOMES KENT LTD,"21,035.67",CHILDREN�S RESID,RESIDENTIAL CARE,2103368145,1000087062
06.01.2022,CHILDREN AND FAMILIES,247 BLUEBELL CARE LIMITED,"36,081.43",CHILDREN�S RESID,RESIDENTIAL CARE,2103368128,1000087186
06.01.2022,CHILDREN AND FAMILIES,CHILDREN OF THE MANGROVE LTD,"19,330.71",CHILDREN�S RESID,RESIDENTIAL CARE,2103368152,1000087612
06.01.2022,CHILDREN AND FAMILIES,CONTACT PROFESSIONALS,"2,550.00",CONTACT SERVICE,EXTERNAL AGENCIES AND BODIES,2103368100,1000057263
06.01.2022,CHILDREN AND FAMILIES,CONTACT PROFESSIONALS,314.00,CONTACT SERVICE,OTHER PAYMENTS FOR CLIENTS,2103368104,1000057263
06.01.2022,CHILDREN AND FAMILIES,CONTACT PROFESSIONALS,645.00,CONTACT SERVICE,OTHER PAYMENTS FOR CLIENTS,2103368099,1000057263
06.01.2022,CHILDREN AND FAMILIES,CONTACT PROFESSIONALS,645.00,CONTACT SERVICE,OTHER PAYMENTS FOR CLIENTS,2103368101,1000057263
06.01.2022,CHILDREN AND FAMILIES,CONTACT PROFESSIONALS,645.00,CONTACT SERVICE,OTHER PAYMENTS FOR CLIENTS,2103368109,1000057263
06.01.2022,CHILDREN AND FAMILIES,CONTACT PROFESSIONALS,684.00,CONTACT SERVICE,OTHER PAYMENTS FOR CLIENTS,2103368105,1000057263
06.01.2022,CHILDREN AND FAMILIES,CONTACT PROFESSIONALS,695.00,CONTACT SERVICE,OTHER PAYMENTS FOR CLIENTS,2103368110,1000057263
06.01.2022,CHILDREN AND FAMILIES,CONTACT PROFESSIONALS,"1,953.00",CONTACT SERVICE,OTHER PAYMENTS FOR CLIENTS,2103368107,1000057263
06.01.2022,CHILDREN AND FAMILIES,NEGOTIATORS FAMILY CENTRE LIMITED,300.00,CONTACT SERVICE,OTHER PAYMENTS FOR CLIENTS,5902503800,1000075672
06.01.2022,CHILDREN AND FAMILIES,NEGOTIATORS FAMILY CENTRE LIMITED,300.00,CONTACT SERVICE,OTHER PAYMENTS FOR CLIENTS,5902503828,1000075672
06.01.2022,CHILDREN AND FAMILIES,NEGOTIATORS FAMILY CENTRE LIMITED,300.00,CONTACT SERVICE,OTHER PAYMENTS FOR CLIENTS,5902503833,1000075672
06.01.2022,CHILDREN AND FAMILIES,NEGOTIATORS FAMILY CENTRE LIMITED,350.00,CONTACT SERVICE,OTHER PAYMENTS FOR CLIENTS,5902503797,1000075672
06.01.2022,CHILDREN AND FAMILIES,NEGOTIATORS FAMILY CENTRE LIMITED,355.00,CONTACT SERVICE,OTHER PAYMENTS FOR CLIENTS,5902503848,1000075672
06.01.2022,CHILDREN AND FAMILIES,NEGOTIATORS FAMILY CENTRE LIMITED,355.00,CONTACT SERVICE,OTHER PAYMENTS FOR CLIENTS,5902503964,1000075672
06.01.2022,CHILDREN AND FAMILIES,NEGOTIATORS FAMILY CENTRE LIMITED,370.00,CONTACT SERVICE,OTHER PAYMENTS FOR CLIENTS,5902503853,1000075672
06.01.2022,CHILDREN AND FAMILIES,NEGOTIATORS FAMILY CENTRE LIMITED,370.00,CONTACT SERVICE,OTHER PAYMENTS FOR CLIENTS,5902503874,1000075672
06.01.2022,CHILDREN AND FAMILIES,NEGOTIATORS FAMILY CENTRE LIMITED,370.00,CONTACT SERVICE,OTHER PAYMENTS FOR CLIENTS,5902503966,1000075672
06.01.2022,CHILDREN AND FAMILIES,NEGOTIATORS FAMILY CENTRE LIMITED,385.00,CONTACT SERVICE,OTHER PAYMENTS FOR CLIENTS,5902503882,1000075672
06.01.2022,CHILDREN AND FAMILIES,NEGOTIATORS FAMILY CENTRE LIMITED,455.00,CONTACT SERVICE,OTHER PAYMENTS FOR CLIENTS,5902503793,1000075672
06.01.2022,CHILDREN AND FAMILIES,NEGOTIATORS FAMILY CENTRE LIMITED,455.00,CONTACT SERVICE,OTHER PAYMENTS FOR CLIENTS,5902503960,1000075672
06.01.2022,CHILDREN AND FAMILIES,NEGOTIATORS FAMILY CENTRE LIMITED,540.00,CONTACT SERVICE,OTHER PAYMENTS FOR CLIENTS,5902503790,1000075672
06.01.2022,CHILDREN AND FAMILIES,NEGOTIATORS FAMILY CENTRE LIMITED,790.00,CONTACT SERVICE,OTHER PAYMENTS FOR CLIENTS,5902503795,1000075672
06.01.2022,CHILDREN AND FAMILIES,NEGOTIATORS FAMILY CENTRE LIMITED,805.00,CONTACT SERVICE,OTHER PAYMENTS FOR CLIENTS,5902503844,1000075672
06.01.2022,CHILDREN AND FAMILIES,NEGOTIATORS FAMILY CENTRE LIMITED,870.00,CONTACT SERVICE,OTHER PAYMENTS FOR CLIENTS,5902503834,1000075672
06.01.2022,CHILDREN AND FAMILIES,NEGOTIATORS FAMILY CENTRE LIMITED,950.00,CONTACT SERVICE,OTHER PAYMENTS FOR CLIENTS,5902503802,1000075672
06.01.2022,CHILDREN AND FAMILIES,NEGOTIATORS FAMILY CENTRE LIMITED,"1,725.00",CONTACT SERVICE,OTHER PAYMENTS FOR CLIENTS,5902503830,1000075672
06.01.2022,CHILDREN AND FAMILIES,AIDHOUR LIMITED,"1,575.00",DIRECTOR OF C&F,PROFESSIONAL FEES,5902503906,1000057345
06.01.2022,CHILDREN AND FAMILIES,HERA SOCIAL CARE LTD,253.50,FAMILY GROUP CONF�S,PROFESSIONAL FEES,5902503900,1000084935
06.01.2022,CHILDREN AND FAMILIES,REDACTED PERSONAL DATA,412.06,FAMILY GROUP CONF�S,PROFESSIONAL FEES,REDACTED,REDACTED
06.01.2022,CHILDREN AND FAMILIES,INTEGRATED SERVICES PROGRAMME,"5,176.07",FRIENDS & FAMILY FOSTERING,EXTERNAL AGENCIES AND BODIES,2103367928,1642068
06.01.2022,CHILDREN AND FAMILIES,INTEGRATED SERVICES PROGRAMME,"5,336.34",FRIENDS & FAMILY FOSTERING,EXTERNAL AGENCIES AND BODIES,2103367940,1642068
06.01.2022,CHILDREN AND FAMILIES,INTEGRATED SERVICES PROGRAMME,"5,336.34",FRIENDS & FAMILY FOSTERING,EXTERNAL AGENCIES AND BODIES,2103367947,1642068
06.01.2022,CHILDREN AND FAMILIES,INTEGRATED SERVICES PROGRAMME,"5,336.34",FRIENDS & FAMILY FOSTERING,EXTERNAL AGENCIES AND BODIES,2103367976,1642068
06.01.2022,CHILDREN AND FAMILIES,INTEGRATED SERVICES PROGRAMME,"5,460.91",FRIENDS & FAMILY FOSTERING,EXTERNAL AGENCIES AND BODIES,2103367949,1642068
06.01.2022,CHILDREN AND FAMILIES,INTEGRATED SERVICES PROGRAMME,"5,460.91",FRIENDS & FAMILY FOSTERING,EXTERNAL AGENCIES AND BODIES,2103367950,1642068
06.01.2022,CHILDREN AND FAMILIES,INTEGRATED SERVICES PROGRAMME,"5,734.21",FRIENDS & FAMILY FOSTERING,EXTERNAL AGENCIES AND BODIES,2103367952,1642068
06.01.2022,CHILDREN AND FAMILIES,INTEGRATED SERVICES PROGRAMME,"5,734.21",FRIENDS & FAMILY FOSTERING,EXTERNAL AGENCIES AND BODIES,2103367978,1642068
06.01.2022,CHILDREN AND FAMILIES,INTEGRATED SERVICES PROGRAMME,"6,370.50",FRIENDS & FAMILY FOSTERING,EXTERNAL AGENCIES AND BODIES,2103367927,1642068
06.01.2022,CHILDREN AND FAMILIES,INTEGRATED SERVICES PROGRAMME,"6,370.50",FRIENDS & FAMILY FOSTERING,EXTERNAL AGENCIES AND BODIES,2103367951,1642068
06.01.2022,CHILDREN AND FAMILIES,INTEGRATED SERVICES PROGRAMME,"6,370.50",FRIENDS & FAMILY FOSTERING,EXTERNAL AGENCIES AND BODIES,2103367977,1642068
06.01.2022,CHILDREN AND FAMILIES,INTEGRATED SERVICES PROGRAMME,"6,682.98",FRIENDS & FAMILY FOSTERING,EXTERNAL AGENCIES AND BODIES,2103367948,1642068
06.01.2022,CHILDREN AND FAMILIES,ETHELBERT SPECIALIST HOMES,"3,678.11",FRIENDS & FAMILY FOSTERING,EXTERNAL AGENCIES AND BODIES,2103367920,1796129
06.01.2022,CHILDREN AND FAMILIES,ETHELBERT SPECIALIST HOMES,"3,678.11",FRIENDS & FAMILY FOSTERING,EXTERNAL AGENCIES AND BODIES,2103367962,1796129
06.01.2022,CHILDREN AND FAMILIES,ETHELBERT SPECIALIST HOMES,"3,678.11",FRIENDS & FAMILY FOSTERING,EXTERNAL AGENCIES AND BODIES,2103367963,1796129
06.01.2022,CHILDREN AND FAMILIES,HEATH FARM FAMILY SERVICES LTD,"5,176.38",FRIENDS & FAMILY FOSTERING,EXTERNAL AGENCIES AND BODIES,2103367964,11271268
06.01.2022,CHILDREN AND FAMILIES,TACT,396.42,FRIENDS & FAMILY FOSTERING,EXTERNAL AGENCIES AND BODIES,2103367979,1000012941
06.01.2022,CHILDREN AND FAMILIES,CHRYSALIS CARE,"6,191.32",FRIENDS & FAMILY FOSTERING,EXTERNAL AGENCIES AND BODIES,2103367954,1000028987
06.01.2022,CHILDREN AND FAMILIES,SYNERGY FOSTERING LTD,"3,158.90",FRIENDS & FAMILY FOSTERING,EXTERNAL AGENCIES AND BODIES,2103367970,1000031559
06.01.2022,CHILDREN AND FAMILIES,SYNERGY FOSTERING LTD,"3,334.58",FRIENDS & FAMILY FOSTERING,EXTERNAL AGENCIES AND BODIES,2103367969,1000031559
06.01.2022,CHILDREN AND FAMILIES,SYNERGY FOSTERING LTD,"4,309.00",FRIENDS & FAMILY FOSTERING,EXTERNAL AGENCIES AND BODIES,2103367921,1000031559
06.01.2022,CHILDREN AND FAMILIES,SYNERGY FOSTERING LTD,"4,872.27",FRIENDS & FAMILY FOSTERING,EXTERNAL AGENCIES AND BODIES,2103367968,1000031559
06.01.2022,CHILDREN AND FAMILIES,KENT HOMEFINDING & FOSTERING LTD,"3,041.10",FRIENDS & FAMILY FOSTERING,EXTERNAL AGENCIES AND BODIES,2103367973,1000033978
06.01.2022,CHILDREN AND FAMILIES,SUNBEAM FOSTERING AGENCY LTD,"3,432.14",FRIENDS & FAMILY FOSTERING,EXTERNAL AGENCIES AND BODIES,2103367913,1000041457
06.01.2022,CHILDREN AND FAMILIES,SUNBEAM FOSTERING AGENCY LTD,"5,646.43",FRIENDS & FAMILY FOSTERING,EXTERNAL AGENCIES AND BODIES,2103367953,1000041457
06.01.2022,CHILDREN AND FAMILIES,FUTURES FOR CHILDREN LIMITED,"3,384.89",FRIENDS & FAMILY FOSTERING,EXTERNAL AGENCIES AND BODIES,2103367941,1000041984
06.01.2022,CHILDREN AND FAMILIES,FUTURES FOR CHILDREN LIMITED,"3,384.89",FRIENDS & FAMILY FOSTERING,EXTERNAL AGENCIES AND BODIES,2103367942,1000041984
06.01.2022,CHILDREN AND FAMILIES,FUTURES FOR CHILDREN LIMITED,"6,713.98",FRIENDS & FAMILY FOSTERING,EXTERNAL AGENCIES AND BODIES,2103367982,1000041984
06.01.2022,CHILDREN AND FAMILIES,BY THE BRIDGE LTD,"4,218.48",FRIENDS & FAMILY FOSTERING,EXTERNAL AGENCIES AND BODIES,2103367993,1000043961
06.01.2022,CHILDREN AND FAMILIES,BY THE BRIDGE LTD,"4,440.44",FRIENDS & FAMILY FOSTERING,EXTERNAL AGENCIES AND BODIES,2103367906,1000043961
06.01.2022,CHILDREN AND FAMILIES,BY THE BRIDGE LTD,"4,512.05",FRIENDS & FAMILY FOSTERING,EXTERNAL AGENCIES AND BODIES,2103367929,1000043961
06.01.2022,CHILDREN AND FAMILIES,BY THE BRIDGE LTD,"4,658.40",FRIENDS & FAMILY FOSTERING,EXTERNAL AGENCIES AND BODIES,2103367981,1000043961
06.01.2022,CHILDREN AND FAMILIES,BY THE BRIDGE LTD,"4,749.20",FRIENDS & FAMILY FOSTERING,EXTERNAL AGENCIES AND BODIES,2103367994,1000043961
06.01.2022,CHILDREN AND FAMILIES,BY THE BRIDGE LTD,"4,805.51",FRIENDS & FAMILY FOSTERING,EXTERNAL AGENCIES AND BODIES,2103367992,1000043961
06.01.2022,CHILDREN AND FAMILIES,BY THE BRIDGE LTD,"4,903.58",FRIENDS & FAMILY FOSTERING,EXTERNAL AGENCIES AND BODIES,2103367914,1000043961
06.01.2022,CHILDREN AND FAMILIES,BY THE BRIDGE LTD,"4,903.58",FRIENDS & FAMILY FOSTERING,EXTERNAL AGENCIES AND BODIES,2103367980,1000043961
06.01.2022,CHILDREN AND FAMILIES,CHILDREN OF COLOUR,"3,558.80",FRIENDS & FAMILY FOSTERING,EXTERNAL AGENCIES AND BODIES,2103367987,1000044955
06.01.2022,CHILDREN AND FAMILIES,CHILDREN OF COLOUR,"4,871.42",FRIENDS & FAMILY FOSTERING,EXTERNAL AGENCIES AND BODIES,2103367988,1000044955
06.01.2022,CHILDREN AND FAMILIES,ST CHRISTOPHER FELLOWSHIP,"3,059.70",FRIENDS & FAMILY FOSTERING,EXTERNAL AGENCIES AND BODIES,2103367936,1000045269
06.01.2022,CHILDREN AND FAMILIES,ST CHRISTOPHER FELLOWSHIP,"3,122.01",FRIENDS & FAMILY FOSTERING,EXTERNAL AGENCIES AND BODIES,2103367937,1000045269
06.01.2022,CHILDREN AND FAMILIES,DIVERSE CARE (UK) LTD,"5,055.48",FRIENDS & FAMILY FOSTERING,EXTERNAL AGENCIES AND BODIES,2103367965,1000055636
06.01.2022,CHILDREN AND FAMILIES,COMPASS FOSTERING LONDON LTD,"3,321.34",FRIENDS & FAMILY FOSTERING,EXTERNAL AGENCIES AND BODIES,2103367991,1000057908
06.01.2022,CHILDREN AND FAMILIES,COMPASS FOSTERING LONDON LTD,"5,580.00",FRIENDS & FAMILY FOSTERING,EXTERNAL AGENCIES AND BODIES,2103367990,1000057908
06.01.2022,CHILDREN AND FAMILIES,CHILDREN FIRST FOSTERING AGENCY LTD,"-1,155.87",FRIENDS & FAMILY FOSTERING,EXTERNAL AGENCIES AND BODIES,2103367959,1000060081
06.01.2022,CHILDREN AND FAMILIES,CHILDREN FIRST FOSTERING AGENCY LTD,"3,981.33",FRIENDS & FAMILY FOSTERING,EXTERNAL AGENCIES AND BODIES,2103367934,1000060081
06.01.2022,CHILDREN AND FAMILIES,FOLLOWING WHISPERS FAMILY SERVICE LTD,"6,864.33",FRIENDS & FAMILY FOSTERING,EXTERNAL AGENCIES AND BODIES,2103367933,1000065611
06.01.2022,CHILDREN AND FAMILIES,ANCHOR FOSTERCARE,"3,856.71",FRIENDS & FAMILY FOSTERING,EXTERNAL AGENCIES AND BODIES,2103367930,1000065675
06.01.2022,CHILDREN AND FAMILIES,ANCHOR FOSTERCARE,"4,072.47",FRIENDS & FAMILY FOSTERING,EXTERNAL AGENCIES AND BODIES,2103367931,1000065675
06.01.2022,CHILDREN AND FAMILIES,NEXUS FOSTERING,"2,869.67",FRIENDS & FAMILY FOSTERING,EXTERNAL AGENCIES AND BODIES,2103367926,1000069682
06.01.2022,CHILDREN AND FAMILIES,NEXUS FOSTERING,"3,188.35",FRIENDS & FAMILY FOSTERING,EXTERNAL AGENCIES AND BODIES,2103367944,1000069682
06.01.2022,CHILDREN AND FAMILIES,NEXUS FOSTERING,"3,188.35",FRIENDS & FAMILY FOSTERING,EXTERNAL AGENCIES AND BODIES,2103367945,1000069682
06.01.2022,CHILDREN AND FAMILIES,NEXUS FOSTERING,"3,188.35",FRIENDS & FAMILY FOSTERING,EXTERNAL AGENCIES AND BODIES,2103367975,1000069682
06.01.2022,CHILDREN AND FAMILIES,NEXUS FOSTERING,"5,952.00",FRIENDS & FAMILY FOSTERING,EXTERNAL AGENCIES AND BODIES,2103367946,1000069682
06.01.2022,CHILDREN AND FAMILIES,FOSTERCARE UK LTD,"5,115.00",FRIENDS & FAMILY FOSTERING,EXTERNAL AGENCIES AND BODIES,2103367983,1000073002
06.01.2022,CHILDREN AND FAMILIES,FOSTERCARE UK LTD,"6,975.00",FRIENDS & FAMILY FOSTERING,EXTERNAL AGENCIES AND BODIES,2103367984,1000073002
06.01.2022,CHILDREN AND FAMILIES,COMPASS FOSTERING SOUTH LTD,"3,675.67",FRIENDS & FAMILY FOSTERING,EXTERNAL AGENCIES AND BODIES,2103367917,1000073772
06.01.2022,CHILDREN AND FAMILIES,COMPASS FOSTERING SOUTH LTD,"3,786.34",FRIENDS & FAMILY FOSTERING,EXTERNAL AGENCIES AND BODIES,2103367943,1000073772
06.01.2022,CHILDREN AND FAMILIES,COMPASS FOSTERING SOUTH LTD,"4,270.25",FRIENDS & FAMILY FOSTERING,EXTERNAL AGENCIES AND BODIES,2103367918,1000073772
06.01.2022,CHILDREN AND FAMILIES,COMPASS FOSTERING SOUTH LTD,"5,535.67",FRIENDS & FAMILY FOSTERING,EXTERNAL AGENCIES AND BODIES,2103367961,1000073772
06.01.2022,CHILDREN AND FAMILIES,ASCENT FOSTERING AGENCY LTD,"4,632.33",FRIENDS & FAMILY FOSTERING,EXTERNAL AGENCIES AND BODIES,2103367967,1000074714
06.01.2022,CHILDREN AND FAMILIES,ASCENT FOSTERING AGENCY LTD,"5,867.99",FRIENDS & FAMILY FOSTERING,EXTERNAL AGENCIES AND BODIES,2103367966,1000074714
06.01.2022,CHILDREN AND FAMILIES,MOSAIC FOSTER CARE LTD,"6,642.68",FRIENDS & FAMILY FOSTERING,EXTERNAL AGENCIES AND BODIES,2103367938,1000076259
06.01.2022,CHILDREN AND FAMILIES,MOSAIC FOSTER CARE LTD,"6,975.00",FRIENDS & FAMILY FOSTERING,EXTERNAL AGENCIES AND BODIES,2103367939,1000076259
06.01.2022,CHILDREN AND FAMILIES,RAINBOW FOSTERING SERVICES LTD,"6,200.00",FRIENDS & FAMILY FOSTERING,EXTERNAL AGENCIES AND BODIES,2103367925,1000076620
06.01.2022,CHILDREN AND FAMILIES,RAINBOW FOSTERING SERVICES LTD,"7,750.00",FRIENDS & FAMILY FOSTERING,EXTERNAL AGENCIES AND BODIES,2103367924,1000076620
06.01.2022,CHILDREN AND FAMILIES,PARENT AND CHILD FOSTERING ASSESSMENTS,"7,750.00",FRIENDS & FAMILY FOSTERING,EXTERNAL AGENCIES AND BODIES,2103367989,1000078962
06.01.2022,CHILDREN AND FAMILIES,SELECT FOSTERCARE SERVICES LTD,"3,653.66",FRIENDS & FAMILY FOSTERING,EXTERNAL AGENCIES AND BODIES,2103367985,1000079277
06.01.2022,CHILDREN AND FAMILIES,SELECT FOSTERCARE SERVICES LTD,"3,653.66",FRIENDS & FAMILY FOSTERING,EXTERNAL AGENCIES AND BODIES,2103367986,1000079277
06.01.2022,CHILDREN AND FAMILIES,CONNECT FOSTERING SERVICES LTD,"5,801.43",FRIENDS & FAMILY FOSTERING,EXTERNAL AGENCIES AND BODIES,2103367960,1000079969
06.01.2022,CHILDREN AND FAMILIES,SHARED CARE SERVICES LTD,"6,606.72",FRIENDS & FAMILY FOSTERING,EXTERNAL AGENCIES AND BODIES,2103367972,1000080308
06.01.2022,CHILDREN AND FAMILIES,FAMILY FIRST FOSTERING LTD,"3,820.75",FRIENDS & FAMILY FOSTERING,EXTERNAL AGENCIES AND BODIES,2103367923,1000080631
06.01.2022,CHILDREN AND FAMILIES,FAMILY FIRST FOSTERING LTD,"3,897.14",FRIENDS & FAMILY FOSTERING,EXTERNAL AGENCIES AND BODIES,2103367932,1000080631
06.01.2022,CHILDREN AND FAMILIES,DIVERSITY FOSTER CARE LTD,"3,976.16",FRIENDS & FAMILY FOSTERING,EXTERNAL AGENCIES AND BODIES,2103367908,1000081399
06.01.2022,CHILDREN AND FAMILIES,DIVERSITY FOSTER CARE LTD,"4,108.69",FRIENDS & FAMILY FOSTERING,EXTERNAL AGENCIES AND BODIES,2103367909,1000081399
06.01.2022,CHILDREN AND FAMILIES,DIVERSITY FOSTER CARE LTD,"4,108.69",FRIENDS & FAMILY FOSTERING,EXTERNAL AGENCIES AND BODIES,2103367910,1000081399
06.01.2022,CHILDREN AND FAMILIES,HYTHE HOUSE SUPPORT LTD,"3,969.46",FRIENDS & FAMILY FOSTERING,EXTERNAL AGENCIES AND BODIES,2103367995,1000081618
06.01.2022,CHILDREN AND FAMILIES,HYTHE HOUSE SUPPORT LTD,"5,956.21",FRIENDS & FAMILY FOSTERING,EXTERNAL AGENCIES AND BODIES,2103367912,1000081618
06.01.2022,CHILDREN AND FAMILIES,FAMILY WORKS FOSTERING LTD,322.80,FRIENDS & FAMILY FOSTERING,EXTERNAL AGENCIES AND BODIES,2103367919,1000082529
06.01.2022,CHILDREN AND FAMILIES,FAMILY WORKS FOSTERING LTD,"6,275.29",FRIENDS & FAMILY FOSTERING,EXTERNAL AGENCIES AND BODIES,2103367922,1000082529
06.01.2022,CHILDREN AND FAMILIES,FLOURISH FOSTERING LTD,"4,364.71",FRIENDS & FAMILY FOSTERING,EXTERNAL AGENCIES AND BODIES,2103367957,1000084796
06.01.2022,CHILDREN AND FAMILIES,FLOURISH FOSTERING LTD,"4,674.27",FRIENDS & FAMILY FOSTERING,EXTERNAL AGENCIES AND BODIES,2103367916,1000084796
06.01.2022,CHILDREN AND FAMILIES,FLOURISH FOSTERING LTD,"5,270.00",FRIENDS & FAMILY FOSTERING,EXTERNAL AGENCIES AND BODIES,2103367958,1000084796
06.01.2022,CHILDREN AND FAMILIES,CARING HEARTS FOSTERING,"3,542.99",FRIENDS & FAMILY FOSTERING,EXTERNAL AGENCIES AND BODIES,2103367911,1000087065
06.01.2022,CHILDREN AND FAMILIES,CARING HEARTS FOSTERING,"3,542.99",FRIENDS & FAMILY FOSTERING,EXTERNAL AGENCIES AND BODIES,2103367956,1000087065
06.01.2022,CHILDREN AND FAMILIES,SILVER LINING FOSTERING LTD,"3,432.14",FRIENDS & FAMILY FOSTERING,EXTERNAL AGENCIES AND BODIES,2103367955,1000087318
06.01.2022,CHILDREN AND FAMILIES,EAST SUSSEX COUNTY COUNCIL,"2,087.02",FRIENDS & FAMILY FOSTERING,EXTERNAL AGENCIES AND BODIES,2103367971,1000015148
06.01.2022,CHILDREN AND FAMILIES,REDACTED PERSONAL DATA,"1,550.00",FRIENDS &FAMILY FOST,OTHER PAYMENTS FOR CLIENTS,REDACTED,REDACTED
06.01.2022,CHILDREN AND FAMILIES,REDACTED PERSONAL DATA,"1,680.00",FRIENDS &FAMILY FOST,OTHER PAYMENTS FOR CLIENTS,REDACTED,REDACTED
06.01.2022,CHILDREN AND FAMILIES,SOUTH LONDON & MAUDSLEY HOSPITAL,"15,000.00",MGMT & PARENTING,PROFESSIONAL FEES,5902503926,1000013096
06.01.2022,CHILDREN AND FAMILIES,READY STEADY MOVE LTD,350.00,P & R CARE TEAM,OTHER PAYMENTS FOR CLIENTS,2103368055,1000060084
06.01.2022,CHILDREN AND FAMILIES,ELLIOT LEIGH TLC LTD,"-2,194.84",SEMI-IND CARELEAVERS,COSTS RECOVERED,2103368165,1000079022
06.01.2022,CHILDREN AND FAMILIES,ELLIOT LEIGH TLC LTD,-899.99,SEMI-IND CARELEAVERS,COSTS RECOVERED,2103368163,1000079022
06.01.2022,CHILDREN AND FAMILIES,ELLIOT LEIGH TLC LTD,-491.47,SEMI-IND CARELEAVERS,COSTS RECOVERED,2103368164,1000079022
06.01.2022,CHILDREN AND FAMILIES,HEXAGON HOUSING ASSOCIATION LTD,"1,140.00",SEMI-IND CARELEAVERS,EXTERNAL AGENCIES AND BODIES,2103368034,1000056905
06.01.2022,CHILDREN AND FAMILIES,CONTACT PROFESSIONALS,253.00,SEMI-IND CARELEAVERS,EXTERNAL AGENCIES AND BODIES,2103368049,1000057263
06.01.2022,CHILDREN AND FAMILIES,BARNARDOS SERVICES LTD,664.29,SEMI-IND CARELEAVERS,EXTERNAL AGENCIES AND BODIES,2103368048,1000063730
06.01.2022,CHILDREN AND FAMILIES,HEARTWOOD OUTREACH SERVICES LTD,"1,164.39",SEMI-IND CARELEAVERS,EXTERNAL AGENCIES AND BODIES,2103368016,1000075021
06.01.2022,CHILDREN AND FAMILIES,NETPEX LTD CORPORATE SERVICES,"2,546.40",SEMI-IND CARELEAVERS,EXTERNAL AGENCIES AND BODIES,2103368010,1000076073
06.01.2022,CHILDREN AND FAMILIES,NETPEX LTD CORPORATE SERVICES,"2,635.00",SEMI-IND CARELEAVERS,EXTERNAL AGENCIES AND BODIES,2103368002,1000076073
06.01.2022,CHILDREN AND FAMILIES,NETPEX LTD CORPORATE SERVICES,"2,657.13",SEMI-IND CARELEAVERS,EXTERNAL AGENCIES AND BODIES,2103368000,1000076073
06.01.2022,CHILDREN AND FAMILIES,NETPEX LTD CORPORATE SERVICES,"3,100.00",SEMI-IND CARELEAVERS,EXTERNAL AGENCIES AND BODIES,2103368028,1000076073
06.01.2022,CHILDREN AND FAMILIES,ELLIOT LEIGH TLC LTD,"1,988.34",SEMI-IND CARELEAVERS,EXTERNAL AGENCIES AND BODIES,2103368023,1000079022
06.01.2022,CHILDREN AND FAMILIES,ELLIOT LEIGH TLC LTD,"2,015.00",SEMI-IND CARELEAVERS,EXTERNAL AGENCIES AND BODIES,2103368025,1000079022
06.01.2022,CHILDREN AND FAMILIES,ELLIOT LEIGH TLC LTD,"2,316.01",SEMI-IND CARELEAVERS,EXTERNAL AGENCIES AND BODIES,2103367997,1000079022
06.01.2022,CHILDREN AND FAMILIES,ELLIOT LEIGH TLC LTD,"2,502.01",SEMI-IND CARELEAVERS,EXTERNAL AGENCIES AND BODIES,2103368015,1000079022
06.01.2022,CHILDREN AND FAMILIES,ELLIOT LEIGH TLC LTD,"2,901.91",SEMI-IND CARELEAVERS,EXTERNAL AGENCIES AND BODIES,2103367996,1000079022
06.01.2022,CHILDREN AND FAMILIES,ELLIOT LEIGH TLC LTD,"3,367.53",SEMI-IND CARELEAVERS,EXTERNAL AGENCIES AND BODIES,2103368005,1000079022
06.01.2022,CHILDREN AND FAMILIES,HARVEST CARE GROUP LTD,"2,070.49",SEMI-IND CARELEAVERS,EXTERNAL AGENCIES AND BODIES,2103368006,1000079059
06.01.2022,CHILDREN AND FAMILIES,HARVEST CARE GROUP LTD,"2,136.52",SEMI-IND CARELEAVERS,EXTERNAL AGENCIES AND BODIES,2103368039,1000079059
06.01.2022,CHILDREN AND FAMILIES,HARVEST CARE GROUP LTD,"2,236.34",SEMI-IND CARELEAVERS,EXTERNAL AGENCIES AND BODIES,2103368030,1000079059
06.01.2022,CHILDREN AND FAMILIES,HARVEST CARE GROUP LTD,"2,435.67",SEMI-IND CARELEAVERS,EXTERNAL AGENCIES AND BODIES,2103368003,1000079059
06.01.2022,CHILDREN AND FAMILIES,HARVEST CARE GROUP LTD,"4,539.02",SEMI-IND CARELEAVERS,EXTERNAL AGENCIES AND BODIES,2103368040,1000079059
06.01.2022,CHILDREN AND FAMILIES,HARVEST CARE GROUP LTD,"4,607.10",SEMI-IND CARELEAVERS,EXTERNAL AGENCIES AND BODIES,2103368044,1000079059
06.01.2022,CHILDREN AND FAMILIES,SYDNEY CARE LTD,"9,964.28",SEMI-IND CARELEAVERS,EXTERNAL AGENCIES AND BODIES,2103367998,1000081598
06.01.2022,CHILDREN AND FAMILIES,TRANSFORMING LIVES COMPANY LTD,"3,739.84",SEMI-IND CARELEAVERS,EXTERNAL AGENCIES AND BODIES,2103368009,1000083352
06.01.2022,CHILDREN AND FAMILIES,TRANSFORMING LIVES COMPANY LTD,"4,149.35",SEMI-IND CARELEAVERS,EXTERNAL AGENCIES AND BODIES,2103368021,1000083352
06.01.2022,CHILDREN AND FAMILIES,BRIGHT YOUNG FUTURES LTD,"1,882.13",SEMI-IND CARELEAVERS,EXTERNAL AGENCIES AND BODIES,2103368037,1000083958
06.01.2022,CHILDREN AND FAMILIES,BRIGHT YOUNG FUTURES LTD,"1,882.13",SEMI-IND CARELEAVERS,EXTERNAL AGENCIES AND BODIES,2103368042,1000083958
06.01.2022,CHILDREN AND FAMILIES,BRIGHT YOUNG FUTURES LTD,"2,878.57",SEMI-IND CARELEAVERS,EXTERNAL AGENCIES AND BODIES,2103368043,1000083958
06.01.2022,CHILDREN AND FAMILIES,QUALIFIED CARE RESIDENTS SERVICES LTD,"3,321.34",SEMI-IND CARELEAVERS,EXTERNAL AGENCIES AND BODIES,2103368032,1000085856
06.01.2022,CHILDREN AND FAMILIES,COMMITTED CARE HOUSING,"5,071.00",SEMI-IND CARELEAVERS,EXTERNAL AGENCIES AND BODIES,2103368026,1000086257
06.01.2022,CHILDREN AND FAMILIES,ELASTIKOS SERVICES LTD,"3,580.00",SEMI-IND CARELEAVERS,EXTERNAL AGENCIES AND BODIES,2103368038,1000086671
06.01.2022,CHILDREN AND FAMILIES,WYF VENTURES LTD,"2,103.35",SEMI-IND CARELEAVERS,EXTERNAL AGENCIES AND BODIES,2103368045,1000087022
06.01.2022,CHILDREN AND FAMILIES,WYF VENTURES LTD,"2,144.28",SEMI-IND CARELEAVERS,EXTERNAL AGENCIES AND BODIES,2103368047,1000087022
06.01.2022,CHILDREN AND FAMILIES,WYF VENTURES LTD,"2,170.00",SEMI-IND CARELEAVERS,EXTERNAL AGENCIES AND BODIES,2103368012,1000087022
06.01.2022,CHILDREN AND FAMILIES,PCS SERVICES LIMITED,"2,103.00",SEMI-IND CARELEAVERS,EXTERNAL AGENCIES AND BODIES,2103368018,1000087059
06.01.2022,CHILDREN AND FAMILIES,TRANSFORMING LIVES COMPANY LTD,310.00,SEMI-IND CARELEAVERS,OTHER PAYMENTS FOR CLIENTS,2103368008,1000083352
06.01.2022,CHILDREN AND FAMILIES,QUALIFIED CARE RESIDENTS SERVICES LTD,310.00,SEMI-IND CARELEAVERS,OTHER PAYMENTS FOR CLIENTS,2103368033,1000085856
06.01.2022,CHILDREN AND FAMILIES,WYF VENTURES LTD,265.72,SEMI-IND CARELEAVERS,OTHER PAYMENTS FOR CLIENTS,2103368046,1000087022
06.01.2022,CHILDREN AND FAMILIES,RELA SUPPORT SERVICES LTD,"15,588.57",SEMI-IND LAC 16-17,EXTERNAL AGENCIES AND BODIES,2103368087,1000073128
06.01.2022,CHILDREN AND FAMILIES,HARVEST CARE GROUP LTD,"5,258.90",SEMI-IND LAC 16-17,EXTERNAL AGENCIES AND BODIES,2103368078,1000079059
06.01.2022,CHILDREN AND FAMILIES,SYDNEY CARE LTD,"7,612.71",SEMI-IND LAC 16-17,EXTERNAL AGENCIES AND BODIES,2103368081,1000081598
06.01.2022,CHILDREN AND FAMILIES,COMMITTED CARE HOUSING,"25,743.28",SEMI-IND LAC 16-17,EXTERNAL AGENCIES AND BODIES,2103368085,1000086257
06.01.2022,CHILDREN AND FAMILIES,HIGHER LEVEL CARE LTD,"3,875.00",SEMI-IND LAC 16-17,EXTERNAL AGENCIES AND BODIES,2103368079,1000087055
06.01.2022,CHILDREN AND FAMILIES,ASPIRATIONZ LTD,"6,532.14",SEMI-IND LAC 16-17,EXTERNAL AGENCIES AND BODIES,2103368084,1000087333
06.01.2022,CHILDREN AND FAMILIES,SPRING CONSULT UK LTD,"8,750.00",SEMI-IND LAC 16-17,EXTERNAL AGENCIES AND BODIES,2103368067,1000087508
06.01.2022,CHILDREN AND FAMILIES,SYDNEY CARE LTD,310.00,SEMI-IND LAC 16-17,OTHER PAYMENTS FOR CLIENTS,2103368066,1000081598
06.01.2022,CHILDREN AND FAMILIES,COMMITTED CARE HOUSING,265.72,SEMI-IND LAC 16-17,OTHER PAYMENTS FOR CLIENTS,2103368086,1000086257
06.01.2022,CHILDREN AND FAMILIES,HIGHER LEVEL CARE LTD,310.00,SEMI-IND LAC 16-17,OTHER PAYMENTS FOR CLIENTS,2103368080,1000087055
06.01.2022,CHILDREN AND FAMILIES,GREATER LONDON FOSTERING,"5,874.44",STAYPUT- FOST CARERS,EXTERNAL AGENCIES AND BODIES,2103368035,1000029184
06.01.2022,CHILDREN AND FAMILIES,BARNARDOS SERVICES LTD,"1,550.00",STAYPUT- FOST CARERS,EXTERNAL AGENCIES AND BODIES,2103368029,1000063730
06.01.2022,CHILDREN AND FAMILIES,NEXUS FOSTERING,"1,324.01",STAYPUT- FOST CARERS,EXTERNAL AGENCIES AND BODIES,2103368013,1000069682
06.01.2022,CHILDREN AND FAMILIES,ZENITH CARS LTD,750.00,TEAM B,CLIENT TRANSPORT,5902504013,1000070570
06.01.2022,CHILDREN AND FAMILIES,CONTACT PROFESSIONALS,608.00,TEAM B,OTHER PAYMENTS FOR CLIENTS,2103368113,1000057263
06.01.2022,CHILDREN AND FAMILIES,ZENITH CARS LTD,940.00,TEAM C,CLIENT TRANSPORT,5902504013,1000070570
06.01.2022,CHILDREN AND FAMILIES,ZENITH CARS LTD,480.00,TEAM D,CLIENT TRANSPORT,5902504013,1000070570
06.01.2022,CHILDREN AND FAMILIES,LOOK AHEAD CARE AND SUPPORT LTD,"2,009.59",UASC CARELEAVERS,EXTERNAL AGENCIES AND BODIES,2103368020,1000047299
06.01.2022,CHILDREN AND FAMILIES,LOOK AHEAD CARE AND SUPPORT LTD,"2,921.04",UASC CARELEAVERS,EXTERNAL AGENCIES AND BODIES,2103367999,1000047299
06.01.2022,CHILDREN AND FAMILIES,METROPOLITAN HOUSING TRUST LTD,676.88,UASC CARELEAVERS,EXTERNAL AGENCIES AND BODIES,2103368011,1000047547
06.01.2022,CHILDREN AND FAMILIES,METROPOLITAN HOUSING TRUST LTD,676.88,UASC CARELEAVERS,EXTERNAL AGENCIES AND BODIES,2103368036,1000047547
06.01.2022,CHILDREN AND FAMILIES,OWNLIFE LTD,"2,790.00",UASC CARELEAVERS,EXTERNAL AGENCIES AND BODIES,2103368019,1000056219
06.01.2022,CHILDREN AND FAMILIES,NETPEX LTD CORPORATE SERVICES,"2,170.00",UASC CARELEAVERS,EXTERNAL AGENCIES AND BODIES,2103368001,1000076073
06.01.2022,CHILDREN AND FAMILIES,ELLIOT LEIGH TLC LTD,"1,713.68",UASC CARELEAVERS,EXTERNAL AGENCIES AND BODIES,2103368022,1000079022
06.01.2022,CHILDREN AND FAMILIES,ELLIOT LEIGH TLC LTD,"1,727.01",UASC CARELEAVERS,EXTERNAL AGENCIES AND BODIES,2103368014,1000079022
06.01.2022,CHILDREN AND FAMILIES,ELLIOT LEIGH TLC LTD,"2,391.34",UASC CARELEAVERS,EXTERNAL AGENCIES AND BODIES,2103368004,1000079022
06.01.2022,CHILDREN AND FAMILIES,ELLIOT LEIGH TLC LTD,"2,426.06",UASC CARELEAVERS,EXTERNAL AGENCIES AND BODIES,2103368024,1000079022
06.01.2022,CHILDREN AND FAMILIES,HARVEST CARE GROUP LTD,"2,103.66",UASC CARELEAVERS,EXTERNAL AGENCIES AND BODIES,2103368031,1000079059
06.01.2022,CHILDREN AND FAMILIES,WYF VENTURES LTD,"2,037.01",UASC CARELEAVERS,EXTERNAL AGENCIES AND BODIES,2103368007,1000087022
06.01.2022,CHILDREN AND FAMILIES,HARVEST CARE GROUP LTD,"3,387.84",UASC LAC 16-17,EXTERNAL AGENCIES AND BODIES,2103368077,1000079059
06.01.2022,CHILDREN AND FAMILIES,HARVEST CARE GROUP LTD,"3,653.56",UASC LAC 16-17,EXTERNAL AGENCIES AND BODIES,2103368090,1000079059
06.01.2022,CHILDREN AND FAMILIES,HARVEST CARE GROUP LTD,"3,653.57",UASC LAC 16-17,EXTERNAL AGENCIES AND BODIES,2103368068,1000079059
06.01.2022,CHILDREN AND FAMILIES,HARVEST CARE GROUP LTD,"3,653.57",UASC LAC 16-17,EXTERNAL AGENCIES AND BODIES,2103368069,1000079059
06.01.2022,CHILDREN AND FAMILIES,HARVEST CARE GROUP LTD,"3,653.57",UASC LAC 16-17,EXTERNAL AGENCIES AND BODIES,2103368088,1000079059
06.01.2022,CHILDREN AND FAMILIES,HARVEST CARE GROUP LTD,"3,653.57",UASC LAC 16-17,EXTERNAL AGENCIES AND BODIES,2103368089,1000079059
06.01.2022,CHILDREN AND FAMILIES,HARVEST CARE GROUP LTD,"3,653.57",UASC LAC 16-17,EXTERNAL AGENCIES AND BODIES,2103368095,1000079059
06.01.2022,CHILDREN AND FAMILIES,PCS SERVICES LIMITED,382.00,UASC LAC 16-17,EXTERNAL AGENCIES AND BODIES,2103368091,1000087059
06.01.2022,CHILDREN AND FAMILIES,PCS SERVICES LIMITED,"3,244.28",UASC LAC 16-17,EXTERNAL AGENCIES AND BODIES,2103368072,1000087059
06.01.2022,CHILDREN AND FAMILIES,PCS SERVICES LIMITED,"3,244.28",UASC LAC 16-17,EXTERNAL AGENCIES AND BODIES,2103368093,1000087059
06.01.2022,CHILDREN AND FAMILIES,PCS SERVICES LIMITED,"3,747.14",UASC LAC 16-17,EXTERNAL AGENCIES AND BODIES,2103368082,1000087059
06.01.2022,CHILDREN AND FAMILIES,DREAMFO HOUSING LTD,"3,321.34",UASC LAC 16-17,EXTERNAL AGENCIES AND BODIES,2103368070,1000087273
06.01.2022,CHILDREN AND FAMILIES,DREAMFO HOUSING LTD,"3,321.34",UASC LAC 16-17,EXTERNAL AGENCIES AND BODIES,2103368074,1000087273
06.01.2022,CHILDREN AND FAMILIES,HARVEST CARE GROUP LTD,265.72,UASC LAC 16-17,OTHER PAYMENTS FOR CLIENTS,2103368076,1000079059
06.01.2022,CHILDREN AND FAMILIES,PCS SERVICES LIMITED,265.72,UASC LAC 16-17,OTHER PAYMENTS FOR CLIENTS,2103368073,1000087059
06.01.2022,CHILDREN AND FAMILIES,PCS SERVICES LIMITED,265.72,UASC LAC 16-17,OTHER PAYMENTS FOR CLIENTS,2103368094,1000087059
06.01.2022,CHILDREN AND FAMILIES,DREAMFO HOUSING LTD,310.00,UASC LAC 16-17,OTHER PAYMENTS FOR CLIENTS,2103368071,1000087273
06.01.2022,CHILDREN AND FAMILIES,DREAMFO HOUSING LTD,310.00,UASC LAC 16-17,OTHER PAYMENTS FOR CLIENTS,2103368075,1000087273
06.01.2022,CHILDREN AND FAMILIES,IMAGO LTD,"27,819.00",YOUNG CARERS SERVICE,EXTERNAL AGENCIES AND BODIES,5902503759,1000076913
06.01.2022,COMMUNITIES,SUPREME CARE SERVICES LTD,611.32,NO RECOURSE TO PUBLIC FUNDS,HOMECARE - C&V,2103368154,1000059416
06.01.2022,CUSTOMER EXPERIENCE,MRO PEOPLE LTD,850.00,QUALITY & TRAINING,TRAINING,5902503927,1000083017
06.01.2022,CUSTOMER EXPERIENCE HGF,VP-AV LTD,"21,864.00",CORONER'S,COMMS & COMPUTING CONTRACT CHARGES,5902503934,1000003888
06.01.2022,DSG,ST JOHNS & ST CLEMENTS CE SCHOOL,"5,000.00",INTERVENTION FUND,CONSULTANTS SERVICES,5902503995,5001000073
06.01.2022,EDUCATION,INVESTEC ASSET FINANCE PLC,334.44,THOMAS CALTON CENTRE,OP LEASE/HIRE CHARGES:PLANT/EQUIP/FURNIT,5902503993,1000046072
06.01.2022,ENVIRONMENT AND LEISURE,CONNICK TREE CARE REIGATE LTD,640.00,CAPITAL PS (LEISURE),CONSTRUCTION FEES  - EXTERNAL,5902504001,1000070069
06.01.2022,ENVIRONMENT DIRECTORATE,PERFORMANCE CHEMICALS LTD,442.80,ESTATE CLEANING-GENERAL,MATERIALS,5902503821,1000037129
06.01.2022,ENVIRONMENT DIRECTORATE,NPOWER LTD,374.32,STREET TRADING A/C,ELECTRICITY,5902503961,1000078994
06.01.2022,F & C S EXCLUDING CORPORATE BUDGETS,DSI BILLING SERVICES LTD,"2,597.74",ADMINISTRATIVE SUPPORT,POSTAGES,5902503939,1000058640
06.01.2022,F & C S EXCLUDING CORPORATE BUDGETS,REDACTED PERSONAL DATA,500.00,SESS,OTHER PAYMENTS FOR CLIENTS,REDACTED,REDACTED
06.01.2022,F & C S EXCLUDING CORPORATE BUDGETS,REDACTED PERSONAL DATA,500.00,SESS,OTHER PAYMENTS FOR CLIENTS,REDACTED,REDACTED
06.01.2022,F & C S EXCLUDING CORPORATE BUDGETS,REDACTED PERSONAL DATA,500.00,SESS,OTHER PAYMENTS FOR CLIENTS,REDACTED,REDACTED
06.01.2022,F & C S EXCLUDING CORPORATE BUDGETS,REDACTED PERSONAL DATA,500.00,SESS,OTHER PAYMENTS FOR CLIENTS,REDACTED,REDACTED
06.01.2022,F & C S EXCLUDING CORPORATE BUDGETS,REDACTED PERSONAL DATA,500.00,SESS,OTHER PAYMENTS FOR CLIENTS,REDACTED,REDACTED
06.01.2022,F & C S EXCLUDING CORPORATE BUDGETS,REDACTED PERSONAL DATA,500.00,SESS,OTHER PAYMENTS FOR CLIENTS,REDACTED,REDACTED
06.01.2022,F & C S EXCLUDING CORPORATE BUDGETS,REDACTED PERSONAL DATA,500.00,SESS,OTHER PAYMENTS FOR CLIENTS,REDACTED,REDACTED
06.01.2022,F & C S EXCLUDING CORPORATE BUDGETS,REDACTED PERSONAL DATA,500.00,SESS,OTHER PAYMENTS FOR CLIENTS,REDACTED,REDACTED
06.01.2022,F & C S EXCLUDING CORPORATE BUDGETS,REDACTED PERSONAL DATA,500.00,SESS,OTHER PAYMENTS FOR CLIENTS,REDACTED,REDACTED
06.01.2022,F & C S EXCLUDING CORPORATE BUDGETS,REDACTED PERSONAL DATA,500.00,SESS,OTHER PAYMENTS FOR CLIENTS,REDACTED,REDACTED
06.01.2022,F & C S EXCLUDING CORPORATE BUDGETS,REDACTED PERSONAL DATA,500.00,SESS,OTHER PAYMENTS FOR CLIENTS,REDACTED,REDACTED
06.01.2022,HOUSING GENERAL FUND,PELLINGS LLP,"1,150.00",CAPITAL PS (HOUSING GF),CAPITAL GRANTS,5902503769,1009262
06.01.2022,HOUSING HRA,PELLINGS LLP,"7,546.00",CAPITAL PS (HRA),CONSTRUCTION FEES  - EXTERNAL,5902503876,1009262
06.01.2022,HOUSING HRA,ROBINSON LOW FRANCIS LLP,985.00,CAPITAL PS (HRA),CONSTRUCTION FEES - EMPLOYERS AGENT,5902503881,1000025405
06.01.2022,HOUSING HRA,DURKAN LTD,"85,028.40",CAPITAL PS (HRA),CONSTRUCTION MAIN CONTRACT -CERTIFICATED,2103367842,3000000960
06.01.2022,HOUSING HRA,GUILDMORE LTD,"377,135.74",CAPITAL PS (HRA),CONSTRUCTION MAIN CONTRACT -CERTIFICATED,2103367841,3000002150
06.01.2022,LEISURE DIRECTORATE,WESTMINSTER WASTE,"1,877.80",CEMETERIES,OTHER CONTRACTORS,5902503965,1000080933
06.01.2022,LEISURE DIRECTORATE,FMG CONSULTING LTD,"1,125.00",FACILITIES MANAGEMENT,PROFESSIONAL FEES,5902503930,1000083922
06.01.2022,NEW BUILD,BEACON PARTNERSHIP LLP,"2,826.25",DEVELOPMENT DELIVERY,PROFESSIONAL FEES,5902503868,1000082300
06.01.2022,PUBLIC HEALTH,REDACTED PERSONAL DATA,500.00,COVID-19 CONTROL OUTBREAK MGMNT.FUND,OTHER PAYMENTS FOR CLIENTS,REDACTED,REDACTED
06.01.2022,PUBLIC HEALTH,REDACTED PERSONAL DATA,500.00,COVID-19 CONTROL OUTBREAK MGMNT.FUND,OTHER PAYMENTS FOR CLIENTS,REDACTED,REDACTED
06.01.2022,PUBLIC HEALTH,MILLWALL COMMUNITY TRUST,"11,232.00",PLACE & HEALTH IMPROVEMENT,EXTERNAL AGENCIES AND BODIES,5902503983,11011221
06.01.2022,PUBLIC HEALTH,COIN STREET CENTRE TRUST,576.00,PLACE & HEALTH IMPROVEMENT,EXTERNAL AGENCIES AND BODIES,5902504000,1000046703
06.01.2022,PUBLIC HEALTH,WILD LIFE DAY CAMPS LTD,"6,912.00",PLACE & HEALTH IMPROVEMENT,EXTERNAL AGENCIES AND BODIES,5902503997,1000086964
06.01.2022,RESIDENT SERVICES HGF,REDACTED PERSONAL DATA,"2,700.00",HOMELESS PROJECTS,GRANTS,REDACTED,REDACTED
06.01.2022,RESIDENT SERVICES HGF,QUAYS PROPERTIES UK LIMITED,907.41,HOMELESS PROJECTS,GRANTS,5902504002,1000086767
06.01.2022,RESIDENT SERVICES HGF,SOUTH OF THE RIVER INVESTMENTS LTD,"3,237.00",NIGHTLY TA (NSC),EXTERNAL AGENCIES AND BODIES,5902503829,1000073638
06.01.2022,SBS OPERATIONS,TRAVIS PERKINS TRADING COMPANY LTD,419.50,NUNHEAD DD,MATERIALS,5902503887,1514319
06.01.2022,SBS OPERATIONS,TRAVIS PERKINS TRADING COMPANY LTD,368.32,SBS AIDS AND ADAPTATIONS,MATERIALS,5902503905,1514319
06.01.2022,SOUTHWARK BUILDING SERVICES,N & C BUILDING MATERIALS,481.65,STORES/LOGISTICS,CREDITORS -GR/IR CLEARING ACCOUNT,5902503753,1005586
06.01.2022,SOUTHWARK BUILDING SERVICES,"BROWNING, JONES & MORRIS LTD",609.84,STORES/LOGISTICS,CREDITORS -GR/IR CLEARING ACCOUNT,5902503757,1027429
06.01.2022,SOUTHWARK BUILDING SERVICES,"BROWNING, JONES & MORRIS LTD","1,697.40",STORES/LOGISTICS,CREDITORS -GR/IR CLEARING ACCOUNT,5902503758,1027429
06.01.2022,SOUTHWARK BUILDING SERVICES,"BROWNING, JONES & MORRIS LTD","1,697.40",STORES/LOGISTICS,CREDITORS -GR/IR CLEARING ACCOUNT,5902503758,1027429
06.01.2022,SOUTHWARK BUILDING SERVICES,"BROWNING, JONES & MORRIS LTD","2,200.00",STORES/LOGISTICS,CREDITORS -GR/IR CLEARING ACCOUNT,5902503756,1027429
06.01.2022,SOUTHWARK BUILDING SERVICES,LONDON TOOLS LIMITED,268.50,STORES/LOGISTICS,CREDITORS -GR/IR CLEARING ACCOUNT,5902503762,1000003017
06.01.2022,SOUTHWARK BUILDING SERVICES,LONDON TOOLS LIMITED,420.00,STORES/LOGISTICS,CREDITORS -GR/IR CLEARING ACCOUNT,5902503764,1000003017
06.01.2022,SOUTHWARK BUILDING SERVICES,LONDON TOOLS LIMITED,840.00,STORES/LOGISTICS,CREDITORS -GR/IR CLEARING ACCOUNT,5902503764,1000003017
06.01.2022,SOUTHWARK BUILDING SERVICES,LONDON TOOLS LIMITED,"1,185.00",STORES/LOGISTICS,CREDITORS -GR/IR CLEARING ACCOUNT,5902503763,1000003017
06.01.2022,SOUTHWARK BUILDING SERVICES,LONDON TOOLS LIMITED,"1,950.00",STORES/LOGISTICS,CREDITORS -GR/IR CLEARING ACCOUNT,5902503762,1000003017
06.01.2022,STRATEGIC FINANCING BUDGETS,COMENSURA LTD,"366,508.73",AGENCY RECOVERY,AGENCY STAFF,5902503986,1000051261
07.01.2022,ADULT SOCIAL CARE,F A ALBIN AND SONS,"9,549.00",APPOINTEESHIPS,OTHER PAYMENTS FOR CLIENTS,2103368294,11313949
07.01.2022,ADULT SOCIAL CARE,REDACTED PERSONAL DATA,262.60,APPOINTEESHIPS,OTHER PAYMENTS FOR CLIENTS,REDACTED,REDACTED
07.01.2022,ADULT SOCIAL CARE,MADEIRA FLOWER LTD T/A MARIAS KITCHEN,848.95,ASW - PROFESSIONAL DEVELOPMENT,REFRESHMENTS FOR MEETINGS,5902504185,1000058840
07.01.2022,ADULT SOCIAL CARE,BEDE HOUSE ASSOCIATION,"1,000.00",DIR OF ASC,EXTERNAL AGENCIES AND BODIES,5902504133,1553877
07.01.2022,ADULT SOCIAL CARE,BEDE HOUSE ASSOCIATION,"5,000.00",DIR OF ASC,EXTERNAL AGENCIES AND BODIES,5902504157,1553877
07.01.2022,ADULT SOCIAL CARE,THAMES REACH,"2,131.69",DIR OF ASC,EXTERNAL AGENCIES AND BODIES,5902504141,1723415
07.01.2022,ADULT SOCIAL CARE,ANCHOR TRUST,"71,036.84",DIR OF ASC,EXTERNAL AGENCIES AND BODIES,5902504128,11257534
07.01.2022,ADULT SOCIAL CARE,SWK DISABLEMENT ASSN,"2,249.48",DIR OF ASC,EXTERNAL AGENCIES AND BODIES,5902504181,1000011698
07.01.2022,ADULT SOCIAL CARE,SWK DISABLEMENT ASSN,"7,105.62",DIR OF ASC,EXTERNAL AGENCIES AND BODIES,5902504178,1000011698
07.01.2022,ADULT SOCIAL CARE,SWK DISABLEMENT ASSN,"10,662.51",DIR OF ASC,EXTERNAL AGENCIES AND BODIES,5902504176,1000011698
07.01.2022,ADULT SOCIAL CARE,KAIROS COMMUNITY TRUST,356.82,DIR OF ASC,EXTERNAL AGENCIES AND BODIES,5902504168,1000025479
07.01.2022,ADULT SOCIAL CARE,KAIROS COMMUNITY TRUST,557.53,DIR OF ASC,EXTERNAL AGENCIES AND BODIES,5902504170,1000025479
07.01.2022,ADULT SOCIAL CARE,CHILDREN'S COMPLEX  CARE LTD,"1,703.49",DIR OF ASC,EXTERNAL AGENCIES AND BODIES,5902504120,1000069262
07.01.2022,ADULT SOCIAL CARE,CHILDREN'S COMPLEX  CARE LTD,"5,329.21",DIR OF ASC,EXTERNAL AGENCIES AND BODIES,5902504117,1000069262
07.01.2022,ADULT SOCIAL CARE,CHILDREN'S COMPLEX  CARE LTD,"8,074.52",DIR OF ASC,EXTERNAL AGENCIES AND BODIES,5902504115,1000069262
07.01.2022,ADULT SOCIAL CARE,THAMES HOMECARE SERVICE LTD,"6,537.17",DIR OF ASC,EXTERNAL AGENCIES AND BODIES,5902504136,1000079295
07.01.2022,ADULT SOCIAL CARE,THAMES SENIOR HOME CARE LTD,"2,587.99",DIR OF ASC,EXTERNAL AGENCIES AND BODIES,5902504116,1000086068
07.01.2022,ADULT SOCIAL CARE,KOPE MEDICS LTD,262.08,DIR OF ASC,EXTERNAL AGENCIES AND BODIES,5902504126,1000087113
07.01.2022,ADULT SOCIAL CARE,KOPE MEDICS LTD,852.67,DIR OF ASC,EXTERNAL AGENCIES AND BODIES,5902504124,1000087113
07.01.2022,ADULT SOCIAL CARE,KOPE MEDICS LTD,"1,242.23",DIR OF ASC,EXTERNAL AGENCIES AND BODIES,5902504123,1000087113
07.01.2022,ADULT SOCIAL CARE,SUPREME CARE SERVICES LTD,"3,272.36",DISCHARGE TO ACCESS,HOMECARE - C&V,2103368217,1000059416
07.01.2022,ADULT SOCIAL CARE,SUPREME CARE SERVICES LTD,881.02,PHY LTS 18-64,HOMECARE - C&V,2103368221,1000059416
07.01.2022,ADULT SOCIAL CARE,SUPREME CARE SERVICES LTD,323.64,PHY LTS 65+,HOMECARE - C&V,2103368215,1000059416
07.01.2022,ADULT SOCIAL CARE,SUPREME CARE SERVICES LTD,431.52,PHY LTS 65+,HOMECARE - C&V,2103368207,1000059416
07.01.2022,ADULT SOCIAL CARE,SUPREME CARE SERVICES LTD,827.08,PHY LTS 65+,HOMECARE - C&V,2103368220,1000059416
07.01.2022,ADULT SOCIAL CARE,SUPREME CARE SERVICES LTD,287.68,PHY STS 65+,HOMECARE - IC,2103368213,1000059416
07.01.2022,ADULT SOCIAL CARE,SUPREME CARE SERVICES LTD,341.62,PHY STS 65+,HOMECARE - IC,2103368219,1000059416
07.01.2022,ADULT SOCIAL CARE,SUPREME CARE SERVICES LTD,548.39,PHY STS 65+,HOMECARE - IC,2103368205,1000059416
07.01.2022,ADULT SOCIAL CARE,SUPREME CARE SERVICES LTD,755.16,PHY STS 65+,HOMECARE - IC,2103368209,1000059416
07.01.2022,ASSET MANAGEMENT,PROPERTY FACILITIES GROUP LTD,"1,934.45",DISREPAIR,PAYMENTS FOR LEGAL SERVICES,5902504189,1000063713
07.01.2022,ASSET MANAGEMENT,PROPERTY FACILITIES GROUP LTD,"1,967.12",DISREPAIR,PAYMENTS FOR LEGAL SERVICES,5902504188,1000063713
07.01.2022,ASSET MANAGEMENT,PROPERTY FACILITIES GROUP LTD,"3,378.47",DISREPAIR,PAYMENTS FOR LEGAL SERVICES,5902504184,1000063713
07.01.2022,ASSET MANAGEMENT,PROPERTY FACILITIES GROUP LTD,"5,672.73",DISREPAIR,PAYMENTS FOR LEGAL SERVICES,5902504186,1000063713
07.01.2022,ASSET MANAGEMENT,PROPERTY FACILITIES GROUP LTD,"6,159.84",DISREPAIR,PAYMENTS FOR LEGAL SERVICES,5902504199,1000063713
07.01.2022,ASSET MANAGEMENT,RELIANCE HIGH-TECH LTD,743.00,REPAIRS OPERATIONS,OFFICE EXPENSES,5902504113,1000079374
07.01.2022,ASSET MANAGEMENT HGF,OT GROUP LIMITED,424.07,QUEENS RD 1 (BLOCK F),STATIONERY,5902504193,1000087285
07.01.2022,CENTRAL FUNCTIONS,KENT COUNTY COUNCIL - LASER,283.54,COMMERCIAL PROPERTIES,GAS,5902503825,1000012926
07.01.2022,CENTRAL FUNCTIONS,1ST ACE SECURITY LTD,"17,640.00",LEDBURY ESTATE,SECURITY SERVICES,5902504061,1000006992
07.01.2022,CHIEF EXECUTIVE,METIS CONSULTANTS LIMITED,"1,414.60",CAPITAL PS (REGEN),CONSTR'N SUB CONTRACT - NON CERTIFICATED,5902504180,1000086330
07.01.2022,CHIEF EXECUTIVE,HAYATSU ARCHITECTS LTD,"5,784.00",CAPITAL PS (REGEN),CONSTRUCTION FEES,5902504135,1000082843
07.01.2022,CHIEF EXECUTIVE,SHARPE PRITCHARD LLP,828.00,CAPITAL PS (REGEN),CONSTRUCTION FEES - LEGAL,5902504144,1790085
07.01.2022,CHILDREN AND FAMILIES,FAMILY FUTURES CIC,"12,450.00",ADOPTION SUPP FUND,PROFESSIONAL FEES,5902504104,1000027893
07.01.2022,CHILDREN AND FAMILIES,REVIVE THERAPY LTD,"4,500.00",ADOPTION SUPP FUND,PROFESSIONAL FEES,5902504103,1000086960
07.01.2022,CHILDREN AND FAMILIES,REDACTED PERSONAL DATA,"1,320.00",ADOPTION SUPP FUND,PROFESSIONAL FEES,REDACTED,REDACTED
07.01.2022,CHILDREN AND FAMILIES,OPTIMUM FOCUS COMPANY LTD,834.17,FAMILY GROUP CONF�S,PROFESSIONAL FEES,5902504105,1000081322
07.01.2022,CHILDREN AND FAMILIES,AV OUTCOMES LTD,"5,400.00",OFSTED PREPARATION,EXTERNAL AGENCIES AND BODIES,5902504161,1000054641
07.01.2022,CHILDREN AND FAMILIES,KM MANAGEMENT AND CONSULTANCY LTD,"4,200.00",OFSTED PREPARATION,EXTERNAL AGENCIES AND BODIES,5902504164,1000078756
07.01.2022,CHILDREN AND FAMILIES,PG PASSENGER SERVICES LIMITED,260.00,P & R CARE TEAM,HIRED VEHICLES,5902504197,1000087367
07.01.2022,CHILDREN AND FAMILIES,PG PASSENGER SERVICES LIMITED,260.00,P & R CARE TEAM,HIRED VEHICLES,5902504200,1000087367
07.01.2022,CHILDREN AND FAMILIES,PG PASSENGER SERVICES LIMITED,298.00,P & R CARE TEAM,HIRED VEHICLES,5902504198,1000087367
07.01.2022,CHILDREN AND FAMILIES,REDACTED PERSONAL DATA,302.86,SPECIAL GUARDIANSHIP,PAYMENTS TO CARERS,REDACTED,REDACTED
07.01.2022,CHILDREN AND FAMILIES,REDACTED PERSONAL DATA,297.00,UASC CARELEAVERS,OTHER PAYMENTS FOR CLIENTS,REDACTED,REDACTED
07.01.2022,CORPORATE & DEMOCRATIC CORE,BOLD CONTENT VIDEO LTD,"5,570.00",CHIEF EXECUTIVE,RECRUITMENT ADVERTISING,5902504142,1000087734
07.01.2022,CUSTOMER EXPERIENCE HGF,INVOTRA CONSULTING LIMITED,850.00,DIGITAL DELIVERY,TRAINING,5902504174,1000087372
07.01.2022,DSG,CHARLOTTE  SHARMAN PRIMARY SCHOOL,"27,900.00",ALTERNATIVE PROVISION,EXTERNAL AGENCIES AND BODIES,2103368223,5001000016
07.01.2022,DSG,FRIARS PRIMARY (FOUNDATION) SCHOOL,"21,700.00",ALTERNATIVE PROVISION,EXTERNAL AGENCIES AND BODIES,2103368224,5001000033
07.01.2022,DSG,SOUTHWARK INCLUSIVE LEARNING SERVICE,"2,936.25",COVID-19 SCHOOLS GRANTS,SCHOOLS CAPITATION,2103368290,5001000105
07.01.2022,DSG,SOUTHWARK INCLUSIVE LEARNING SERVICE,"3,855.47",COVID-19 SCHOOLS GRANTS,SCHOOLS CAPITATION,2103368367,5001000105
07.01.2022,DSG,ALBION PRIMARY SCHOOL,"5,610.94",COVID-19 SCHOOLS GRANTS,SCHOOLS CAPITATION,2103368302,5001000000
07.01.2022,DSG,ALBION PRIMARY SCHOOL,"6,343.75",COVID-19 SCHOOLS GRANTS,SCHOOLS CAPITATION,2103368225,5001000000
07.01.2022,DSG,ALFRED SALTER PRIMARY SCHOOL,"4,311.56",COVID-19 SCHOOLS GRANTS,SCHOOLS CAPITATION,2103368330,5001000005
07.01.2022,DSG,ALFRED SALTER PRIMARY SCHOOL,"4,531.25",COVID-19 SCHOOLS GRANTS,SCHOOLS CAPITATION,2103368253,5001000005
07.01.2022,DSG,BELLENDEN PRIMARY SCHOOL,"2,835.00",COVID-19 SCHOOLS GRANTS,SCHOOLS CAPITATION,2103368303,5001000007
07.01.2022,DSG,BELLENDEN PRIMARY SCHOOL,"3,262.50",COVID-19 SCHOOLS GRANTS,SCHOOLS CAPITATION,2103368226,5001000007
07.01.2022,DSG,BEORMUND PRIMARY SCHOOL,"1,812.50",COVID-19 SCHOOLS GRANTS,SCHOOLS CAPITATION,2103368287,5001000008
07.01.2022,DSG,BEORMUND PRIMARY SCHOOL,"2,467.50",COVID-19 SCHOOLS GRANTS,SCHOOLS CAPITATION,2103368364,5001000008
07.01.2022,DSG,BESSEMER GRANGE PRIMARY SCHOOL,"2,835.00",COVID-19 SCHOOLS GRANTS,SCHOOLS CAPITATION,2103368332,5001000009
07.01.2022,DSG,BESSEMER GRANGE PRIMARY SCHOOL,"3,153.75",COVID-19 SCHOOLS GRANTS,SCHOOLS CAPITATION,2103368255,5001000009
07.01.2022,DSG,BETHLEM & MAUDSLEY HOSPITAL SCHOOL,616.88,COVID-19 SCHOOLS GRANTS,SCHOOLS CAPITATION,2103368369,5001000010
07.01.2022,DSG,BETHLEM & MAUDSLEY HOSPITAL SCHOOL,"1,500.00",COVID-19 SCHOOLS GRANTS,SCHOOLS CAPITATION,2103368292,5001000010
07.01.2022,DSG,BOUCHER C OF E PRIMARY SCHOOL,"1,830.94",COVID-19 SCHOOLS GRANTS,SCHOOLS CAPITATION,2103368334,5001000011
07.01.2022,DSG,BOUCHER C OF E PRIMARY SCHOOL,"2,247.50",COVID-19 SCHOOLS GRANTS,SCHOOLS CAPITATION,2103368257,5001000011
07.01.2022,DSG,BRUNSWICK PARK PRIMARY SCHOOL,"6,168.75",COVID-19 SCHOOLS GRANTS,SCHOOLS CAPITATION,2103368333,5001000013
07.01.2022,DSG,BRUNSWICK PARK PRIMARY SCHOOL,"6,925.50",COVID-19 SCHOOLS GRANTS,SCHOOLS CAPITATION,2103368256,5001000013
07.01.2022,DSG,CAMELOT PRIMARY SCHOOL,"4,370.63",COVID-19 SCHOOLS GRANTS,SCHOOLS CAPITATION,2103368304,5001000014
07.01.2022,DSG,CAMELOT PRIMARY SCHOOL,"4,821.25",COVID-19 SCHOOLS GRANTS,SCHOOLS CAPITATION,2103368227,5001000014
07.01.2022,DSG,CHARLOTTE  SHARMAN PRIMARY SCHOOL,"2,421.56",COVID-19 SCHOOLS GRANTS,SCHOOLS CAPITATION,2103368359,5001000016
07.01.2022,DSG,CHARLOTTE  SHARMAN PRIMARY SCHOOL,"2,628.25",COVID-19 SCHOOLS GRANTS,SCHOOLS CAPITATION,2103368282,5001000016
07.01.2022,DSG,ST JOSEPHS RC JUNIOR  SCHOOL,"2,775.94",COVID-19 SCHOOLS GRANTS,SCHOOLS CAPITATION,2103368356,5001000017
07.01.2022,DSG,ST JOSEPHS RC JUNIOR  SCHOOL,"2,827.50",COVID-19 SCHOOLS GRANTS,SCHOOLS CAPITATION,2103368279,5001000017
07.01.2022,DSG,ST JOSEPHS CATHOLIC INFANTS SCHOOL,"1,240.31",COVID-19 SCHOOLS GRANTS,SCHOOLS CAPITATION,2103368357,5001000018
07.01.2022,DSG,ST JOSEPHS CATHOLIC INFANTS SCHOOL,"1,703.75",COVID-19 SCHOOLS GRANTS,SCHOOLS CAPITATION,2103368280,5001000018
07.01.2022,DSG,ST JUDES CHURCH OF ENGLAND PRIMARY,"1,299.38",COVID-19 SCHOOLS GRANTS,SCHOOLS CAPITATION,2103368346,5001000019
07.01.2022,DSG,ST JUDES CHURCH OF ENGLAND PRIMARY,"1,341.25",COVID-19 SCHOOLS GRANTS,SCHOOLS CAPITATION,2103368269,5001000019
07.01.2022,DSG,CHERRY GARDEN SCHOOL,"3,407.50",COVID-19 SCHOOLS GRANTS,SCHOOLS CAPITATION,2103368289,5001000020
07.01.2022,DSG,CHERRY GARDEN SCHOOL,"3,855.47",COVID-19 SCHOOLS GRANTS,SCHOOLS CAPITATION,2103368366,5001000020
07.01.2022,DSG,COMBER GROVE PRIMARY SCHOOL,"2,716.88",COVID-19 SCHOOLS GRANTS,SCHOOLS CAPITATION,2103368306,5001000022
07.01.2022,DSG,COMBER GROVE PRIMARY SCHOOL,"3,153.75",COVID-19 SCHOOLS GRANTS,SCHOOLS CAPITATION,2103368229,5001000022
07.01.2022,DSG,CRAMPTON PRIMARY SCHOOL,"1,712.81",COVID-19 SCHOOLS GRANTS,SCHOOLS CAPITATION,2103368307,5001000023
07.01.2022,DSG,CRAMPTON PRIMARY SCHOOL,"2,030.00",COVID-19 SCHOOLS GRANTS,SCHOOLS CAPITATION,2103368230,5001000023
07.01.2022,DSG,CRAWFORD PRIMARY SCHOOL,"6,733.13",COVID-19 SCHOOLS GRANTS,SCHOOLS CAPITATION,2103368308,5001000024
07.01.2022,DSG,CRAWFORD PRIMARY SCHOOL,"7,467.50",COVID-19 SCHOOLS GRANTS,SCHOOLS CAPITATION,2103368231,5001000024
07.01.2022,DSG,DOG KENNEL HILL PRIMARY SCHOOL,"3,248.44",COVID-19 SCHOOLS GRANTS,SCHOOLS CAPITATION,2103368309,5001000025
07.01.2022,DSG,DOG KENNEL HILL PRIMARY SCHOOL,"3,480.00",COVID-19 SCHOOLS GRANTS,SCHOOLS CAPITATION,2103368232,5001000025
07.01.2022,DSG,DULWICH VILLAGE CE INFANTS SCHOOL,590.63,COVID-19 SCHOOLS GRANTS,SCHOOLS CAPITATION,2103368335,5001000027
07.01.2022,DSG,DULWICH VILLAGE CE INFANTS SCHOOL,652.50,COVID-19 SCHOOLS GRANTS,SCHOOLS CAPITATION,2103368258,5001000027
07.01.2022,DSG,GOODRICH PRIMARY SCHOOL,"3,839.06",COVID-19 SCHOOLS GRANTS,SCHOOLS CAPITATION,2103368310,5001000028
07.01.2022,DSG,GOODRICH PRIMARY SCHOOL,"4,495.00",COVID-19 SCHOOLS GRANTS,SCHOOLS CAPITATION,2103368233,5001000028
07.01.2022,DSG,GRANGE PRIMARY SCHOOL,"5,788.13",COVID-19 SCHOOLS GRANTS,SCHOOLS CAPITATION,2103368311,5001000029
07.01.2022,DSG,GRANGE PRIMARY SCHOOL,"6,307.50",COVID-19 SCHOOLS GRANTS,SCHOOLS CAPITATION,2103368234,5001000029
07.01.2022,DSG,ENGLISH MARTYRS RC PRIMARY SCHOOL,"3,484.69",COVID-19 SCHOOLS GRANTS,SCHOOLS CAPITATION,2103368336,5001000030
07.01.2022,DSG,ENGLISH MARTYRS RC PRIMARY SCHOOL,"3,915.00",COVID-19 SCHOOLS GRANTS,SCHOOLS CAPITATION,2103368259,5001000030
07.01.2022,DSG,EVELINA HOSPITAL SCHOOL,925.31,COVID-19 SCHOOLS GRANTS,SCHOOLS CAPITATION,2103368368,5001000031
07.01.2022,DSG,EVELINA HOSPITAL SCHOOL,"1,500.00",COVID-19 SCHOOLS GRANTS,SCHOOLS CAPITATION,2103368291,5001000031
07.01.2022,DSG,PHOENIX PRIMARY SCHOOL,"6,733.13",COVID-19 SCHOOLS GRANTS,SCHOOLS CAPITATION,2103368328,5001000032
07.01.2022,DSG,PHOENIX PRIMARY SCHOOL,"7,540.00",COVID-19 SCHOOLS GRANTS,SCHOOLS CAPITATION,2103368251,5001000032
07.01.2022,DSG,FRIARS PRIMARY (FOUNDATION) SCHOOL,"2,185.31",COVID-19 SCHOOLS GRANTS,SCHOOLS CAPITATION,2103368358,5001000033
07.01.2022,DSG,FRIARS PRIMARY (FOUNDATION) SCHOOL,"2,247.50",COVID-19 SCHOOLS GRANTS,SCHOOLS CAPITATION,2103368281,5001000033
07.01.2022,DSG,HEBER PRIMARY SCHOOL,"1,771.88",COVID-19 SCHOOLS GRANTS,SCHOOLS CAPITATION,2103368312,5001000035
07.01.2022,DSG,HEBER PRIMARY SCHOOL,"1,957.50",COVID-19 SCHOOLS GRANTS,SCHOOLS CAPITATION,2103368235,5001000035
07.01.2022,DSG,HOLLYDALE PRIMARY SCHOOL,"2,362.50",COVID-19 SCHOOLS GRANTS,SCHOOLS CAPITATION,2103368313,5001000036
07.01.2022,DSG,HOLLYDALE PRIMARY SCHOOL,"2,646.25",COVID-19 SCHOOLS GRANTS,SCHOOLS CAPITATION,2103368236,5001000036
07.01.2022,DSG,ILDERTON PRIMARY SCHOOL,"4,134.38",COVID-19 SCHOOLS GRANTS,SCHOOLS CAPITATION,2103368314,5001000037
07.01.2022,DSG,ILDERTON PRIMARY SCHOOL,"4,821.25",COVID-19 SCHOOLS GRANTS,SCHOOLS CAPITATION,2103368237,5001000037
07.01.2022,DSG,IVYDALE PRIMARY SCHOOL,"2,775.94",COVID-19 SCHOOLS GRANTS,SCHOOLS CAPITATION,2103368315,5001000038
07.01.2022,DSG,IVYDALE PRIMARY SCHOOL,"3,226.25",COVID-19 SCHOOLS GRANTS,SCHOOLS CAPITATION,2103368238,5001000038
07.01.2022,DSG,JOHN RUSKIN PRIMARY SCHOOL,"7,304.06",COVID-19 SCHOOLS GRANTS,SCHOOLS CAPITATION,2103368316,5001000040
07.01.2022,DSG,JOHN RUSKIN PRIMARY SCHOOL,"7,823.25",COVID-19 SCHOOLS GRANTS,SCHOOLS CAPITATION,2103368239,5001000040
07.01.2022,DSG,KEYWORTH PRIMARY SCHOOL,"4,311.56",COVID-19 SCHOOLS GRANTS,SCHOOLS CAPITATION,2103368317,5001000041
07.01.2022,DSG,KEYWORTH PRIMARY SCHOOL,"4,785.00",COVID-19 SCHOOLS GRANTS,SCHOOLS CAPITATION,2103368240,5001000041
07.01.2022,DSG,DULWICH WOOD PRIMARY SCHOOL,"2,835.00",COVID-19 SCHOOLS GRANTS,SCHOOLS CAPITATION,2103368318,5001000042
07.01.2022,DSG,DULWICH WOOD PRIMARY SCHOOL,"3,443.75",COVID-19 SCHOOLS GRANTS,SCHOOLS CAPITATION,2103368241,5001000042
07.01.2022,DSG,HAYMERLE SCHOOL,"2,682.50",COVID-19 SCHOOLS GRANTS,SCHOOLS CAPITATION,2103368286,5001000045
07.01.2022,DSG,HAYMERLE SCHOOL,"3,238.59",COVID-19 SCHOOLS GRANTS,SCHOOLS CAPITATION,2103368363,5001000045
07.01.2022,DSG,HIGHSHORE SCHOOL,"3,552.50",COVID-19 SCHOOLS GRANTS,SCHOOLS CAPITATION,2103368285,5001000046
07.01.2022,DSG,HIGHSHORE SCHOOL,"4,472.34",COVID-19 SCHOOLS GRANTS,SCHOOLS CAPITATION,2103368362,5001000046
07.01.2022,DSG,MICHAEL FARADAY PRIMARY SCHOOL,"4,075.31",COVID-19 SCHOOLS GRANTS,SCHOOLS CAPITATION,2103368319,5001000048
07.01.2022,DSG,MICHAEL FARADAY PRIMARY SCHOOL,"5,002.50",COVID-19 SCHOOLS GRANTS,SCHOOLS CAPITATION,2103368242,5001000048
07.01.2022,DSG,NOTRE DAME RC GIRLS SCHOOL,"9,213.75",COVID-19 SCHOOLS GRANTS,SCHOOLS CAPITATION,2103368361,5001000050
07.01.2022,DSG,NOTRE DAME RC GIRLS SCHOOL,"9,461.25",COVID-19 SCHOOLS GRANTS,SCHOOLS CAPITATION,2103368284,5001000050
07.01.2022,DSG,NOTRE DAME RC GIRLS SCHOOL,"23,840.00",COVID-19 SCHOOLS GRANTS,SCHOOLS CAPITATION,2103368222,5001000050
07.01.2022,DSG,OLIVER GOLDSMITH PRIMARY SCHOOL,"5,433.75",COVID-19 SCHOOLS GRANTS,SCHOOLS CAPITATION,2103368331,5001000051
07.01.2022,DSG,OLIVER GOLDSMITH PRIMARY SCHOOL,"6,235.00",COVID-19 SCHOOLS GRANTS,SCHOOLS CAPITATION,2103368254,5001000051
07.01.2022,DSG,PETER HILLS CE SCHOOL,"1,712.81",COVID-19 SCHOOLS GRANTS,SCHOOLS CAPITATION,2103368348,5001000053
07.01.2022,DSG,PETER HILLS CE SCHOOL,"2,102.50",COVID-19 SCHOOLS GRANTS,SCHOOLS CAPITATION,2103368271,5001000053
07.01.2022,DSG,PILGRIM'S WAY PRIMARY SCHOOL,"2,835.00",COVID-19 SCHOOLS GRANTS,SCHOOLS CAPITATION,2103368329,5001000054
07.01.2022,DSG,PILGRIM'S WAY PRIMARY SCHOOL,"3,226.25",COVID-19 SCHOOLS GRANTS,SCHOOLS CAPITATION,2103368252,5001000054
07.01.2022,DSG,RIVERSIDE PRIMARY SCHOOL,"4,193.44",COVID-19 SCHOOLS GRANTS,SCHOOLS CAPITATION,2103368320,5001000056
07.01.2022,DSG,RIVERSIDE PRIMARY SCHOOL,"4,785.00",COVID-19 SCHOOLS GRANTS,SCHOOLS CAPITATION,2103368243,5001000056
07.01.2022,DSG,ROBERT BROWNING PRIMARY SCHOOL,"2,657.81",COVID-19 SCHOOLS GRANTS,SCHOOLS CAPITATION,2103368321,5001000057
07.01.2022,DSG,ROBERT BROWNING PRIMARY SCHOOL,"2,900.00",COVID-19 SCHOOLS GRANTS,SCHOOLS CAPITATION,2103368244,5001000057
07.01.2022,DSG,ROTHERHITHE PRIMARY SCHOOL,"5,315.63",COVID-19 SCHOOLS GRANTS,SCHOOLS CAPITATION,2103368322,5001000058
07.01.2022,DSG,ROTHERHITHE PRIMARY SCHOOL,"5,582.50",COVID-19 SCHOOLS GRANTS,SCHOOLS CAPITATION,2103368245,5001000058
07.01.2022,DSG,RYE OAK PRIMARY SCHOOL,"6,759.38",COVID-19 SCHOOLS GRANTS,SCHOOLS CAPITATION,2103368352,5001000059
07.01.2022,DSG,RYE OAK PRIMARY SCHOOL,"7,297.25",COVID-19 SCHOOLS GRANTS,SCHOOLS CAPITATION,2103368275,5001000059
07.01.2022,DSG,SNOWSFIELDS PRIMARY SCHOOL,"2,529.84",COVID-19 SCHOOLS GRANTS,SCHOOLS CAPITATION,2103368323,5001000061
07.01.2022,DSG,SNOWSFIELDS PRIMARY SCHOOL,"2,838.00",COVID-19 SCHOOLS GRANTS,SCHOOLS CAPITATION,2103368246,5001000061
07.01.2022,DSG,SOUTHWARK PARK PRIMARY SCHOOL,"4,370.63",COVID-19 SCHOOLS GRANTS,SCHOOLS CAPITATION,2103368324,5001000062
07.01.2022,DSG,SOUTHWARK PARK PRIMARY SCHOOL,"4,966.25",COVID-19 SCHOOLS GRANTS,SCHOOLS CAPITATION,2103368247,5001000062
07.01.2022,DSG,ST ANTHONYS RC SCHOOL,"2,244.38",COVID-19 SCHOOLS GRANTS,SCHOOLS CAPITATION,2103368355,5001000064
07.01.2022,DSG,ST ANTHONYS RC SCHOOL,"2,573.75",COVID-19 SCHOOLS GRANTS,SCHOOLS CAPITATION,2103368278,5001000064
07.01.2022,DSG,ST FRANCESCA CABRINI PRIMARY SCHOOL,"2,953.13",COVID-19 SCHOOLS GRANTS,SCHOOLS CAPITATION,2103368354,5001000065
07.01.2022,DSG,ST FRANCESCA CABRINI PRIMARY SCHOOL,"3,335.00",COVID-19 SCHOOLS GRANTS,SCHOOLS CAPITATION,2103368277,5001000065
07.01.2022,DSG,ST GEORGES RC SCHOOL,"1,299.38",COVID-19 SCHOOLS GRANTS,SCHOOLS CAPITATION,2103368340,5001000068
07.01.2022,DSG,ST GEORGES RC SCHOOL,"1,595.00",COVID-19 SCHOOLS GRANTS,SCHOOLS CAPITATION,2103368263,5001000068
07.01.2022,DSG,ST GEORGES CE SCHOOL,"3,189.38",COVID-19 SCHOOLS GRANTS,SCHOOLS CAPITATION,2103368339,5001000069
07.01.2022,DSG,ST GEORGES CE SCHOOL,"3,733.75",COVID-19 SCHOOLS GRANTS,SCHOOLS CAPITATION,2103368262,5001000069
07.01.2022,DSG,ST JAMES CE SCHOOL,"8,918.44",COVID-19 SCHOOLS GRANTS,SCHOOLS CAPITATION,2103368341,5001000070
07.01.2022,DSG,ST JAMES CE SCHOOL,"10,295.00",COVID-19 SCHOOLS GRANTS,SCHOOLS CAPITATION,2103368264,5001000070
07.01.2022,DSG,ST JAMES THE GREAT RC SCHOOL,"2,480.63",COVID-19 SCHOOLS GRANTS,SCHOOLS CAPITATION,2103368337,5001000071
07.01.2022,DSG,ST JAMES THE GREAT RC SCHOOL,"3,045.00",COVID-19 SCHOOLS GRANTS,SCHOOLS CAPITATION,2103368260,5001000071
07.01.2022,DSG,ST JOHNS & ST CLEMENTS CE SCHOOL,"2,611.88",COVID-19 SCHOOLS GRANTS,SCHOOLS CAPITATION,2103368342,5001000073
07.01.2022,DSG,ST JOHNS & ST CLEMENTS CE SCHOOL,"2,753.00",COVID-19 SCHOOLS GRANTS,SCHOOLS CAPITATION,2103368265,5001000073
07.01.2022,DSG,THE ST THOMAS THE APOSTLE COLLEGE,"11,812.50",COVID-19 SCHOOLS GRANTS,SCHOOLS CAPITATION,2103368360,5001000074
07.01.2022,DSG,THE ST THOMAS THE APOSTLE COLLEGE,"12,107.50",COVID-19 SCHOOLS GRANTS,SCHOOLS CAPITATION,2103368283,5001000074
07.01.2022,DSG,ST JOHNS RC PRIMARY SCHOOL,"2,362.50",COVID-19 SCHOOLS GRANTS,SCHOOLS CAPITATION,2103368351,5001000075
07.01.2022,DSG,ST JOHNS RC PRIMARY SCHOOL,"2,646.25",COVID-19 SCHOOLS GRANTS,SCHOOLS CAPITATION,2103368274,5001000075
07.01.2022,DSG,ST JOSEPHS CATHOLIC SCHOOL,"2,539.69",COVID-19 SCHOOLS GRANTS,SCHOOLS CAPITATION,2103368345,5001000076
07.01.2022,DSG,ST JOSEPHS CATHOLIC SCHOOL,"2,682.50",COVID-19 SCHOOLS GRANTS,SCHOOLS CAPITATION,2103368268,5001000076
07.01.2022,DSG,ST JOSEPHS RC PRIMARY SCHOOL,"2,421.56",COVID-19 SCHOOLS GRANTS,SCHOOLS CAPITATION,2103368343,5001000077
07.01.2022,DSG,ST JOSEPHS RC PRIMARY SCHOOL,"2,791.25",COVID-19 SCHOOLS GRANTS,SCHOOLS CAPITATION,2103368266,5001000077
07.01.2022,DSG,ST JOSEPHS CATHOLIC PRIMARY SCHOOL,"1,830.94",COVID-19 SCHOOLS GRANTS,SCHOOLS CAPITATION,2103368344,5001000078
07.01.2022,DSG,ST JOSEPHS CATHOLIC PRIMARY SCHOOL,"2,138.75",COVID-19 SCHOOLS GRANTS,SCHOOLS CAPITATION,2103368267,5001000078
07.01.2022,DSG,ST MARY MAGDALENE CE SCHOOL,"1,890.00",COVID-19 SCHOOLS GRANTS,SCHOOLS CAPITATION,2103368347,5001000080
07.01.2022,DSG,ST MARY MAGDALENE CE SCHOOL,"2,175.00",COVID-19 SCHOOLS GRANTS,SCHOOLS CAPITATION,2103368270,5001000080
07.01.2022,DSG,ST PETERS CE SCHOOL,"2,362.50",COVID-19 SCHOOLS GRANTS,SCHOOLS CAPITATION,2103368349,5001000083
07.01.2022,DSG,ST PETERS CE SCHOOL,"2,718.75",COVID-19 SCHOOLS GRANTS,SCHOOLS CAPITATION,2103368272,5001000083
07.01.2022,DSG,ST SAVIOURS & ST OLAVES SCHOOL,"9,331.88",COVID-19 SCHOOLS GRANTS,SCHOOLS CAPITATION,2103368353,5001000084
07.01.2022,DSG,ST SAVIOURS & ST OLAVES SCHOOL,"9,570.00",COVID-19 SCHOOLS GRANTS,SCHOOLS CAPITATION,2103368276,5001000084
07.01.2022,DSG,CATHEDRAL SCHOOL OF ST SAVIOUR & MARY,"1,417.50",COVID-19 SCHOOLS GRANTS,SCHOOLS CAPITATION,2103368350,5001000088
07.01.2022,DSG,CATHEDRAL SCHOOL OF ST SAVIOUR & MARY,"1,595.00",COVID-19 SCHOOLS GRANTS,SCHOOLS CAPITATION,2103368273,5001000088
07.01.2022,DSG,TOWER BRIDGE PRIMARY SCHOOL,"3,484.69",COVID-19 SCHOOLS GRANTS,SCHOOLS CAPITATION,2103368325,5001000095
07.01.2022,DSG,TOWER BRIDGE PRIMARY SCHOOL,"3,951.25",COVID-19 SCHOOLS GRANTS,SCHOOLS CAPITATION,2103368248,5001000095
07.01.2022,DSG,TOWNSEND PRIMARY SCHOOL,"2,953.13",COVID-19 SCHOOLS GRANTS,SCHOOLS CAPITATION,2103368326,5001000096
07.01.2022,DSG,TOWNSEND PRIMARY SCHOOL,"3,226.25",COVID-19 SCHOOLS GRANTS,SCHOOLS CAPITATION,2103368249,5001000096
07.01.2022,DSG,TUKE SCHOOL,"2,972.50",COVID-19 SCHOOLS GRANTS,SCHOOLS CAPITATION,2103368288,5001000097
07.01.2022,DSG,TUKE SCHOOL,"3,701.25",COVID-19 SCHOOLS GRANTS,SCHOOLS CAPITATION,2103368365,5001000097
07.01.2022,DSG,VICTORY SCHOOL,"1,949.06",COVID-19 SCHOOLS GRANTS,SCHOOLS CAPITATION,2103368327,5001000098
07.01.2022,DSG,VICTORY SCHOOL,"2,247.50",COVID-19 SCHOOLS GRANTS,SCHOOLS CAPITATION,2103368250,5001000098
07.01.2022,DSG,GOVERNMENT EVENTS,399.00,LAC EDUCATION,TRAINING,5902504064,1000081438
07.01.2022,DSG,SOUTHWARK INCLUSIVE LEARNING SERVICE,"4,090.01",PUPIL PREMIUM,SCHOOLS CAPITATION,2103368414,5001000105
07.01.2022,DSG,ALBION PRIMARY SCHOOL,"6,000.00",PUPIL PREMIUM,SCHOOLS CAPITATION,2103368371,5001000000
07.01.2022,DSG,ALFRED SALTER PRIMARY SCHOOL,"6,000.00",PUPIL PREMIUM,SCHOOLS CAPITATION,2103368372,5001000005
07.01.2022,DSG,BELLENDEN PRIMARY SCHOOL,"6,000.00",PUPIL PREMIUM,SCHOOLS CAPITATION,2103368373,5001000007
07.01.2022,DSG,BEORMUND PRIMARY SCHOOL,"4,655.00",PUPIL PREMIUM,SCHOOLS CAPITATION,2103368374,5001000008
07.01.2022,DSG,BESSEMER GRANGE PRIMARY SCHOOL,"6,000.00",PUPIL PREMIUM,SCHOOLS CAPITATION,2103368375,5001000009
07.01.2022,DSG,BETHLEM & MAUDSLEY HOSPITAL SCHOOL,"1,345.00",PUPIL PREMIUM,SCHOOLS CAPITATION,2103368376,5001000010
07.01.2022,DSG,BOUCHER C OF E PRIMARY SCHOOL,"6,000.00",PUPIL PREMIUM,SCHOOLS CAPITATION,2103368377,5001000011
07.01.2022,DSG,BRUNSWICK PARK PRIMARY SCHOOL,"2,690.00",PUPIL PREMIUM,SCHOOLS CAPITATION,2103368447,5001000013
07.01.2022,DSG,BRUNSWICK PARK PRIMARY SCHOOL,"6,000.00",PUPIL PREMIUM,SCHOOLS CAPITATION,2103368378,5001000013
07.01.2022,DSG,CAMELOT PRIMARY SCHOOL,"4,655.00",PUPIL PREMIUM,SCHOOLS CAPITATION,2103368379,5001000014
07.01.2022,DSG,CHARLOTTE  SHARMAN PRIMARY SCHOOL,"6,000.00",PUPIL PREMIUM,SCHOOLS CAPITATION,2103368380,5001000016
07.01.2022,DSG,ST JOSEPHS RC JUNIOR  SCHOOL,"6,000.00",PUPIL PREMIUM,SCHOOLS CAPITATION,2103368426,5001000017
07.01.2022,DSG,ST JOSEPHS CATHOLIC INFANTS SCHOOL,"6,000.00",PUPIL PREMIUM,SCHOOLS CAPITATION,2103368425,5001000018
07.01.2022,DSG,ST JUDES CHURCH OF ENGLAND PRIMARY,"6,000.00",PUPIL PREMIUM,SCHOOLS CAPITATION,2103368429,5001000019
07.01.2022,DSG,CHERRY GARDEN SCHOOL,"2,690.00",PUPIL PREMIUM,SCHOOLS CAPITATION,2103368456,5001000020
07.01.2022,DSG,CHERRY GARDEN SCHOOL,"6,000.00",PUPIL PREMIUM,SCHOOLS CAPITATION,2103368381,5001000020
07.01.2022,DSG,COMBER GROVE PRIMARY SCHOOL,"6,000.00",PUPIL PREMIUM,SCHOOLS CAPITATION,2103368383,5001000022
07.01.2022,DSG,CRAMPTON PRIMARY SCHOOL,"6,000.00",PUPIL PREMIUM,SCHOOLS CAPITATION,2103368384,5001000023
07.01.2022,DSG,CRAWFORD PRIMARY SCHOOL,"4,655.00",PUPIL PREMIUM,SCHOOLS CAPITATION,2103368385,5001000024
07.01.2022,DSG,CRAWFORD PRIMARY SCHOOL,"18,830.00",PUPIL PREMIUM,SCHOOLS CAPITATION,2103368439,5001000024
07.01.2022,DSG,DOG KENNEL HILL PRIMARY SCHOOL,"2,690.00",PUPIL PREMIUM,SCHOOLS CAPITATION,2103368440,5001000025
07.01.2022,DSG,DOG KENNEL HILL PRIMARY SCHOOL,"6,000.00",PUPIL PREMIUM,SCHOOLS CAPITATION,2103368386,5001000025
07.01.2022,DSG,DULWICH VILLAGE CE INFANTS SCHOOL,"6,000.00",PUPIL PREMIUM,SCHOOLS CAPITATION,2103368387,5001000027
07.01.2022,DSG,GOODRICH PRIMARY SCHOOL,"4,035.00",PUPIL PREMIUM,SCHOOLS CAPITATION,2103368441,5001000028
07.01.2022,DSG,GOODRICH PRIMARY SCHOOL,"6,000.00",PUPIL PREMIUM,SCHOOLS CAPITATION,2103368392,5001000028
07.01.2022,DSG,GRANGE PRIMARY SCHOOL,"4,655.00",PUPIL PREMIUM,SCHOOLS CAPITATION,2103368393,5001000029
07.01.2022,DSG,ENGLISH MARTYRS RC PRIMARY SCHOOL,"5,380.00",PUPIL PREMIUM,SCHOOLS CAPITATION,2103368448,5001000030
07.01.2022,DSG,ENGLISH MARTYRS RC PRIMARY SCHOOL,"6,000.00",PUPIL PREMIUM,SCHOOLS CAPITATION,2103368389,5001000030
07.01.2022,DSG,EVELINA HOSPITAL SCHOOL,"1,345.00",PUPIL PREMIUM,SCHOOLS CAPITATION,2103368390,5001000031
07.01.2022,DSG,PHOENIX PRIMARY SCHOOL,"6,000.00",PUPIL PREMIUM,SCHOOLS CAPITATION,2103368406,5001000032
07.01.2022,DSG,FRIARS PRIMARY (FOUNDATION) SCHOOL,"6,000.00",PUPIL PREMIUM,SCHOOLS CAPITATION,2103368391,5001000033
07.01.2022,DSG,HEBER PRIMARY SCHOOL,"4,655.00",PUPIL PREMIUM,SCHOOLS CAPITATION,2103368395,5001000035
07.01.2022,DSG,HOLLYDALE PRIMARY SCHOOL,"6,000.00",PUPIL PREMIUM,SCHOOLS CAPITATION,2103368397,5001000036
07.01.2022,DSG,ILDERTON PRIMARY SCHOOL,"6,000.00",PUPIL PREMIUM,SCHOOLS CAPITATION,2103368398,5001000037
07.01.2022,DSG,IVYDALE PRIMARY SCHOOL,"2,690.00",PUPIL PREMIUM,SCHOOLS CAPITATION,2103368442,5001000038
07.01.2022,DSG,IVYDALE PRIMARY SCHOOL,"6,000.00",PUPIL PREMIUM,SCHOOLS CAPITATION,2103368399,5001000038
07.01.2022,DSG,JOHN RUSKIN PRIMARY SCHOOL,"6,000.00",PUPIL PREMIUM,SCHOOLS CAPITATION,2103368400,5001000040
07.01.2022,DSG,JOHN RUSKIN PRIMARY SCHOOL,"16,140.00",PUPIL PREMIUM,SCHOOLS CAPITATION,2103368443,5001000040
07.01.2022,DSG,KEYWORTH PRIMARY SCHOOL,"4,655.00",PUPIL PREMIUM,SCHOOLS CAPITATION,2103368401,5001000041
07.01.2022,DSG,DULWICH WOOD PRIMARY SCHOOL,"6,000.00",PUPIL PREMIUM,SCHOOLS CAPITATION,2103368388,5001000042
07.01.2022,DSG,HAYMERLE SCHOOL,"6,000.00",PUPIL PREMIUM,SCHOOLS CAPITATION,2103368394,5001000045
07.01.2022,DSG,HIGHSHORE SCHOOL,"6,000.00",PUPIL PREMIUM,SCHOOLS CAPITATION,2103368396,5001000046
07.01.2022,DSG,MICHAEL FARADAY PRIMARY SCHOOL,"6,000.00",PUPIL PREMIUM,SCHOOLS CAPITATION,2103368402,5001000048
07.01.2022,DSG,NOTRE DAME RC GIRLS SCHOOL,"1,910.00",PUPIL PREMIUM,SCHOOLS CAPITATION,2103368455,5001000050
07.01.2022,DSG,NOTRE DAME RC GIRLS SCHOOL,"6,000.00",PUPIL PREMIUM,SCHOOLS CAPITATION,2103368403,5001000050
07.01.2022,DSG,OLIVER GOLDSMITH PRIMARY SCHOOL,"6,000.00",PUPIL PREMIUM,SCHOOLS CAPITATION,2103368404,5001000051
07.01.2022,DSG,PETER HILLS CE SCHOOL,"6,000.00",PUPIL PREMIUM,SCHOOLS CAPITATION,2103368405,5001000053
07.01.2022,DSG,PILGRIM'S WAY PRIMARY SCHOOL,"6,000.00",PUPIL PREMIUM,SCHOOLS CAPITATION,2103368407,5001000054
07.01.2022,DSG,RIVERSIDE PRIMARY SCHOOL,"6,000.00",PUPIL PREMIUM,SCHOOLS CAPITATION,2103368408,5001000056
07.01.2022,DSG,ROBERT BROWNING PRIMARY SCHOOL,"6,000.00",PUPIL PREMIUM,SCHOOLS CAPITATION,2103368409,5001000057
07.01.2022,DSG,ROTHERHITHE PRIMARY SCHOOL,"6,000.00",PUPIL PREMIUM,SCHOOLS CAPITATION,2103368410,5001000058
07.01.2022,DSG,RYE OAK PRIMARY SCHOOL,"3,310.00",PUPIL PREMIUM,SCHOOLS CAPITATION,2103368411,5001000059
07.01.2022,DSG,RYE OAK PRIMARY SCHOOL,"47,075.00",PUPIL PREMIUM,SCHOOLS CAPITATION,2103368453,5001000059
07.01.2022,DSG,SNOWSFIELDS PRIMARY SCHOOL,"4,655.00",PUPIL PREMIUM,SCHOOLS CAPITATION,2103368413,5001000061
07.01.2022,DSG,SOUTHWARK PARK PRIMARY SCHOOL,"4,035.00",PUPIL PREMIUM,SCHOOLS CAPITATION,2103368444,5001000062
07.01.2022,DSG,SOUTHWARK PARK PRIMARY SCHOOL,"6,000.00",PUPIL PREMIUM,SCHOOLS CAPITATION,2103368415,5001000062
07.01.2022,DSG,ST ANTHONYS RC SCHOOL,"1,345.00",PUPIL PREMIUM,SCHOOLS CAPITATION,2103368454,5001000064
07.01.2022,DSG,ST ANTHONYS RC SCHOOL,"6,000.00",PUPIL PREMIUM,SCHOOLS CAPITATION,2103368416,5001000064
07.01.2022,DSG,ST FRANCESCA CABRINI PRIMARY SCHOOL,"6,000.00",PUPIL PREMIUM,SCHOOLS CAPITATION,2103368417,5001000065
07.01.2022,DSG,ST GEORGES RC SCHOOL,"6,000.00",PUPIL PREMIUM,SCHOOLS CAPITATION,2103368419,5001000068
07.01.2022,DSG,ST GEORGES CE SCHOOL,"6,000.00",PUPIL PREMIUM,SCHOOLS CAPITATION,2103368420,5001000069
07.01.2022,DSG,ST GEORGES CE SCHOOL,"14,795.00",PUPIL PREMIUM,SCHOOLS CAPITATION,2103368450,5001000069
07.01.2022,DSG,ST JAMES CE SCHOOL,"6,000.00",PUPIL PREMIUM,SCHOOLS CAPITATION,2103368421,5001000070
07.01.2022,DSG,ST JAMES THE GREAT RC SCHOOL,"6,000.00",PUPIL PREMIUM,SCHOOLS CAPITATION,2103368422,5001000071
07.01.2022,DSG,ST JOHNS & ST CLEMENTS CE SCHOOL,"2,690.00",PUPIL PREMIUM,SCHOOLS CAPITATION,2103368451,5001000073
07.01.2022,DSG,ST JOHNS & ST CLEMENTS CE SCHOOL,"6,000.00",PUPIL PREMIUM,SCHOOLS CAPITATION,2103368423,5001000073
07.01.2022,DSG,THE ST THOMAS THE APOSTLE COLLEGE,"6,000.00",PUPIL PREMIUM,SCHOOLS CAPITATION,2103368434,5001000074
07.01.2022,DSG,ST JOHNS RC PRIMARY SCHOOL,"6,000.00",PUPIL PREMIUM,SCHOOLS CAPITATION,2103368424,5001000075
07.01.2022,DSG,ST JOSEPHS CATHOLIC SCHOOL,"6,000.00",PUPIL PREMIUM,SCHOOLS CAPITATION,2103368412,5001000076
07.01.2022,DSG,ST JOSEPHS RC PRIMARY SCHOOL,"6,000.00",PUPIL PREMIUM,SCHOOLS CAPITATION,2103368428,5001000077
07.01.2022,DSG,ST JOSEPHS CATHOLIC PRIMARY SCHOOL,"6,000.00",PUPIL PREMIUM,SCHOOLS CAPITATION,2103368427,5001000078
07.01.2022,DSG,ST MARY MAGDALENE CE SCHOOL,"6,000.00",PUPIL PREMIUM,SCHOOLS CAPITATION,2103368430,5001000080
07.01.2022,DSG,ST MARY MAGDALENE CE SCHOOL,"6,725.00",PUPIL PREMIUM,SCHOOLS CAPITATION,2103368452,5001000080
07.01.2022,DSG,ST PETERS CE SCHOOL,"6,000.00",PUPIL PREMIUM,SCHOOLS CAPITATION,2103368431,5001000083
07.01.2022,DSG,ST SAVIOURS & ST OLAVES SCHOOL,"6,000.00",PUPIL PREMIUM,SCHOOLS CAPITATION,2103368432,5001000084
07.01.2022,DSG,CATHEDRAL SCHOOL OF ST SAVIOUR & MARY,"6,000.00",PUPIL PREMIUM,SCHOOLS CAPITATION,2103368433,5001000088
07.01.2022,DSG,TOWER BRIDGE PRIMARY SCHOOL,"6,000.00",PUPIL PREMIUM,SCHOOLS CAPITATION,2103368435,5001000095
07.01.2022,DSG,TOWNSEND PRIMARY SCHOOL,"6,000.00",PUPIL PREMIUM,SCHOOLS CAPITATION,2103368436,5001000096
07.01.2022,DSG,TOWNSEND PRIMARY SCHOOL,"8,070.00",PUPIL PREMIUM,SCHOOLS CAPITATION,2103368445,5001000096
07.01.2022,DSG,TUKE SCHOOL,"5,045.00",PUPIL PREMIUM,SCHOOLS CAPITATION,2103368437,5001000097
07.01.2022,DSG,VICTORY SCHOOL,"6,000.00",PUPIL PREMIUM,SCHOOLS CAPITATION,2103368438,5001000098
07.01.2022,DSG,VICTORY SCHOOL,"8,070.00",PUPIL PREMIUM,SCHOOLS CAPITATION,2103368446,5001000098
07.01.2022,EDUCATION,BLACKFRIARS SETTLEMENT,750.00,ADULT SKILLS BUDGET,GRANTS,5902504063,1013178
07.01.2022,EDUCATION,WALWORTH GARDEN LTD,"1,125.00",ALC COMMUNITY LEARNING,GRANTS,5902504053,1000042204
07.01.2022,EDUCATION,WALWORTH GARDEN LTD,"1,250.00",ALC COMMUNITY LEARNING,GRANTS,5902504053,1000042204
07.01.2022,EDUCATION,WALWORTH GARDEN LTD,"1,500.00",ALC COMMUNITY LEARNING,GRANTS,5902504053,1000042204
07.01.2022,EDUCATION,WALWORTH GARDEN LTD,"3,125.00",ALC COMMUNITY LEARNING,GRANTS,5902504055,1000042204
07.01.2022,EDUCATION,WALWORTH GARDEN LTD,"3,375.00",ALC COMMUNITY LEARNING,GRANTS,5902504056,1000042204
07.01.2022,EDUCATION,KENT COUNTY COUNCIL - LASER,"2,634.28",THOMAS CALTON CENTRE,GAS,5902503998,1000012926
07.01.2022,ENVIRONMENT AND LEISURE,RELIANCE HIGH-TECH LTD,"1,731.95",SERVICE DEVELOPMENT TEAM,OFFICE EXPENSES,5902504088,1000079374
07.01.2022,ENVIRONMENT DIRECTORATE,PERFORMANCE CHEMICALS LTD,"1,365.82",ESTATE CLEANING-GENERAL,MATERIALS,5902504156,1000037129
07.01.2022,ENVIRONMENT DIRECTORATE,LANDSCAPE SUPPLY COMPANY,319.00,NON HOUSING GROUNDS,EQUIPMENT PURCHASE & REPAIR,5902504131,1000051937
07.01.2022,ENVIRONMENT DIRECTORATE,VEOLIA ES SOUTHWARK LTD,"2,155,251.82",WASTE PFI,PFI/PPP PAYMENTS,5902504191,1000056979
07.01.2022,F & C S EXCLUDING CORPORATE BUDGETS,CAPITA BUSINESS SERVICES LTD,"23,305.42",CAPITA,OTHER CONTRACTORS,5902504187,1000006291
07.01.2022,F & C S EXCLUDING CORPORATE BUDGETS,REDACTED PERSONAL DATA,500.00,SESS,OTHER PAYMENTS FOR CLIENTS,REDACTED,REDACTED
07.01.2022,F & C S EXCLUDING CORPORATE BUDGETS,REDACTED PERSONAL DATA,500.00,SESS,OTHER PAYMENTS FOR CLIENTS,REDACTED,REDACTED
07.01.2022,F & C S EXCLUDING CORPORATE BUDGETS,REDACTED PERSONAL DATA,500.00,SESS,OTHER PAYMENTS FOR CLIENTS,REDACTED,REDACTED
07.01.2022,F & C S EXCLUDING CORPORATE BUDGETS,REDACTED PERSONAL DATA,500.00,SESS,OTHER PAYMENTS FOR CLIENTS,REDACTED,REDACTED
07.01.2022,F & C S EXCLUDING CORPORATE BUDGETS,REDACTED PERSONAL DATA,500.00,SESS,OTHER PAYMENTS FOR CLIENTS,REDACTED,REDACTED
07.01.2022,F & C S EXCLUDING CORPORATE BUDGETS,REDACTED PERSONAL DATA,500.00,SESS,OTHER PAYMENTS FOR CLIENTS,REDACTED,REDACTED
07.01.2022,F & C S EXCLUDING CORPORATE BUDGETS,REDACTED PERSONAL DATA,500.00,SESS,OTHER PAYMENTS FOR CLIENTS,REDACTED,REDACTED
07.01.2022,F & C S EXCLUDING CORPORATE BUDGETS,REDACTED PERSONAL DATA,500.00,SESS,OTHER PAYMENTS FOR CLIENTS,REDACTED,REDACTED
07.01.2022,F & C S EXCLUDING CORPORATE BUDGETS,REDACTED PERSONAL DATA,500.00,SESS,OTHER PAYMENTS FOR CLIENTS,REDACTED,REDACTED
07.01.2022,F & C S EXCLUDING CORPORATE BUDGETS,REDACTED PERSONAL DATA,500.00,SESS,OTHER PAYMENTS FOR CLIENTS,REDACTED,REDACTED
07.01.2022,F & C S EXCLUDING CORPORATE BUDGETS,REDACTED PERSONAL DATA,500.00,SESS,OTHER PAYMENTS FOR CLIENTS,REDACTED,REDACTED
07.01.2022,F & C S EXCLUDING CORPORATE BUDGETS,REDACTED PERSONAL DATA,500.00,SESS,OTHER PAYMENTS FOR CLIENTS,REDACTED,REDACTED
07.01.2022,F & C S EXCLUDING CORPORATE BUDGETS,REDACTED PERSONAL DATA,500.00,SESS,OTHER PAYMENTS FOR CLIENTS,REDACTED,REDACTED
07.01.2022,F & C S EXCLUDING CORPORATE BUDGETS,REDACTED PERSONAL DATA,500.00,SESS,OTHER PAYMENTS FOR CLIENTS,REDACTED,REDACTED
07.01.2022,F & C S EXCLUDING CORPORATE BUDGETS,REDACTED PERSONAL DATA,500.00,SESS,OTHER PAYMENTS FOR CLIENTS,REDACTED,REDACTED
07.01.2022,HOUSING GENERAL FUND,HITACHI SOLUTIONS EUROPE LIMITED,"-10,000.00",CAPITAL PS (STRAT SERV),ICT ACQUISITION,5902504101,1000084180
07.01.2022,HOUSING GENERAL FUND,HITACHI SOLUTIONS EUROPE LIMITED,"12,000.00",CAPITAL PS (STRAT SERV),ICT ACQUISITION,5902504102,1000084180
07.01.2022,HOUSING HRA,SMITH & BYFORD LTD,"52,359.77",CAPITAL PS (HRA),CONSTRUCTION,2103368188,3000000520
07.01.2022,HOUSING HRA,SMITH & BYFORD LTD,"230,501.81",CAPITAL PS (HRA),CONSTRUCTION,2103368188,3000000520
07.01.2022,HOUSING HRA,ACCON UK LIMITED,"1,650.00",CAPITAL PS (HRA),CONSTRUCTION FEES  - EXTERNAL,5902504074,1000079816
07.01.2022,HOUSING HRA,B B UK STUDIO LIMITED,"1,243.00",CAPITAL PS (HRA),CONSTRUCTION FEES - ARCHITECT,5902504066,1000085809
07.01.2022,HOUSING HRA,B B UK STUDIO LIMITED,"6,257.00",CAPITAL PS (HRA),CONSTRUCTION FEES - ARCHITECT,5902504066,1000085809
07.01.2022,HOUSING HRA,BAILY  GARNER LLP,"-1,780.00",CAPITAL PS (HRA),CONSTRUCTION FEES - EMPLOYERS AGENT,5902504367,1000663
07.01.2022,HOUSING HRA,BAILY  GARNER LLP,"1,780.00",CAPITAL PS (HRA),CONSTRUCTION FEES - EMPLOYERS AGENT,5902504339,1000663
07.01.2022,HOUSING HRA,CALFORD SEADEN LLP,"1,470.00",CAPITAL PS (HRA),CONSTRUCTION FEES - EMPLOYERS AGENT,5902504107,1061592
07.01.2022,HOUSING HRA,CALFORD SEADEN LLP,"6,667.00",CAPITAL PS (HRA),CONSTRUCTION FEES - EMPLOYERS AGENT,5902504076,1061592
07.01.2022,HOUSING HRA,CALFORD SEADEN LLP,"7,500.00",CAPITAL PS (HRA),CONSTRUCTION FEES - EMPLOYERS AGENT,5902504077,1061592
07.01.2022,HOUSING HRA,SHARPE PRITCHARD LLP,752.00,CAPITAL PS (HRA),CONSTRUCTION FEES - LEGAL,5902504172,1790085
07.01.2022,HOUSING HRA,SHARPE PRITCHARD LLP,768.00,CAPITAL PS (HRA),CONSTRUCTION FEES - LEGAL,5902504108,1790085
07.01.2022,HOUSING HRA,GUILDMORE LTD,"245,372.99",CAPITAL PS (HRA),CONSTRUCTION MAIN CONTRACT -CERTIFICATED,2103368297,3000002150
07.01.2022,HOUSING HRA,AJM ADAPTIONS LTD,"1,050.00",CAPITAL PS (HRA),UTILITIES INSTALLATION,5902504038,1000080297
07.01.2022,HOUSING HRA,TIBBALDS PLANNING & URBAN DESIGN LTD,"8,689.00",CAPITAL PS (REGEN),CONSTRUCTION FEES  - EXTERNAL,5902504125,1000029772
07.01.2022,HOUSING HRA,TIBBALDS PLANNING & URBAN DESIGN LTD,"11,000.00",CAPITAL PS (REGEN),CONSTRUCTION FEES  - EXTERNAL,5902504125,1000029772
07.01.2022,HOUSING HRA,HOARE LEA CONSULTING ENGINEERS,"2,965.82",CAPITAL PS (REGEN),CONSTRUCTION FEES  - EXTERNAL,5902504150,1000056233
07.01.2022,HOUSING HRA,STEPHEN TAYLOR ARCHITECTS LTD,"48,350.00",CAPITAL PS (REGEN),CONSTRUCTION FEES  - EXTERNAL,5902504127,1000083590
07.01.2022,HOUSING HRA,SHARPE PRITCHARD LLP,740.00,CAPITAL PS (REGEN),CONSTRUCTION FEES - EMPLOYERS AGENT,5902504129,1790085
07.01.2022,HOUSING HRA,SHARPE PRITCHARD LLP,432.00,CAPITAL PS (REGEN),CONSTRUCTION FEES - LEGAL,5902504118,1790085
07.01.2022,HOUSING HRA,SHARPE PRITCHARD LLP,"1,128.00",CAPITAL PS (REGEN),CONSTRUCTION FEES - LEGAL,5902504143,1790085
07.01.2022,HOUSING HRA,SETFORDS LAW LTD,"11,158.00",CAPITAL PS (REGEN),LAND & BUILDINGS ACQUISITION FEES,5902503978,1000070746
07.01.2022,LEISURE DIRECTORATE,BERMONDSEY ARTIST`S GROUP,"5,375.00",ARTS GRANTS,GRANTS,5902504148,1000004746
07.01.2022,LEISURE DIRECTORATE,NPOWER LTD,373.46,BLUE ANCHOR LIBRARY,ELECTRICITY,5902504167,1000078994
07.01.2022,LEISURE DIRECTORATE,KENT COUNTY COUNCIL - LASER,"1,808.51",CAMBERWELL LIBRARY,ELECTRICITY,5902504146,1000012926
07.01.2022,LEISURE DIRECTORATE,NPOWER LTD,402.76,GROVE VALE LIBRARY,ELECTRICITY,5902504196,1000078994
07.01.2022,PUBLIC HEALTH,REDACTED PERSONAL DATA,500.00,COVID-19 CONTROL OUTBREAK MGMNT.FUND,OTHER PAYMENTS FOR CLIENTS,REDACTED,REDACTED
07.01.2022,PUBLIC HEALTH,REDACTED PERSONAL DATA,500.00,COVID-19 CONTROL OUTBREAK MGMNT.FUND,OTHER PAYMENTS FOR CLIENTS,REDACTED,REDACTED
07.01.2022,PUBLIC HEALTH,REDACTED PERSONAL DATA,500.00,COVID-19 CONTROL OUTBREAK MGMNT.FUND,OTHER PAYMENTS FOR CLIENTS,REDACTED,REDACTED
07.01.2022,PUBLIC HEALTH,REDACTED PERSONAL DATA,500.00,COVID-19 CONTROL OUTBREAK MGMNT.FUND,OTHER PAYMENTS FOR CLIENTS,REDACTED,REDACTED
07.01.2022,REGENERATION,TIBBALDS PLANNING & URBAN DESIGN LTD,"-5,741.00",MASTER PLAN-H/WAY & TRANS INTERCHANGE,PROFESSIONAL FEES,5902475031,1000029772
07.01.2022,REGENERATION,TIBBALDS PLANNING & URBAN DESIGN LTD,"5,471.00",MASTER PLAN-H/WAY & TRANS INTERCHANGE,PROFESSIONAL FEES,5902475032,1000029772
07.01.2022,REGENERATION,KENT COUNTY COUNCIL - LASER,-662.78,SSF PROGRAMME COST,GAS,5902503612,1000012926
07.01.2022,REGENERATION,KENT COUNTY COUNCIL - LASER,-643.63,SSF PROGRAMME COST,GAS,5902503614,1000012926
07.01.2022,REGENERATION,KENT COUNTY COUNCIL - LASER,-580.16,SSF PROGRAMME COST,GAS,5902503614,1000012926
07.01.2022,REGENERATION,KENT COUNTY COUNCIL - LASER,-486.82,SSF PROGRAMME COST,GAS,5902503613,1000012926
07.01.2022,REGENERATION,KENT COUNTY COUNCIL - LASER,-317.54,SSF PROGRAMME COST,GAS,5902503614,1000012926
07.01.2022,REGENERATION,KENT COUNTY COUNCIL - LASER,-267.84,SSF PROGRAMME COST,GAS,5902503614,1000012926
07.01.2022,RESIDENT SERVICES,STREETSPACE LTD,"13,552.53",GREAT ESTATES,WASTE DISPOSAL CONTRACT,2103368370,3000002200
07.01.2022,RESIDENT SERVICES,CIVICA UK LTD,"27,986.33",HOUSING NEEDS,SOFTWARE,5902504121,1730625
07.01.2022,RESIDENT SERVICES,BRITISH GAS TRADING LTD,547.62,OPERATIONS/OFFICES ACCOMMODATION,ELECTRICITY,5902504151,1000055977
07.01.2022,RESIDENT SERVICES,RELIANCE HIGH-TECH LTD,"1,789.88",OPERATIONS/OFFICES ACCOMMODATION,OFFICE EXPENSES,5902504113,1000079374
07.01.2022,RESIDENT SERVICES,CONSTRUCTION BOFFIN LTD,950.00,TA HOSTELS,PAYMENTS FOR LEGAL SERVICES,5902504059,1000087746
07.01.2022,RESIDENT SERVICES HGF,FRESHVIEW ESTATES LTD,"2,381.94",HOMELESS PROJECTS,GRANTS,5902504065,1000081189
07.01.2022,RESIDENT SERVICES HGF,PFL PROPERTIES LTD,"1,610.96",HOMELESS PROJECTS,GRANTS,5902504114,1000086466
07.01.2022,RESIDENT SERVICES HGF,PFL PROPERTIES LTD,"1,853.73",HOMELESS PROJECTS,GRANTS,5902504067,1000086466
07.01.2022,RESIDENT SERVICES HGF,THE PROPERTY RESOURCE LTD,"1,884.33",HOMELESS PROJECTS,GRANTS,5902504070,1000087230
07.01.2022,RESIDENT SERVICES HGF,DOCUMENT OPTIONS LIMITED,255.26,HOUSING OPTIONS,OFFICE EXPENSES,5902504140,1000051744
07.01.2022,RESIDENT SERVICES HGF,QUINARY LTD,"7,562.45",NIGHTLY TA (NSC),EXTERNAL AGENCIES AND BODIES,5902504138,1000029106
07.01.2022,RESIDENT SERVICES HGF,STENFORD PROPERTY LTD,"40,800.30",NIGHTLY TA (NSC),EXTERNAL AGENCIES AND BODIES,5902504057,1000074759
07.01.2022,RESIDENT SERVICES HGF,DMS PROPERTIES SERVICES LTD,"32,842.50",NIGHTLY TA (NSC),EXTERNAL AGENCIES AND BODIES,5902504155,1000081522
07.01.2022,RESIDENT SERVICES HGF,FINEFAIR LTD,"98,486.86",PSL PLACEMENTS,EXTERNAL AGENCIES AND BODIES,5902504054,1000075570
07.01.2022,RESIDENT SERVICES HGF,FINEFAIR LTD,"101,648.75",PSL PLACEMENTS,EXTERNAL AGENCIES AND BODIES,5902504051,1000075570
07.01.2022,RESIDENT SERVICES HGF,FINEFAIR LTD,"278,417.86",PSL PLACEMENTS,EXTERNAL AGENCIES AND BODIES,5902504052,1000075570
07.01.2022,RESIDENT SERVICES HGF,FINEFAIR LTD,"288,826.00",PSL PLACEMENTS,EXTERNAL AGENCIES AND BODIES,5902504045,1000075570
07.01.2022,RESIDENT SERVICES HGF,AMX GROUP LTD,"2,700.00",PSL PLACEMENTS,EXTERNAL AGENCIES AND BODIES,5902504092,1000087510
07.01.2022,SBS OPERATIONS,TRAVIS PERKINS TRADING COMPANY LTD,309.36,SBS IN-HOUR EMERGENCIES,MATERIALS,5902504042,1514319
07.01.2022,SBS SUPPORT,TRAVIS PERKINS TRADING COMPANY LTD,"5,660.10",R & M OVERHEADS,EQUIPMENT PURCHASE & REPAIR,5902504060,1514319
07.01.2022,SBS SUPPORT,TRAVIS PERKINS TRADING COMPANY LTD,510.00,STORES / LOGISTICS,BSU STORES CONTROL ACCOUNT (SAP MATERIALS MGT),5902504058,1514319
07.01.2022,SOUTHWARK BUILDING SERVICES,TRAVIS PERKINS TRADING COMPANY LTD,-850.00,STORES/LOGISTICS,CREDITORS -GR/IR CLEARING ACCOUNT,5902504075,1514319
07.01.2022,SOUTHWARK BUILDING SERVICES,TRAVIS PERKINS TRADING COMPANY LTD,253.40,STORES/LOGISTICS,CREDITORS -GR/IR CLEARING ACCOUNT,5902504072,1514319
07.01.2022,SOUTHWARK BUILDING SERVICES,TRAVIS PERKINS TRADING COMPANY LTD,260.28,STORES/LOGISTICS,CREDITORS -GR/IR CLEARING ACCOUNT,5902504072,1514319
07.01.2022,SOUTHWARK BUILDING SERVICES,TRAVIS PERKINS TRADING COMPANY LTD,265.51,STORES/LOGISTICS,CREDITORS -GR/IR CLEARING ACCOUNT,5902504060,1514319
07.01.2022,SOUTHWARK BUILDING SERVICES,TRAVIS PERKINS TRADING COMPANY LTD,271.40,STORES/LOGISTICS,CREDITORS -GR/IR CLEARING ACCOUNT,5902504072,1514319
07.01.2022,SOUTHWARK BUILDING SERVICES,TRAVIS PERKINS TRADING COMPANY LTD,281.70,STORES/LOGISTICS,CREDITORS -GR/IR CLEARING ACCOUNT,5902504072,1514319
07.01.2022,SOUTHWARK BUILDING SERVICES,TRAVIS PERKINS TRADING COMPANY LTD,290.50,STORES/LOGISTICS,CREDITORS -GR/IR CLEARING ACCOUNT,5902504072,1514319
07.01.2022,SOUTHWARK BUILDING SERVICES,TRAVIS PERKINS TRADING COMPANY LTD,324.00,STORES/LOGISTICS,CREDITORS -GR/IR CLEARING ACCOUNT,5902504060,1514319
07.01.2022,SOUTHWARK BUILDING SERVICES,TRAVIS PERKINS TRADING COMPANY LTD,349.00,STORES/LOGISTICS,CREDITORS -GR/IR CLEARING ACCOUNT,5902504072,1514319
07.01.2022,SOUTHWARK BUILDING SERVICES,TRAVIS PERKINS TRADING COMPANY LTD,360.36,STORES/LOGISTICS,CREDITORS -GR/IR CLEARING ACCOUNT,5902504060,1514319
07.01.2022,SOUTHWARK BUILDING SERVICES,TRAVIS PERKINS TRADING COMPANY LTD,373.60,STORES/LOGISTICS,CREDITORS -GR/IR CLEARING ACCOUNT,5902504072,1514319
07.01.2022,SOUTHWARK BUILDING SERVICES,TRAVIS PERKINS TRADING COMPANY LTD,375.30,STORES/LOGISTICS,CREDITORS -GR/IR CLEARING ACCOUNT,5902504072,1514319
07.01.2022,SOUTHWARK BUILDING SERVICES,TRAVIS PERKINS TRADING COMPANY LTD,388.48,STORES/LOGISTICS,CREDITORS -GR/IR CLEARING ACCOUNT,5902504072,1514319
07.01.2022,SOUTHWARK BUILDING SERVICES,TRAVIS PERKINS TRADING COMPANY LTD,388.50,STORES/LOGISTICS,CREDITORS -GR/IR CLEARING ACCOUNT,5902504060,1514319
07.01.2022,SOUTHWARK BUILDING SERVICES,TRAVIS PERKINS TRADING COMPANY LTD,416.00,STORES/LOGISTICS,CREDITORS -GR/IR CLEARING ACCOUNT,5902504072,1514319
07.01.2022,SOUTHWARK BUILDING SERVICES,TRAVIS PERKINS TRADING COMPANY LTD,430.78,STORES/LOGISTICS,CREDITORS -GR/IR CLEARING ACCOUNT,5902504060,1514319
07.01.2022,SOUTHWARK BUILDING SERVICES,TRAVIS PERKINS TRADING COMPANY LTD,451.62,STORES/LOGISTICS,CREDITORS -GR/IR CLEARING ACCOUNT,5902504060,1514319
07.01.2022,SOUTHWARK BUILDING SERVICES,TRAVIS PERKINS TRADING COMPANY LTD,468.00,STORES/LOGISTICS,CREDITORS -GR/IR CLEARING ACCOUNT,5902504060,1514319
07.01.2022,SOUTHWARK BUILDING SERVICES,TRAVIS PERKINS TRADING COMPANY LTD,468.00,STORES/LOGISTICS,CREDITORS -GR/IR CLEARING ACCOUNT,5902504060,1514319
07.01.2022,SOUTHWARK BUILDING SERVICES,TRAVIS PERKINS TRADING COMPANY LTD,510.00,STORES/LOGISTICS,CREDITORS -GR/IR CLEARING ACCOUNT,5902504058,1514319
07.01.2022,SOUTHWARK BUILDING SERVICES,TRAVIS PERKINS TRADING COMPANY LTD,570.00,STORES/LOGISTICS,CREDITORS -GR/IR CLEARING ACCOUNT,5902504072,1514319
07.01.2022,SOUTHWARK BUILDING SERVICES,TRAVIS PERKINS TRADING COMPANY LTD,586.30,STORES/LOGISTICS,CREDITORS -GR/IR CLEARING ACCOUNT,5902504058,1514319
07.01.2022,SOUTHWARK BUILDING SERVICES,TRAVIS PERKINS TRADING COMPANY LTD,590.40,STORES/LOGISTICS,CREDITORS -GR/IR CLEARING ACCOUNT,5902504072,1514319
07.01.2022,SOUTHWARK BUILDING SERVICES,TRAVIS PERKINS TRADING COMPANY LTD,667.00,STORES/LOGISTICS,CREDITORS -GR/IR CLEARING ACCOUNT,5902504058,1514319
07.01.2022,SOUTHWARK BUILDING SERVICES,TRAVIS PERKINS TRADING COMPANY LTD,684.72,STORES/LOGISTICS,CREDITORS -GR/IR CLEARING ACCOUNT,5902504072,1514319
07.01.2022,SOUTHWARK BUILDING SERVICES,TRAVIS PERKINS TRADING COMPANY LTD,706.82,STORES/LOGISTICS,CREDITORS -GR/IR CLEARING ACCOUNT,5902504072,1514319
07.01.2022,SOUTHWARK BUILDING SERVICES,TRAVIS PERKINS TRADING COMPANY LTD,715.00,STORES/LOGISTICS,CREDITORS -GR/IR CLEARING ACCOUNT,5902504060,1514319
07.01.2022,SOUTHWARK BUILDING SERVICES,TRAVIS PERKINS TRADING COMPANY LTD,824.20,STORES/LOGISTICS,CREDITORS -GR/IR CLEARING ACCOUNT,5902504072,1514319
07.01.2022,SOUTHWARK BUILDING SERVICES,TRAVIS PERKINS TRADING COMPANY LTD,850.00,STORES/LOGISTICS,CREDITORS -GR/IR CLEARING ACCOUNT,5902504072,1514319
07.01.2022,SOUTHWARK BUILDING SERVICES,TRAVIS PERKINS TRADING COMPANY LTD,860.00,STORES/LOGISTICS,CREDITORS -GR/IR CLEARING ACCOUNT,5902504072,1514319
07.01.2022,SOUTHWARK BUILDING SERVICES,TRAVIS PERKINS TRADING COMPANY LTD,862.00,STORES/LOGISTICS,CREDITORS -GR/IR CLEARING ACCOUNT,5902504060,1514319
07.01.2022,SOUTHWARK BUILDING SERVICES,TRAVIS PERKINS TRADING COMPANY LTD,887.76,STORES/LOGISTICS,CREDITORS -GR/IR CLEARING ACCOUNT,5902504072,1514319
07.01.2022,SOUTHWARK BUILDING SERVICES,TRAVIS PERKINS TRADING COMPANY LTD,"1,008.60",STORES/LOGISTICS,CREDITORS -GR/IR CLEARING ACCOUNT,5902504060,1514319
07.01.2022,SOUTHWARK BUILDING SERVICES,TRAVIS PERKINS TRADING COMPANY LTD,"1,020.00",STORES/LOGISTICS,CREDITORS -GR/IR CLEARING ACCOUNT,5902504072,1514319
07.01.2022,SOUTHWARK BUILDING SERVICES,TRAVIS PERKINS TRADING COMPANY LTD,"1,133.00",STORES/LOGISTICS,CREDITORS -GR/IR CLEARING ACCOUNT,5902504072,1514319
07.01.2022,SOUTHWARK BUILDING SERVICES,TRAVIS PERKINS TRADING COMPANY LTD,"1,198.00",STORES/LOGISTICS,CREDITORS -GR/IR CLEARING ACCOUNT,5902504058,1514319
07.01.2022,SOUTHWARK BUILDING SERVICES,TRAVIS PERKINS TRADING COMPANY LTD,"1,262.80",STORES/LOGISTICS,CREDITORS -GR/IR CLEARING ACCOUNT,5902504060,1514319
07.01.2022,SOUTHWARK BUILDING SERVICES,TRAVIS PERKINS TRADING COMPANY LTD,"1,331.64",STORES/LOGISTICS,CREDITORS -GR/IR CLEARING ACCOUNT,5902504072,1514319
07.01.2022,SOUTHWARK BUILDING SERVICES,TRAVIS PERKINS TRADING COMPANY LTD,"1,402.20",STORES/LOGISTICS,CREDITORS -GR/IR CLEARING ACCOUNT,5902504072,1514319
07.01.2022,SOUTHWARK BUILDING SERVICES,TRAVIS PERKINS TRADING COMPANY LTD,"2,819.40",STORES/LOGISTICS,CREDITORS -GR/IR CLEARING ACCOUNT,5902504058,1514319
07.01.2022,SOUTHWARK BUILDING SERVICES,TRAVIS PERKINS TRADING COMPANY LTD,"4,500.00",STORES/LOGISTICS,CREDITORS -GR/IR CLEARING ACCOUNT,5902504060,1514319
07.01.2022,SOUTHWARK BUILDING SERVICES,TRAVIS PERKINS TRADING COMPANY LTD,"4,840.00",STORES/LOGISTICS,CREDITORS -GR/IR CLEARING ACCOUNT,5902504060,1514319
08.01.2022,ENVIRONMENT DIRECTORATE,BRITISH GAS,526.60,STREET TRADING A/C,ELECTRICITY,5902503952,1000054825
08.01.2022,HOUSING HRA,D R M M LIMITED,"137,483.85",CAPITAL PS (HRA),CONSTRUCTION FEES - ARCHITECT,5902504149,1000087290
10.01.2022,ADULT SOCIAL CARE,REDACTED PERSONAL DATA,488.00,APPOINTEESHIPS,OTHER PAYMENTS FOR CLIENTS,REDACTED,REDACTED
10.01.2022,ADULT SOCIAL CARE,SAFFRONLAND HOMES,676.01,DIR OF ASC,EXTERNAL AGENCIES AND BODIES,5902504364,11172608
10.01.2022,ADULT SOCIAL CARE,SAFFRONLAND HOMES,951.39,DIR OF ASC,EXTERNAL AGENCIES AND BODIES,5902504368,11172608
10.01.2022,ADULT SOCIAL CARE,KAIROS COMMUNITY TRUST,"3,605.38",DIR OF ASC,EXTERNAL AGENCIES AND BODIES,5902504210,1000025479
10.01.2022,ADULT SOCIAL CARE,KAIROS COMMUNITY TRUST,"5,074.06",DIR OF ASC,EXTERNAL AGENCIES AND BODIES,5902504207,1000025479
10.01.2022,ADULT SOCIAL CARE,KAIROS COMMUNITY TRUST,"5,633.41",DIR OF ASC,EXTERNAL AGENCIES AND BODIES,5902504211,1000025479
10.01.2022,ADULT SOCIAL CARE,KAIROS COMMUNITY TRUST,"7,928.22",DIR OF ASC,EXTERNAL AGENCIES AND BODIES,5902504208,1000025479
10.01.2022,ADULT SOCIAL CARE,THREE CS,"1,577.36",DIR OF ASC,EXTERNAL AGENCIES AND BODIES,5902504255,1000033865
10.01.2022,ADULT SOCIAL CARE,SWK AFRICAN FAMILY SUPPORT SVCS,426.34,DIR OF ASC,EXTERNAL AGENCIES AND BODIES,5902504273,1000057648
10.01.2022,ADULT SOCIAL CARE,SWK AFRICAN FAMILY SUPPORT SVCS,517.60,DIR OF ASC,EXTERNAL AGENCIES AND BODIES,5902504275,1000057648
10.01.2022,ADULT SOCIAL CARE,LEONARD CHESHIRE DISABILITY,468.32,DIR OF ASC,EXTERNAL AGENCIES AND BODIES,5902504266,1000065128
10.01.2022,ADULT SOCIAL CARE,LEONARD CHESHIRE DISABILITY,"4,732.07",DIR OF ASC,EXTERNAL AGENCIES AND BODIES,5902504265,1000065128
10.01.2022,ADULT SOCIAL CARE,LEONARD CHESHIRE DISABILITY,"6,659.71",DIR OF ASC,EXTERNAL AGENCIES AND BODIES,5902504262,1000065128
10.01.2022,ADULT SOCIAL CARE,THAMES SENIOR HOME CARE LTD,545.99,DIR OF ASC,EXTERNAL AGENCIES AND BODIES,5902504254,1000086068
10.01.2022,ADULT SOCIAL CARE,FOSTERING SUPPORT GROUP LTD,"5,779.33",DISABILITIES LAC,EXTERNAL AGENCIES AND BODIES,2103368781,1000065830
10.01.2022,ADULT SOCIAL CARE,WARREN LODGE CARE HOME (BUPA),"-3,771.43",DISCHARGE TO ACCESS,NURSING PLACEMENTS FEES,2103287428,11197104
10.01.2022,ADULT SOCIAL CARE,WARREN LODGE CARE HOME (BUPA),"4,173.43",DISCHARGE TO ACCESS,NURSING PLACEMENTS FEES,2103368295,11197104
10.01.2022,ADULT SOCIAL CARE,MEDACS HOMECARE,987.29,LD LTS 18-64,HOMECARE - C&V,2103368586,11287415
10.01.2022,ADULT SOCIAL CARE,MEDACS HOMECARE,"1,001.19",LD LTS 18-64,HOMECARE - C&V,2103368688,11287415
10.01.2022,ADULT SOCIAL CARE,METRO HOMECARE LTD,396.00,LD LTS 18-64,HOMECARE - SPOT,2103368542,1000070695
10.01.2022,ADULT SOCIAL CARE,METRO HOMECARE LTD,396.00,LD LTS 18-64,HOMECARE - SPOT,2103368740,1000070695
10.01.2022,ADULT SOCIAL CARE,MEDACS HOMECARE,"1,001.21",MEM LTS 65+,HOMECARE - C&V,2103368686,11287415
10.01.2022,ADULT SOCIAL CARE,MEDACS HOMECARE,"1,015.09",MEM LTS 65+,HOMECARE - C&V,2103368583,11287415
10.01.2022,ADULT SOCIAL CARE,MEDACS HOMECARE,"1,390.72",MEM LTS 65+,HOMECARE - C&V,2103368706,11287415
10.01.2022,ADULT SOCIAL CARE,MEDACS HOMECARE,"1,404.59",MEM LTS 65+,HOMECARE - C&V,2103368604,11287415
10.01.2022,ADULT SOCIAL CARE,MEDACS HOMECARE,698.77,MH LTS 18-64,HOMECARE - C&V,2103368694,11287415
10.01.2022,ADULT SOCIAL CARE,MEDACS HOMECARE,724.64,MH LTS 18-64,HOMECARE - C&V,2103368589,11287415
10.01.2022,ADULT SOCIAL CARE,MEDACS HOMECARE,797.84,MH LTS 18-64,HOMECARE - C&V,2103368692,11287415
10.01.2022,ADULT SOCIAL CARE,MEDACS HOMECARE,"1,566.65",MH LTS 18-64,HOMECARE - C&V,2103368648,11287415
10.01.2022,ADULT SOCIAL CARE,MEDACS HOMECARE,"1,599.09",MH LTS 18-64,HOMECARE - C&V,2103368623,11287415
10.01.2022,ADULT SOCIAL CARE,MEDACS HOMECARE,250.15,PHY LTS 18-64,HOMECARE - C&V,2103368680,11287415
10.01.2022,ADULT SOCIAL CARE,MEDACS HOMECARE,282.79,PHY LTS 18-64,HOMECARE - C&V,2103368627,11287415
10.01.2022,ADULT SOCIAL CARE,MEDACS HOMECARE,287.43,PHY LTS 18-64,HOMECARE - C&V,2103368656,11287415
10.01.2022,ADULT SOCIAL CARE,MEDACS HOMECARE,293.32,PHY LTS 18-64,HOMECARE - C&V,2103368581,11287415
10.01.2022,ADULT SOCIAL CARE,MEDACS HOMECARE,306.25,PHY LTS 18-64,HOMECARE - C&V,2103368684,11287415
10.01.2022,ADULT SOCIAL CARE,MEDACS HOMECARE,319.87,PHY LTS 18-64,HOMECARE - C&V,2103368640,11287415
10.01.2022,ADULT SOCIAL CARE,MEDACS HOMECARE,319.91,PHY LTS 18-64,HOMECARE - C&V,2103368689,11287415
10.01.2022,ADULT SOCIAL CARE,MEDACS HOMECARE,327.85,PHY LTS 18-64,HOMECARE - C&V,2103368708,11287415
10.01.2022,ADULT SOCIAL CARE,MEDACS HOMECARE,333.78,PHY LTS 18-64,HOMECARE - C&V,2103368610,11287415
10.01.2022,ADULT SOCIAL CARE,MEDACS HOMECARE,403.37,PHY LTS 18-64,HOMECARE - C&V,2103368585,11287415
10.01.2022,ADULT SOCIAL CARE,MEDACS HOMECARE,421.91,PHY LTS 18-64,HOMECARE - C&V,2103368650,11287415
10.01.2022,ADULT SOCIAL CARE,MEDACS HOMECARE,444.98,PHY LTS 18-64,HOMECARE - C&V,2103368600,11287415
10.01.2022,ADULT SOCIAL CARE,MEDACS HOMECARE,454.27,PHY LTS 18-64,HOMECARE - C&V,2103368703,11287415
10.01.2022,ADULT SOCIAL CARE,MEDACS HOMECARE,477.49,PHY LTS 18-64,HOMECARE - C&V,2103368619,11287415
10.01.2022,ADULT SOCIAL CARE,MEDACS HOMECARE,556.48,PHY LTS 18-64,HOMECARE - C&V,2103368603,11287415
10.01.2022,ADULT SOCIAL CARE,MEDACS HOMECARE,560.85,PHY LTS 18-64,HOMECARE - C&V,2103368611,11287415
10.01.2022,ADULT SOCIAL CARE,MEDACS HOMECARE,605.56,PHY LTS 18-64,HOMECARE - C&V,2103368598,11287415
10.01.2022,ADULT SOCIAL CARE,MEDACS HOMECARE,627.20,PHY LTS 18-64,HOMECARE - C&V,2103368701,11287415
10.01.2022,ADULT SOCIAL CARE,MEDACS HOMECARE,690.71,PHY LTS 18-64,HOMECARE - C&V,2103368621,11287415
10.01.2022,ADULT SOCIAL CARE,MEDACS HOMECARE,695.36,PHY LTS 18-64,HOMECARE - C&V,2103368651,11287415
10.01.2022,ADULT SOCIAL CARE,MEDACS HOMECARE,723.17,PHY LTS 18-64,HOMECARE - C&V,2103368652,11287415
10.01.2022,ADULT SOCIAL CARE,MEDACS HOMECARE,746.34,PHY LTS 18-64,HOMECARE - C&V,2103368622,11287415
10.01.2022,ADULT SOCIAL CARE,MEDACS HOMECARE,750.91,PHY LTS 18-64,HOMECARE - C&V,2103368687,11287415
10.01.2022,ADULT SOCIAL CARE,MEDACS HOMECARE,792.63,PHY LTS 18-64,HOMECARE - C&V,2103368578,11287415
10.01.2022,ADULT SOCIAL CARE,MEDACS HOMECARE,936.58,PHY LTS 18-64,HOMECARE - C&V,2103368653,11287415
10.01.2022,ADULT SOCIAL CARE,MEDACS HOMECARE,982.90,PHY LTS 18-64,HOMECARE - C&V,2103368624,11287415
10.01.2022,ADULT SOCIAL CARE,MEDACS HOMECARE,"1,001.35",PHY LTS 18-64,HOMECARE - C&V,2103368634,11287415
10.01.2022,ADULT SOCIAL CARE,MEDACS HOMECARE,"1,103.32",PHY LTS 18-64,HOMECARE - C&V,2103368591,11287415
10.01.2022,ADULT SOCIAL CARE,MEDACS HOMECARE,"1,121.79",PHY LTS 18-64,HOMECARE - C&V,2103368696,11287415
10.01.2022,ADULT SOCIAL CARE,MEDACS HOMECARE,"1,297.87",PHY LTS 18-64,HOMECARE - C&V,2103368642,11287415
10.01.2022,ADULT SOCIAL CARE,MEDACS HOMECARE,"1,367.54",PHY LTS 18-64,HOMECARE - C&V,2103368699,11287415
10.01.2022,ADULT SOCIAL CARE,MEDACS HOMECARE,"1,511.22",PHY LTS 18-64,HOMECARE - C&V,2103368596,11287415
10.01.2022,ADULT SOCIAL CARE,METRO HOMECARE LTD,396.00,PHY LTS 18-64,HOMECARE - SPOT,2103368721,1000070695
10.01.2022,ADULT SOCIAL CARE,METRO HOMECARE LTD,396.00,PHY LTS 18-64,HOMECARE - SPOT,2103368736,1000070695
10.01.2022,ADULT SOCIAL CARE,METRO HOMECARE LTD,495.00,PHY LTS 18-64,HOMECARE - SPOT,2103368717,1000070695
10.01.2022,ADULT SOCIAL CARE,METRO HOMECARE LTD,585.75,PHY LTS 18-64,HOMECARE - SPOT,2103368712,1000070695
10.01.2022,ADULT SOCIAL CARE,METRO HOMECARE LTD,585.75,PHY LTS 18-64,HOMECARE - SPOT,2103368720,1000070695
10.01.2022,ADULT SOCIAL CARE,WARREN LODGE CARE HOME (BUPA),"3,634.95",PHY LTS 18-64,NURSING PLACEMENTS FEES,2103321511,11197104
10.01.2022,ADULT SOCIAL CARE,MEDACS HOMECARE,259.56,PHY LTS 65+,HOMECARE - C&V,2103368645,11287415
10.01.2022,ADULT SOCIAL CARE,MEDACS HOMECARE,282.75,PHY LTS 65+,HOMECARE - C&V,2103368629,11287415
10.01.2022,ADULT SOCIAL CARE,MEDACS HOMECARE,287.41,PHY LTS 65+,HOMECARE - C&V,2103368613,11287415
10.01.2022,ADULT SOCIAL CARE,MEDACS HOMECARE,301.28,PHY LTS 65+,HOMECARE - C&V,2103368614,11287415
10.01.2022,ADULT SOCIAL CARE,MEDACS HOMECARE,301.32,PHY LTS 65+,HOMECARE - C&V,2103368644,11287415
10.01.2022,ADULT SOCIAL CARE,MEDACS HOMECARE,310.65,PHY LTS 65+,HOMECARE - C&V,2103368630,11287415
10.01.2022,ADULT SOCIAL CARE,MEDACS HOMECARE,319.92,PHY LTS 65+,HOMECARE - C&V,2103368660,11287415
10.01.2022,ADULT SOCIAL CARE,MEDACS HOMECARE,358.00,PHY LTS 65+,HOMECARE - C&V,2103368572,11287415
10.01.2022,ADULT SOCIAL CARE,MEDACS HOMECARE,362.31,PHY LTS 65+,HOMECARE - C&V,2103368675,11287415
10.01.2022,ADULT SOCIAL CARE,MEDACS HOMECARE,370.93,PHY LTS 65+,HOMECARE - C&V,2103368632,11287415
10.01.2022,ADULT SOCIAL CARE,MEDACS HOMECARE,380.21,PHY LTS 65+,HOMECARE - C&V,2103368561,11287415
10.01.2022,ADULT SOCIAL CARE,MEDACS HOMECARE,389.46,PHY LTS 65+,HOMECARE - C&V,2103368661,11287415
10.01.2022,ADULT SOCIAL CARE,MEDACS HOMECARE,394.11,PHY LTS 65+,HOMECARE - C&V,2103368670,11287415
10.01.2022,ADULT SOCIAL CARE,MEDACS HOMECARE,426.48,PHY LTS 65+,HOMECARE - C&V,2103368620,11287415
10.01.2022,ADULT SOCIAL CARE,MEDACS HOMECARE,454.31,PHY LTS 65+,HOMECARE - C&V,2103368676,11287415
10.01.2022,ADULT SOCIAL CARE,MEDACS HOMECARE,472.85,PHY LTS 65+,HOMECARE - C&V,2103368563,11287415
10.01.2022,ADULT SOCIAL CARE,MEDACS HOMECARE,509.90,PHY LTS 65+,HOMECARE - C&V,2103368639,11287415
10.01.2022,ADULT SOCIAL CARE,MEDACS HOMECARE,514.53,PHY LTS 65+,HOMECARE - C&V,2103368669,11287415
10.01.2022,ADULT SOCIAL CARE,MEDACS HOMECARE,533.05,PHY LTS 65+,HOMECARE - C&V,2103368657,11287415
10.01.2022,ADULT SOCIAL CARE,MEDACS HOMECARE,543.57,PHY LTS 65+,HOMECARE - C&V,2103368698,11287415
10.01.2022,ADULT SOCIAL CARE,MEDACS HOMECARE,560.88,PHY LTS 65+,HOMECARE - C&V,2103368570,11287415
10.01.2022,ADULT SOCIAL CARE,MEDACS HOMECARE,588.74,PHY LTS 65+,HOMECARE - C&V,2103368588,11287415
10.01.2022,ADULT SOCIAL CARE,MEDACS HOMECARE,591.02,PHY LTS 65+,HOMECARE - C&V,2103368593,11287415
10.01.2022,ADULT SOCIAL CARE,MEDACS HOMECARE,644.38,PHY LTS 65+,HOMECARE - C&V,2103368638,11287415
10.01.2022,ADULT SOCIAL CARE,MEDACS HOMECARE,655.70,PHY LTS 65+,HOMECARE - C&V,2103368599,11287415
10.01.2022,ADULT SOCIAL CARE,MEDACS HOMECARE,694.50,PHY LTS 65+,HOMECARE - C&V,2103368702,11287415
10.01.2022,ADULT SOCIAL CARE,MEDACS HOMECARE,792.77,PHY LTS 65+,HOMECARE - C&V,2103368665,11287415
10.01.2022,ADULT SOCIAL CARE,MEDACS HOMECARE,806.70,PHY LTS 65+,HOMECARE - C&V,2103368635,11287415
10.01.2022,ADULT SOCIAL CARE,MEDACS HOMECARE,820.52,PHY LTS 65+,HOMECARE - C&V,2103368668,11287415
10.01.2022,ADULT SOCIAL CARE,MEDACS HOMECARE,825.15,PHY LTS 65+,HOMECARE - C&V,2103368568,11287415
10.01.2022,ADULT SOCIAL CARE,MEDACS HOMECARE,843.59,PHY LTS 65+,HOMECARE - C&V,2103368625,11287415
10.01.2022,ADULT SOCIAL CARE,MEDACS HOMECARE,871.40,PHY LTS 65+,HOMECARE - C&V,2103368654,11287415
10.01.2022,ADULT SOCIAL CARE,MEDACS HOMECARE,903.94,PHY LTS 65+,HOMECARE - C&V,2103368565,11287415
10.01.2022,ADULT SOCIAL CARE,MEDACS HOMECARE,903.99,PHY LTS 65+,HOMECARE - C&V,2103368693,11287415
10.01.2022,ADULT SOCIAL CARE,MEDACS HOMECARE,918.88,PHY LTS 65+,HOMECARE - C&V,2103368606,11287415
10.01.2022,ADULT SOCIAL CARE,MEDACS HOMECARE,927.03,PHY LTS 65+,HOMECARE - C&V,2103368592,11287415
10.01.2022,ADULT SOCIAL CARE,MEDACS HOMECARE,927.52,PHY LTS 65+,HOMECARE - C&V,2103368709,11287415
10.01.2022,ADULT SOCIAL CARE,MEDACS HOMECARE,950.33,PHY LTS 65+,HOMECARE - C&V,2103368672,11287415
10.01.2022,ADULT SOCIAL CARE,MEDACS HOMECARE,"1,000.81",PHY LTS 65+,HOMECARE - C&V,2103368580,11287415
10.01.2022,ADULT SOCIAL CARE,MEDACS HOMECARE,"1,000.83",PHY LTS 65+,HOMECARE - C&V,2103368682,11287415
10.01.2022,ADULT SOCIAL CARE,MEDACS HOMECARE,"1,144.95",PHY LTS 65+,HOMECARE - C&V,2103368711,11287415
10.01.2022,ADULT SOCIAL CARE,MEDACS HOMECARE,"1,163.45",PHY LTS 65+,HOMECARE - C&V,2103368609,11287415
10.01.2022,ADULT SOCIAL CARE,MEDACS HOMECARE,"1,182.29",PHY LTS 65+,HOMECARE - C&V,2103368617,11287415
10.01.2022,ADULT SOCIAL CARE,MEDACS HOMECARE,"1,209.77",PHY LTS 65+,HOMECARE - C&V,2103368595,11287415
10.01.2022,ADULT SOCIAL CARE,MEDACS HOMECARE,"1,209.92",PHY LTS 65+,HOMECARE - C&V,2103368566,11287415
10.01.2022,ADULT SOCIAL CARE,MEDACS HOMECARE,"1,219.07",PHY LTS 65+,HOMECARE - C&V,2103368601,11287415
10.01.2022,ADULT SOCIAL CARE,MEDACS HOMECARE,"1,219.28",PHY LTS 65+,HOMECARE - C&V,2103368647,11287415
10.01.2022,ADULT SOCIAL CARE,MEDACS HOMECARE,"1,237.63",PHY LTS 65+,HOMECARE - C&V,2103368704,11287415
10.01.2022,ADULT SOCIAL CARE,MEDACS HOMECARE,"1,297.86",PHY LTS 65+,HOMECARE - C&V,2103368626,11287415
10.01.2022,ADULT SOCIAL CARE,MEDACS HOMECARE,"1,311.77",PHY LTS 65+,HOMECARE - C&V,2103368655,11287415
10.01.2022,ADULT SOCIAL CARE,MEDACS HOMECARE,"1,335.08",PHY LTS 65+,HOMECARE - C&V,2103368615,11287415
10.01.2022,ADULT SOCIAL CARE,MEDACS HOMECARE,"1,353.91",PHY LTS 65+,HOMECARE - C&V,2103368590,11287415
10.01.2022,ADULT SOCIAL CARE,MEDACS HOMECARE,"1,358.25",PHY LTS 65+,HOMECARE - C&V,2103368646,11287415
10.01.2022,ADULT SOCIAL CARE,MEDACS HOMECARE,"1,392.81",PHY LTS 65+,HOMECARE - C&V,2103368695,11287415
10.01.2022,ADULT SOCIAL CARE,MEDACS HOMECARE,"1,715.20",PHY LTS 65+,HOMECARE - C&V,2103368662,11287415
10.01.2022,ADULT SOCIAL CARE,MEDACS HOMECARE,"1,729.06",PHY LTS 65+,HOMECARE - C&V,2103368664,11287415
10.01.2022,ADULT SOCIAL CARE,MEDACS HOMECARE,"1,756.92",PHY LTS 65+,HOMECARE - C&V,2103368633,11287415
10.01.2022,ADULT SOCIAL CARE,MEDACS HOMECARE,"1,770.83",PHY LTS 65+,HOMECARE - C&V,2103368594,11287415
10.01.2022,ADULT SOCIAL CARE,MEDACS HOMECARE,"1,789.47",PHY LTS 65+,HOMECARE - C&V,2103368705,11287415
10.01.2022,ADULT SOCIAL CARE,MEDACS HOMECARE,"1,812.62",PHY LTS 65+,HOMECARE - C&V,2103368602,11287415
10.01.2022,ADULT SOCIAL CARE,MEDACS HOMECARE,"1,900.46",PHY LTS 65+,HOMECARE - C&V,2103368636,11287415
10.01.2022,ADULT SOCIAL CARE,MEDACS HOMECARE,"1,932.91",PHY LTS 65+,HOMECARE - C&V,2103368666,11287415
10.01.2022,ADULT SOCIAL CARE,MEDACS HOMECARE,"2,188.03",PHY LTS 65+,HOMECARE - C&V,2103368697,11287415
10.01.2022,ADULT SOCIAL CARE,MEDACS HOMECARE,"2,234.60",PHY LTS 65+,HOMECARE - C&V,2103368649,11287415
10.01.2022,ADULT SOCIAL CARE,MEDACS HOMECARE,"2,262.39",PHY LTS 65+,HOMECARE - C&V,2103368618,11287415
10.01.2022,ADULT SOCIAL CARE,MEDACS HOMECARE,"2,394.02",PHY LTS 65+,HOMECARE - C&V,2103368582,11287415
10.01.2022,ADULT SOCIAL CARE,MEDACS HOMECARE,"2,456.72",PHY LTS 65+,HOMECARE - C&V,2103368679,11287415
10.01.2022,ADULT SOCIAL CARE,MEDACS HOMECARE,"2,572.51",PHY LTS 65+,HOMECARE - C&V,2103368577,11287415
10.01.2022,ADULT SOCIAL CARE,MEDACS HOMECARE,"2,572.95",PHY LTS 65+,HOMECARE - C&V,2103368571,11287415
10.01.2022,ADULT SOCIAL CARE,MEDACS HOMECARE,"2,619.33",PHY LTS 65+,HOMECARE - C&V,2103368681,11287415
10.01.2022,ADULT SOCIAL CARE,MEDACS HOMECARE,"2,635.60",PHY LTS 65+,HOMECARE - C&V,2103368685,11287415
10.01.2022,ADULT SOCIAL CARE,MEDACS HOMECARE,"2,656.28",PHY LTS 65+,HOMECARE - C&V,2103368641,11287415
10.01.2022,ADULT SOCIAL CARE,MEDACS HOMECARE,"2,804.66",PHY LTS 65+,HOMECARE - C&V,2103368616,11287415
10.01.2022,ADULT SOCIAL CARE,MEDACS HOMECARE,"3,031.86",PHY LTS 65+,HOMECARE - C&V,2103368564,11287415
10.01.2022,ADULT SOCIAL CARE,MEDACS HOMECARE,"3,147.70",PHY LTS 65+,HOMECARE - C&V,2103368673,11287415
10.01.2022,ADULT SOCIAL CARE,MEDACS HOMECARE,"3,441.90",PHY LTS 65+,HOMECARE - C&V,2103368597,11287415
10.01.2022,ADULT SOCIAL CARE,MEDACS HOMECARE,"3,498.04",PHY LTS 65+,HOMECARE - C&V,2103368700,11287415
10.01.2022,ADULT SOCIAL CARE,METRO HOMECARE LTD,264.00,PHY LTS 65+,HOMECARE - SPOT,2103368733,1000070695
10.01.2022,ADULT SOCIAL CARE,METRO HOMECARE LTD,338.25,PHY LTS 65+,HOMECARE - SPOT,2103368546,1000070695
10.01.2022,ADULT SOCIAL CARE,METRO HOMECARE LTD,342.38,PHY LTS 65+,HOMECARE - SPOT,2103368559,1000070695
10.01.2022,ADULT SOCIAL CARE,METRO HOMECARE LTD,354.75,PHY LTS 65+,HOMECARE - SPOT,2103368716,1000070695
10.01.2022,ADULT SOCIAL CARE,METRO HOMECARE LTD,412.50,PHY LTS 65+,HOMECARE - SPOT,2103368726,1000070695
10.01.2022,ADULT SOCIAL CARE,METRO HOMECARE LTD,441.28,PHY LTS 65+,HOMECARE - SPOT,2103368549,1000070695
10.01.2022,ADULT SOCIAL CARE,METRO HOMECARE LTD,441.28,PHY LTS 65+,HOMECARE - SPOT,2103368557,1000070695
10.01.2022,ADULT SOCIAL CARE,METRO HOMECARE LTD,441.28,PHY LTS 65+,HOMECARE - SPOT,2103368735,1000070695
10.01.2022,ADULT SOCIAL CARE,METRO HOMECARE LTD,495.00,PHY LTS 65+,HOMECARE - SPOT,2103368552,1000070695
10.01.2022,ADULT SOCIAL CARE,METRO HOMECARE LTD,495.00,PHY LTS 65+,HOMECARE - SPOT,2103368729,1000070695
10.01.2022,ADULT SOCIAL CARE,METRO HOMECARE LTD,495.00,PHY LTS 65+,HOMECARE - SPOT,2103368739,1000070695
10.01.2022,ADULT SOCIAL CARE,METRO HOMECARE LTD,602.25,PHY LTS 65+,HOMECARE - SPOT,2103368719,1000070695
10.01.2022,ADULT SOCIAL CARE,METRO HOMECARE LTD,610.50,PHY LTS 65+,HOMECARE - SPOT,2103368737,1000070695
10.01.2022,ADULT SOCIAL CARE,METRO HOMECARE LTD,899.25,PHY STS 18-64,HOMECARE - IC,2103368545,1000070695
10.01.2022,ADULT SOCIAL CARE,METRO HOMECARE LTD,"1,204.50",PHY STS 18-64,HOMECARE - IC,2103368730,1000070695
10.01.2022,ADULT SOCIAL CARE,METRO HOMECARE LTD,354.75,PHY STS 65+,HOMECARE - IC,2103368714,1000070695
10.01.2022,ADULT SOCIAL CARE,METRO HOMECARE LTD,404.25,PHY STS 65+,HOMECARE - IC,2103368551,1000070695
10.01.2022,ADULT SOCIAL CARE,METRO HOMECARE LTD,404.25,PHY STS 65+,HOMECARE - IC,2103368718,1000070695
10.01.2022,ADULT SOCIAL CARE,METRO HOMECARE LTD,437.35,PHY STS 65+,HOMECARE - IC,2103368548,1000070695
10.01.2022,ADULT SOCIAL CARE,METRO HOMECARE LTD,862.22,PHY STS 65+,HOMECARE - IC,2103368556,1000070695
10.01.2022,ADULT SOCIAL CARE,METRO HOMECARE LTD,928.22,PHY STS 65+,HOMECARE - IC,2103368734,1000070695
10.01.2022,ADULT SOCIAL CARE,METRO HOMECARE LTD,420.75,SOCIAL ISOLATION,HOMECARE - SPOT,2103368732,1000070695
10.01.2022,ADULT SOCIAL CARE,MEDACS HOMECARE,346.00,SPECIALIST CARE,SECTION 17 PAYMENTS TO AGENCIES/CARERS,2103368794,11287415
10.01.2022,ADULT SOCIAL CARE,MEDACS HOMECARE,968.80,SPECIALIST CARE,SECTION 17 PAYMENTS TO AGENCIES/CARERS,2103368795,11287415
10.01.2022,ADULT SOCIAL CARE,MEDACS HOMECARE,"1,211.00",SPECIALIST CARE,SECTION 17 PAYMENTS TO AGENCIES/CARERS,2103368793,11287415
10.01.2022,ADULT SOCIAL CARE,MEDACS HOMECARE,278.17,SUB LTS 18-64,HOMECARE - C&V,2103368587,11287415
10.01.2022,ADULT SOCIAL CARE,MEDACS HOMECARE,426.51,SUB LTS 18-64,HOMECARE - C&V,2103368691,11287415
10.01.2022,ADULT SOCIAL CARE,MEDACS HOMECARE,"1,126.45",SUB LTS 18-64,HOMECARE - SPOT,2103368574,11287415
10.01.2022,ASSET MANAGEMENT,PROPERTY FACILITIES GROUP LTD,"1,018.35",DISREPAIR,PAYMENTS FOR LEGAL SERVICES,5902504309,1000063713
10.01.2022,ASSET MANAGEMENT,ARMINA LTD,"1,756.11",DISREPAIR,PAYMENTS FOR LEGAL SERVICES,2103368799,3000002121
10.01.2022,ASSET MANAGEMENT,ARMINA LTD,"2,389.31",DISREPAIR,PAYMENTS FOR LEGAL SERVICES,2103368796,3000002121
10.01.2022,ASSET MANAGEMENT,CAMERON CONSULTING (UK) LTD,687.50,INVESTMENT MANAGER,PROFESSIONAL FEES,5902504369,1000064510
10.01.2022,ASSET MANAGEMENT,PROPERTY FACILITIES GROUP LTD,500.00,MAJOR REPAIRS,BUILDING R&M,5902504302,1000063713
10.01.2022,ASSET MANAGEMENT,1ST ACTIVE PROPERTY SERVICES,500.00,MAJOR REPAIRS,BUILDING R&M,5902504209,1000068320
10.01.2022,ASSET MANAGEMENT HGF,EXCEL EXECUTIVE LTD,"6,573.74",REPAIR AND MAINTENANCE SERVICES,CAB FARES,5902504276,1000080424
10.01.2022,ASSET MANAGEMENT HGF,PULSE CORPORATION LTD,535.00,REPAIR AND MAINTENANCE SERVICES,HARDWARE,5902504331,1000072911
10.01.2022,ASSET MANAGEMENT HGF,PULSE CORPORATION LTD,542.50,REPAIR AND MAINTENANCE SERVICES,HARDWARE,5902504340,1000072911
10.01.2022,ASSET MANAGEMENT HGF,PULSE CORPORATION LTD,"1,475.00",REPAIR AND MAINTENANCE SERVICES,HARDWARE,5902504315,1000072911
10.01.2022,ASSET MANAGEMENT HGF,PULSE CORPORATION LTD,"3,885.00",REPAIR AND MAINTENANCE SERVICES,HARDWARE,5902504346,1000072911
10.01.2022,CHIEF EXECUTIVE'S OFFICE,BANKSIDE OPEN SPACES TRUST,"7,747.00",ADDITIONAL RESTRICTIONS GRANT,GRANTS,5902504229,1000018290
10.01.2022,CHIEF EXECUTIVE'S OFFICE,LATIN AMERICAN WOMEN'S RIGHTS SERVICES,"7,502.00",CHIEF EXECUTIVE'S OFFICE,EXTERNAL AGENCIES AND BODIES,5902504356,1000068356
10.01.2022,CHILDREN AND FAMILIES,SOUTH LONDON & MAUDSLEY HOSPITAL,"2,500.00",ADOPTION SUPP FUND,PROFESSIONAL FEES,5902504330,1000013096
10.01.2022,CHILDREN AND FAMILIES,SOUTH LONDON & MAUDSLEY HOSPITAL,"2,500.00",ADOPTION SUPP FUND,PROFESSIONAL FEES,5902504333,1000013096
10.01.2022,CHILDREN AND FAMILIES,THE ANNA FREUD CENTRE,"3,600.00",ADOPTION SUPP FUND,PROFESSIONAL FEES,5902504286,1000017805
10.01.2022,CHILDREN AND FAMILIES,DISCLOSURE & BARRING SERVICE,"4,760.00",CENTRAL SUPPORT,EXTERNAL AGENCIES AND BODIES,5902504234,1000027861
10.01.2022,CHILDREN AND FAMILIES,CREATING CARE CHOICES LTD,"7,071.43",CHILDREN�S RESID,RESIDENTIAL CARE,2103368790,1000076738
10.01.2022,CHILDREN AND FAMILIES,PARTNERS IN CARE LTD,"-11,390.05",CHILDREN�S RESID,RESIDENTIAL CARE,2103368791,1000086043
10.01.2022,CHILDREN AND FAMILIES,PARTNERS IN CARE LTD,900.00,CHILDREN�S RESID,RESIDENTIAL CARE,2103368788,1000086043
10.01.2022,CHILDREN AND FAMILIES,PARTNERS IN CARE LTD,"23,914.29",CHILDREN�S RESID,RESIDENTIAL CARE,2103368789,1000086043
10.01.2022,CHILDREN AND FAMILIES,PARTNERS IN CARE LTD,"34,532.91",CHILDREN�S RESID,RESIDENTIAL CARE,2103368792,1000086043
10.01.2022,CHILDREN AND FAMILIES,COMPASS CHILDREN HOMES LIMITED,"16,695.67",CHILDREN�S RESID,RESIDENTIAL CARE,2103368787,1000086507
10.01.2022,CHILDREN AND FAMILIES,NETWORK RECRUITMENT SOLUTIONS,382.20,CONTACT SERVICE,OTHER PAYMENTS FOR CLIENTS,5902504201,1000071241
10.01.2022,CHILDREN AND FAMILIES,NETWORK RECRUITMENT SOLUTIONS,450.00,CONTACT SERVICE,OTHER PAYMENTS FOR CLIENTS,5902504202,1000071241
10.01.2022,CHILDREN AND FAMILIES,NEGOTIATORS FAMILY CENTRE LIMITED,470.00,CONTACT SERVICE,OTHER PAYMENTS FOR CLIENTS,5902504213,1000075672
10.01.2022,CHILDREN AND FAMILIES,TACT,"3,906.00",FRIENDS & FAMILY FOSTERING,EXTERNAL AGENCIES AND BODIES,2103368775,1000012941
10.01.2022,CHILDREN AND FAMILIES,TACT,"3,998.72",FRIENDS & FAMILY FOSTERING,EXTERNAL AGENCIES AND BODIES,2103368779,1000012941
10.01.2022,CHILDREN AND FAMILIES,TACT,"4,956.14",FRIENDS & FAMILY FOSTERING,EXTERNAL AGENCIES AND BODIES,2103368772,1000012941
10.01.2022,CHILDREN AND FAMILIES,FIVE RIVERS CHILD CARE LTD,"3,257.14",FRIENDS & FAMILY FOSTERING,EXTERNAL AGENCIES AND BODIES,2103368777,1000018792
10.01.2022,CHILDREN AND FAMILIES,FIVE RIVERS CHILD CARE LTD,"3,576.96",FRIENDS & FAMILY FOSTERING,EXTERNAL AGENCIES AND BODIES,2103368773,1000018792
10.01.2022,CHILDREN AND FAMILIES,FIVE RIVERS CHILD CARE LTD,"3,576.96",FRIENDS & FAMILY FOSTERING,EXTERNAL AGENCIES AND BODIES,2103368776,1000018792
10.01.2022,CHILDREN AND FAMILIES,FIVE RIVERS CHILD CARE LTD,"3,631.43",FRIENDS & FAMILY FOSTERING,EXTERNAL AGENCIES AND BODIES,2103368786,1000018792
10.01.2022,CHILDREN AND FAMILIES,GREATER LONDON FOSTERING,"3,534.00",FRIENDS & FAMILY FOSTERING,EXTERNAL AGENCIES AND BODIES,2103368770,1000029184
10.01.2022,CHILDREN AND FAMILIES,GREATER LONDON FOSTERING,"3,760.30",FRIENDS & FAMILY FOSTERING,EXTERNAL AGENCIES AND BODIES,2103368780,1000029184
10.01.2022,CHILDREN AND FAMILIES,GREATER LONDON FOSTERING,"3,760.30",FRIENDS & FAMILY FOSTERING,EXTERNAL AGENCIES AND BODIES,2103368785,1000029184
10.01.2022,CHILDREN AND FAMILIES,GREATER LONDON FOSTERING,"4,645.35",FRIENDS & FAMILY FOSTERING,EXTERNAL AGENCIES AND BODIES,2103368778,1000029184
10.01.2022,CHILDREN AND FAMILIES,GREATER LONDON FOSTERING,"5,108.80",FRIENDS & FAMILY FOSTERING,EXTERNAL AGENCIES AND BODIES,2103368771,1000029184
10.01.2022,CHILDREN AND FAMILIES,GREATER LONDON FOSTERING,"7,709.70",FRIENDS & FAMILY FOSTERING,EXTERNAL AGENCIES AND BODIES,2103368784,1000029184
10.01.2022,CHILDREN AND FAMILIES,KASPER FOSTERING,"3,513.23",FRIENDS & FAMILY FOSTERING,EXTERNAL AGENCIES AND BODIES,2103368783,1000036628
10.01.2022,CHILDREN AND FAMILIES,KASPER FOSTERING,"4,640.39",FRIENDS & FAMILY FOSTERING,EXTERNAL AGENCIES AND BODIES,2103368782,1000036628
10.01.2022,CHILDREN AND FAMILIES,REGIONAL FOSTERING SERVICES LTD,"4,186.11",FRIENDS & FAMILY FOSTERING,EXTERNAL AGENCIES AND BODIES,2103368774,1000080112
10.01.2022,CHILDREN AND FAMILIES,REDACTED PERSONAL DATA,300.00,P & R CARE TEAM,OTHER PAYMENTS FOR CLIENTS,REDACTED,REDACTED
10.01.2022,CHILDREN AND FAMILIES,NEXT STEP CARE MANAGEMENT LTD,"2,989.29",SEMI-IND CARELEAVERS,EXTERNAL AGENCIES AND BODIES,2103368747,1825556
10.01.2022,CHILDREN AND FAMILIES,NEXT STEP CARE MANAGEMENT LTD,"3,432.14",SEMI-IND CARELEAVERS,EXTERNAL AGENCIES AND BODIES,2103368743,1825556
10.01.2022,CHILDREN AND FAMILIES,OWNLIFE LTD,"3,428.58",SEMI-IND CARELEAVERS,EXTERNAL AGENCIES AND BODIES,2103368742,1000056219
10.01.2022,CHILDREN AND FAMILIES,OWNLIFE LTD,"3,542.87",SEMI-IND CARELEAVERS,EXTERNAL AGENCIES AND BODIES,2103368744,1000056219
10.01.2022,CHILDREN AND FAMILIES,EPIC CARE HOME LTD,"4,207.13",SEMI-IND LAC 16-17,EXTERNAL AGENCIES AND BODIES,2103368758,1000084192
10.01.2022,CHILDREN AND FAMILIES,SYDNEY CARE LTD,399.00,SEMI-IND LAC 16-17,OTHER PAYMENTS FOR CLIENTS,2103368769,1000081598
10.01.2022,CHILDREN AND FAMILIES,TRANSFORMING LIVES COMPANY LTD,280.00,SEMI-IND LAC 16-17,OTHER PAYMENTS FOR CLIENTS,2103368768,1000083352
10.01.2022,CHILDREN AND FAMILIES,EPIC CARE HOME LTD,265.72,SEMI-IND LAC 16-17,OTHER PAYMENTS FOR CLIENTS,2103368759,1000084192
10.01.2022,CHILDREN AND FAMILIES,BASILDON TAXIS LTD,367.50,SEMI-IND LAC 16-17,OTHER PAYMENTS FOR CLIENTS,2103368749,1000085466
10.01.2022,CHILDREN AND FAMILIES,GREATER LONDON FOSTERING,"1,882.01",STAYPUT- FOST CARERS,EXTERNAL AGENCIES AND BODIES,2103368748,1000029184
10.01.2022,CHILDREN AND FAMILIES,GREATER LONDON FOSTERING,"2,316.55",STAYPUT- FOST CARERS,EXTERNAL AGENCIES AND BODIES,2103368745,1000029184
10.01.2022,CHILDREN AND FAMILIES,EPIC CARE HOME LTD,"3,764.28",UASC LAC 16-17,EXTERNAL AGENCIES AND BODIES,2103368760,1000084192
10.01.2022,CHILDREN AND FAMILIES,PCS SERVICES LIMITED,"1,400.57",UASC LAC 16-17,EXTERNAL AGENCIES AND BODIES,2103368750,1000087059
10.01.2022,CHILDREN AND FAMILIES,PCS SERVICES LIMITED,"3,294.28",UASC LAC 16-17,EXTERNAL AGENCIES AND BODIES,2103368756,1000087059
10.01.2022,CHILDREN AND FAMILIES,PCS SERVICES LIMITED,"3,355.28",UASC LAC 16-17,EXTERNAL AGENCIES AND BODIES,2103368752,1000087059
10.01.2022,CHILDREN AND FAMILIES,PCS SERVICES LIMITED,"3,355.28",UASC LAC 16-17,EXTERNAL AGENCIES AND BODIES,2103368762,1000087059
10.01.2022,CHILDREN AND FAMILIES,PCS SERVICES LIMITED,"3,355.28",UASC LAC 16-17,EXTERNAL AGENCIES AND BODIES,2103368764,1000087059
10.01.2022,CHILDREN AND FAMILIES,PCS SERVICES LIMITED,"3,405.28",UASC LAC 16-17,EXTERNAL AGENCIES AND BODIES,2103368754,1000087059
10.01.2022,CHILDREN AND FAMILIES,PCS SERVICES LIMITED,"3,532.00",UASC LAC 16-17,EXTERNAL AGENCIES AND BODIES,2103368766,1000087059
10.01.2022,CHILDREN AND FAMILIES,EPIC CARE HOME LTD,265.72,UASC LAC 16-17,OTHER PAYMENTS FOR CLIENTS,2103368761,1000084192
10.01.2022,CHILDREN AND FAMILIES,PCS SERVICES LIMITED,565.72,UASC LAC 16-17,OTHER PAYMENTS FOR CLIENTS,2103368753,1000087059
10.01.2022,CHILDREN AND FAMILIES,PCS SERVICES LIMITED,565.72,UASC LAC 16-17,OTHER PAYMENTS FOR CLIENTS,2103368755,1000087059
10.01.2022,CHILDREN AND FAMILIES,PCS SERVICES LIMITED,565.72,UASC LAC 16-17,OTHER PAYMENTS FOR CLIENTS,2103368757,1000087059
10.01.2022,CHILDREN AND FAMILIES,PCS SERVICES LIMITED,565.72,UASC LAC 16-17,OTHER PAYMENTS FOR CLIENTS,2103368763,1000087059
10.01.2022,CHILDREN AND FAMILIES,PCS SERVICES LIMITED,565.72,UASC LAC 16-17,OTHER PAYMENTS FOR CLIENTS,2103368765,1000087059
10.01.2022,CHILDREN AND FAMILIES,PCS SERVICES LIMITED,610.00,UASC LAC 16-17,OTHER PAYMENTS FOR CLIENTS,2103368767,1000087059
10.01.2022,COMMUNITIES,CHANGE GROW LIVE SERVICES LTD,"285,060.00",ADULT SM SERVICE,OTHER CONTRACTORS,5902504312,1000082721
10.01.2022,COMMUNITIES,NOVOTEL LONDON BLACKFRIARS,750.00,AFGHAN RESETTLEMENT,HIRE OF ROOMS/HALLS,5902504314,1000087640
10.01.2022,COMMUNITIES,SUMNER RESIDENTS ASSOCIATION,500.00,EAST CENTRAL,GRANTS,5902504338,1000002338
10.01.2022,COMMUNITIES,SOUTHWARK CITIZENS ADVICE,"27,081.00",LEGAL GRANTS,EXTERNAL AGENCIES AND BODIES,5902504230,1874379
10.01.2022,COMMUNITIES,SOUTHWARK CITIZENS ADVICE,"150,000.00",LEGAL GRANTS,EXTERNAL AGENCIES AND BODIES,5902504230,1874379
10.01.2022,COMMUNITIES,METRO HOMECARE LTD,363.00,NO RECOURSE TO PUBLIC FUNDS,HOMECARE - C&V,2103368725,1000070695
10.01.2022,COMMUNITIES,SCIP5 EDUCATION AND MEDIA,"11,000.00",SOUTHWARK ANTI VIOLENCE UNIT,CONSULTANTS SERVICES,5902504261,1000087762
10.01.2022,COMMUNITIES HRA,LEATHERMARKET JMB HOUSING,"141,155.00",LEATHERMARKET CO-OP,M&M ALLOWANCE CO-OPS,5902504288,11182872
10.01.2022,CUSTOMER EXPERIENCE,POSTURITE LTD,263.96,PECKHAM MSSP,FURNITURE PURCHASE & REPAIR,5902504284,11015468
10.01.2022,CUSTOMER EXPERIENCE,PLAN LONDON LTD,"3,744.00",SALES & ACQUISITIONS,PROFESSIONAL FEES,5902504132,1000056065
10.01.2022,CUSTOMER EXPERIENCE HGF,VALTECH LTD,298.70,BLUE BADGES,MATERIALS,5902504285,1000082245
10.01.2022,EDUCATION,LEARNING UNLIMITED,"1,000.00",ALC COMMUNITY LEARNING,GRANTS,5902504360,1000068095
10.01.2022,EDUCATION,LEARNING UNLIMITED,"3,750.00",ALC COMMUNITY LEARNING,GRANTS,5902504361,1000068095
10.01.2022,EDUCATION,MARGARETS MUSIC LTD,"1,175.00",LEA MUSIC SERVICE(310) - 5018566,CONSULTANTS SERVICES,5902504353,1000073116
10.01.2022,EDUCATION,ACCESS MOBILITY TRANSPORT LTD,"12,131.00",SCH TRANS � TRAVEL,CAB FARES,5902504334,1000074637
10.01.2022,EDUCATION,ACCESS MOBILITY TRANSPORT LTD,"58,411.00",SCH TRANS � TRAVEL,CAB FARES,5902504342,1000074637
10.01.2022,ENVIRONMENT AND LEISURE,COTTRELL AND VERMEULEN ARCH LTD,"9,700.00",CAPITAL PS (LEISURE),CAPITAL EOY ADJUSTMENTS,5902504247,1000012119
10.01.2022,ENVIRONMENT AND LEISURE,AQUAM WATER SERVICES LTD,"1,292.53",SANDGATE STREET,WATER,5902504238,1000077006
10.01.2022,ENVIRONMENT AND LEISURE,AQUAM WATER SERVICES LTD,"1,292.53",SANDGATE STREET,WATER,5902504243,1000077006
10.01.2022,ENVIRONMENT AND LEISURE,AQUAM WATER SERVICES LTD,"1,292.53",SANDGATE STREET,WATER,5902504245,1000077006
10.01.2022,ENVIRONMENT AND LEISURE,AQUAM WATER SERVICES LTD,"1,292.53",SANDGATE STREET,WATER,5902504274,1000077006
10.01.2022,ENVIRONMENT AND LEISURE,AQUAM WATER SERVICES LTD,"3,019.55",SANDGATE STREET,WATER,5902504253,1000077006
10.01.2022,ENVIRONMENT AND LEISURE,AQUAM WATER SERVICES LTD,"3,019.55",SANDGATE STREET,WATER,5902504256,1000077006
10.01.2022,ENVIRONMENT AND LEISURE,AQUAM WATER SERVICES LTD,"3,019.55",SANDGATE STREET,WATER,5902504258,1000077006
10.01.2022,ENVIRONMENT AND LEISURE,AQUAM WATER SERVICES LTD,"3,019.55",SANDGATE STREET,WATER,5902504260,1000077006
10.01.2022,ENVIRONMENT AND LEISURE,AQUAM WATER SERVICES LTD,"3,019.55",SANDGATE STREET,WATER,5902504263,1000077006
10.01.2022,ENVIRONMENT DIRECTORATE,DANARM MACHINERY LIMITED,405.49,ICC SPECIAL TEAMS,EQUIPMENT PURCHASE & REPAIR,5902504349,1000045097
10.01.2022,ENVIRONMENT DIRECTORATE,ONSITE SUPPORT LTD,477.60,STREET CLEANING-GENERAL,EQUIPMENT PURCHASE & REPAIR,5902504233,1000043198
10.01.2022,ENVIRONMENT DIRECTORATE,VEOLIA ES SOUTHWARK LTD,"2,096,407.63",WASTE PFI,PFI/PPP PAYMENTS,5902504358,1000056979
10.01.2022,F & C S EXCLUDING CORPORATE BUDGETS,DSI BILLING SERVICES LTD,"1,729.62",ADMINISTRATIVE SUPPORT,POSTAGES,5902504269,1000058640
10.01.2022,F & C S EXCLUDING CORPORATE BUDGETS,CAPITA BUSINESS SERVICES LTD,"3,864.03",CAPITA,OTHER CONTRACTORS,5902504268,1000006291
10.01.2022,HOUSING GENERAL FUND,LONDON BOROUGH OF BRENT,"20,871.01",CAPITAL PS (HOUSING GF),ICT ACQUISITION,5902504232,1000064734
10.01.2022,HOUSING HRA,AMCAS- ASSET MANAGEMENT & COMPLIANCY AUDITING SERVICES,"3,500.00",CAPITAL PS (HRA),CONSTRUCTION,5902504228,1000086291
10.01.2022,HOUSING HRA,CALFORD SEADEN LLP,"3,832.26",CAPITAL PS (HRA),CONSTRUCTION FEES  - EXTERNAL,5902504300,1061592
10.01.2022,HOUSING HRA,CALFORD SEADEN LLP,"3,860.26",CAPITAL PS (HRA),CONSTRUCTION FEES  - EXTERNAL,5902504365,1061592
10.01.2022,HOUSING HRA,CALFORD SEADEN LLP,"8,294.04",CAPITAL PS (HRA),CONSTRUCTION FEES  - EXTERNAL,5902504371,1061592
10.01.2022,HOUSING HRA,SOCOTEC UK LTD,"1,900.00",CAPITAL PS (HRA),CONSTRUCTION FEES  - EXTERNAL,5902504227,1000012442
10.01.2022,HOUSING HRA,TEMPLE GROUP LTD,"2,075.00",CAPITAL PS (HRA),CONSTRUCTION FEES  - EXTERNAL,5902504370,1000072247
10.01.2022,HOUSING HRA,TEMPLE GROUP LTD,"2,075.00",CAPITAL PS (HRA),CONSTRUCTION FEES  - EXTERNAL,5902504370,1000072247
10.01.2022,HOUSING HRA,ANTHESIS (UK) LTD,750.00,CAPITAL PS (HRA),CONSTRUCTION FEES  - EXTERNAL,5902504373,1000084124
10.01.2022,HOUSING HRA,WHITBY WOOD LTD,"8,650.00",CAPITAL PS (HRA),CONSTRUCTION FEES  - EXTERNAL,5902504316,1000086224
10.01.2022,HOUSING HRA,GREENGAGE ENVIROMENTAL LTD,734.11,CAPITAL PS (HRA),CONSTRUCTION FEES  - EXTERNAL,5902504320,1000086955
10.01.2022,HOUSING HRA,OOBE LTD,"3,375.00",CAPITAL PS (HRA),CONSTRUCTION FEES - ARCHITECT,5902503557,1000087475
10.01.2022,HOUSING HRA,BAILY  GARNER LLP,"-1,780.00",CAPITAL PS (HRA),CONSTRUCTION FEES - EMPLOYERS AGENT,5902504348,1000663
10.01.2022,HOUSING HRA,BAILY  GARNER LLP,"2,004.16",CAPITAL PS (HRA),CONSTRUCTION FEES - EMPLOYERS AGENT,5902504344,1000663
10.01.2022,HOUSING HRA,ASPEN BUILD (EAST ANGLIA) LTD,"3,436.39",CAPITAL PS (HRA),CONSTRUCTION MAIN CONTRACT -CERTIFICATED,2103368798,3000002075
10.01.2022,HOUSING HRA,ASPEN BUILD (EAST ANGLIA) LTD,"181,163.13",CAPITAL PS (HRA),CONSTRUCTION MAIN CONTRACT -CERTIFICATED,2103368798,3000002075
10.01.2022,HOUSING HRA,HEPHER GRINCELL LTD,"7,400.00",CAPITAL PS (HRA),PLANNING & S106 FEES,5902504355,1000086810
10.01.2022,HOUSING HRA,HEPHER GRINCELL LTD,"12,000.00",CAPITAL PS (HRA),PLANNING & S106 FEES,5902504357,1000086810
10.01.2022,HOUSING HRA,BELL PHILLIPS ARCHITECTS LTD,"3,087.50",CAPITAL PS (REGEN),CONSTRUCTION FEES  - EXTERNAL,5902504362,1000069307
10.01.2022,HOUSING HRA,MORRIS + COMPANY LTD,"1,562.50",CAPITAL PS (REGEN),CONSTRUCTION FEES - ARCHITECT,5902504093,1000084228
10.01.2022,HOUSING HRA,MORRIS + COMPANY LTD,"1,562.50",CAPITAL PS (REGEN),CONSTRUCTION FEES - ARCHITECT,5902504093,1000084228
10.01.2022,HOUSING HRA,MORRIS + COMPANY LTD,"59,055.50",CAPITAL PS (REGEN),CONSTRUCTION FEES - ARCHITECT,5902504094,1000084228
10.01.2022,HOUSING HRA,MORRIS + COMPANY LTD,"59,055.50",CAPITAL PS (REGEN),CONSTRUCTION FEES - ARCHITECT,5902504094,1000084228
10.01.2022,HOUSING HRA,KENT COUNTY COUNCIL - LASER,"53,832.33",RESIDENT SERVICES BUSINESS SUPPORT,ELECTRICITY,6102011162,DIRECT DEBIT PAYMENT
10.01.2022,HOUSING HRA,KENT COUNTY COUNCIL - LASER,"32,744.90",RESIDENT SERVICES BUSINESS SUPPORT,ELECTRICITY,6102011163,DIRECT DEBIT PAYMENT
10.01.2022,LEISURE DIRECTORATE,STEPHANIE SMILES,"1,000.00",ARTS PROJECT,CONSULTANTS SERVICES,5902504318,1000087639
10.01.2022,LEISURE DIRECTORATE,KOMPAN LTD,"4,900.03",BURGESS AREA TEAM,OTHER R&M,5902504325,1080346
10.01.2022,LEISURE DIRECTORATE,KENT COUNTY COUNCIL - LASER,"1,861.34",CAMBERWELL LIBRARY,ELECTRICITY,5902504304,1000012926
10.01.2022,LEISURE DIRECTORATE,WESTMINSTER WASTE,901.00,CEMETERIES,OTHER CONTRACTORS,5902504343,1000080933
10.01.2022,LEISURE DIRECTORATE,SCHOOL OF SKATE LTD,640.00,COMMUNITY SPORTS DEVELOPMENT,EXTERNAL AGENCIES AND BODIES,5902504292,1000087722
10.01.2022,LEISURE DIRECTORATE,VIVEDIA LIMITED,830.00,CREMATORIUM,SUBSCRIPTIONS,5902504332,1000064867
10.01.2022,LEISURE DIRECTORATE,TIM MOYA ASSOCIATES,600.00,SOUTHWARK AREA TEAM,GROUNDS MAINTENANCE,5902504235,1000079572
10.01.2022,NEW BUILD,BAILY  GARNER LLP,"9,351.95",DEVELOPMENT DELIVERY,PROFESSIONAL FEES,5902504352,1000663
10.01.2022,PLANNING AND TRANSPORT,THE DEXTROUS WEB LTD,"2,040.00",PLANNING POLICY TEAM,SOFTWARE,5902504327,1000083020
10.01.2022,PUBLIC HEALTH,IMPACT UNION LTD,"2,100.00",PLACE & HEALTH IMPROVEMENT,EXTERNAL AGENCIES AND BODIES,5902504119,1000085136
10.01.2022,REGENERATION,SHARPE PRITCHARD LLP,"2,080.00",SSF PROGRAMME COST,PAYMENTS FOR LEGAL SERVICES,5902504310,1790085
10.01.2022,RESIDENT SERVICES HGF,LONDON & QUADRANT,"8,000.00",HOUSING OPTIONS,EXTERNAL AGENCIES AND BODIES,5902504251,1000045704
10.01.2022,RESIDENT SERVICES HGF,LOOK AHEAD CARE AND SUPPORT LTD,"1,000.00",HOUSING OPTIONS,EXTERNAL AGENCIES AND BODIES,5902504280,1000072923
10.01.2022,RESIDENT SERVICES HGF,EASYMOVE EA LIMITED,"27,484.47",PSL PLACEMENTS,EXTERNAL AGENCIES AND BODIES,5902504270,1000066859
10.01.2022,RESIDENT SERVICES HGF,SOUTH OF THE RIVER INVESTMENTS LTD,"47,541.29",PSL PLACEMENTS,EXTERNAL AGENCIES AND BODIES,5902504293,1000073638
10.01.2022,RESIDENT SERVICES HGF,OAK HOUSING LTD,"3,496.18",PSL PLACEMENTS,EXTERNAL AGENCIES AND BODIES,5902504306,1000079310
10.01.2022,SOUTHWARK BUILDING SERVICES,TRAVIS PERKINS TRADING COMPANY LTD,291.96,STORES/LOGISTICS,CREDITORS -GR/IR CLEARING ACCOUNT,5902504205,1514319
10.01.2022,SOUTHWARK BUILDING SERVICES,TRAVIS PERKINS TRADING COMPANY LTD,555.00,STORES/LOGISTICS,CREDITORS -GR/IR CLEARING ACCOUNT,5902504205,1514319
10.01.2022,SOUTHWARK BUILDING SERVICES,TRAVIS PERKINS TRADING COMPANY LTD,610.00,STORES/LOGISTICS,CREDITORS -GR/IR CLEARING ACCOUNT,5902504205,1514319
10.01.2022,SOUTHWARK BUILDING SERVICES,TRAVIS PERKINS TRADING COMPANY LTD,721.50,STORES/LOGISTICS,CREDITORS -GR/IR CLEARING ACCOUNT,5902504205,1514319
10.01.2022,SOUTHWARK BUILDING SERVICES,TRAVIS PERKINS TRADING COMPANY LTD,759.90,STORES/LOGISTICS,CREDITORS -GR/IR CLEARING ACCOUNT,5902504205,1514319
10.01.2022,SOUTHWARK BUILDING SERVICES,TRAVIS PERKINS TRADING COMPANY LTD,"1,262.80",STORES/LOGISTICS,CREDITORS -GR/IR CLEARING ACCOUNT,5902504205,1514319
10.01.2022,SOUTHWARK BUILDING SERVICES,TRAVIS PERKINS TRADING COMPANY LTD,"3,494.40",STORES/LOGISTICS,CREDITORS -GR/IR CLEARING ACCOUNT,5902504205,1514319
11.01.2022,ADULT SOCIAL CARE,BRITISH RED CROSS SOCIETY,585.00,ASW - PROFESSIONAL DEVELOPMENT,TRAINING,5902504857,1000038088
11.01.2022,ADULT SOCIAL CARE,SAFFRONLAND HOMES,"1,352.02",DIR OF ASC,EXTERNAL AGENCIES AND BODIES,5902504434,11172608
11.01.2022,ADULT SOCIAL CARE,SAFFRONLAND HOMES,"1,902.77",DIR OF ASC,EXTERNAL AGENCIES AND BODIES,5902504432,11172608
11.01.2022,ADULT SOCIAL CARE,OASIS AQUILA HOUSING,"1,260.21",DIR OF ASC,EXTERNAL AGENCIES AND BODIES,5902504756,1000002184
11.01.2022,ADULT SOCIAL CARE,OASIS AQUILA HOUSING,"3,908.09",DIR OF ASC,EXTERNAL AGENCIES AND BODIES,5902504760,1000002184
11.01.2022,ADULT SOCIAL CARE,LONDON CARE LTD,"2,315.00",DIR OF ASC,EXTERNAL AGENCIES AND BODIES,5902504403,1000003398
11.01.2022,ADULT SOCIAL CARE,LONDON CARE LTD,"10,973.06",DIR OF ASC,EXTERNAL AGENCIES AND BODIES,5902504738,1000003398
11.01.2022,ADULT SOCIAL CARE,LONDON CARE LTD,"40,075.70",DIR OF ASC,EXTERNAL AGENCIES AND BODIES,5902504745,1000003398
11.01.2022,ADULT SOCIAL CARE,LONDON CARE LTD,"62,525.76",DIR OF ASC,EXTERNAL AGENCIES AND BODIES,5902504743,1000003398
11.01.2022,ADULT SOCIAL CARE,PROFAD CARE AGENCY,"2,031.09",DIR OF ASC,EXTERNAL AGENCIES AND BODIES,5902504420,1000079032
11.01.2022,ADULT SOCIAL CARE,PROFAD CARE AGENCY,"6,395.06",DIR OF ASC,EXTERNAL AGENCIES AND BODIES,5902504418,1000079032
11.01.2022,ADULT SOCIAL CARE,GREENWRITE HEALTHCARE LTD,545.99,DIR OF ASC,EXTERNAL AGENCIES AND BODIES,5902504725,1000080718
11.01.2022,ADULT SOCIAL CARE,GREENWRITE HEALTHCARE LTD,"1,958.52",DIR OF ASC,EXTERNAL AGENCIES AND BODIES,5902504724,1000080718
11.01.2022,ADULT SOCIAL CARE,SAGECARE LTD,"6,813.97",DIR OF ASC,EXTERNAL AGENCIES AND BODIES,5902504401,1000080924
11.01.2022,ADULT SOCIAL CARE,SAGECARE LTD,"22,169.53",DIR OF ASC,EXTERNAL AGENCIES AND BODIES,5902504400,1000080924
11.01.2022,ADULT SOCIAL CARE,LIRAL VEGET TRAINING & RECRUITMENT,524.15,DIR OF ASC,EXTERNAL AGENCIES AND BODIES,5902504399,1000086193
11.01.2022,ADULT SOCIAL CARE,LIRAL VEGET TRAINING & RECRUITMENT,"2,484.47",DIR OF ASC,EXTERNAL AGENCIES AND BODIES,5902504398,1000086193
11.01.2022,ADULT SOCIAL CARE,KENT HARRIER PROPERTY MANAGEMENT,"1,406.00",LD LTS 18-64,EXTERNAL AGENCIES AND BODIES,2103368864,1000078130
11.01.2022,ADULT SOCIAL CARE,KENT HARRIER PROPERTY MANAGEMENT,"1,570.00",LD LTS 18-64,EXTERNAL AGENCIES AND BODIES,2103368865,1000078130
11.01.2022,ADULT SOCIAL CARE,SUPREME CARE SERVICES LTD,827.08,MEM LTS 65+,HOMECARE - C&V,2103368890,1000059416
11.01.2022,ADULT SOCIAL CARE,SUPREME CARE SERVICES LTD,251.72,MH LTS 18-64,HOMECARE - C&V,2103368877,1000059416
11.01.2022,ADULT SOCIAL CARE,SUPREME CARE SERVICES LTD,251.72,MH LTS 18-64,HOMECARE - C&V,2103368896,1000059416
11.01.2022,ADULT SOCIAL CARE,SUPREME CARE SERVICES LTD,899.00,MH LTS 18-64,HOMECARE - C&V,2103368907,1000059416
11.01.2022,ADULT SOCIAL CARE,NATIONAL YOUTH ADVOCACY SERVICE,394.00,ORIENT ST � RESPITE,ADVOCACY,5902503861,1000083351
11.01.2022,ADULT SOCIAL CARE,SUPREME CARE SERVICES LTD,377.60,PHY LTS 18-64,HOMECARE - C&V,2103368868,1000059416
11.01.2022,ADULT SOCIAL CARE,SUPREME CARE SERVICES LTD,629.32,PHY LTS 18-64,HOMECARE - C&V,2103368880,1000059416
11.01.2022,ADULT SOCIAL CARE,SUPREME CARE SERVICES LTD,701.24,PHY LTS 18-64,HOMECARE - C&V,2103368873,1000059416
11.01.2022,ADULT SOCIAL CARE,SUPREME CARE SERVICES LTD,"1,132.76",PHY LTS 18-64,HOMECARE - C&V,2103368902,1000059416
11.01.2022,ADULT SOCIAL CARE,SUPREME CARE SERVICES LTD,"1,258.60",PHY LTS 18-64,HOMECARE - C&V,2103368881,1000059416
11.01.2022,ADULT SOCIAL CARE,SUPREME CARE SERVICES LTD,"1,330.52",PHY LTS 18-64,HOMECARE - C&V,2103368901,1000059416
11.01.2022,ADULT SOCIAL CARE,SUPREME CARE SERVICES LTD,"1,636.20",PHY LTS 18-64,HOMECARE - C&V,2103368889,1000059416
11.01.2022,ADULT SOCIAL CARE,SUPREME CARE SERVICES LTD,323.64,PHY LTS 65+,HOMECARE - C&V,2103368898,1000059416
11.01.2022,ADULT SOCIAL CARE,SUPREME CARE SERVICES LTD,395.56,PHY LTS 65+,HOMECARE - C&V,2103368875,1000059416
11.01.2022,ADULT SOCIAL CARE,SUPREME CARE SERVICES LTD,449.52,PHY LTS 65+,HOMECARE - C&V,2103368885,1000059416
11.01.2022,ADULT SOCIAL CARE,SUPREME CARE SERVICES LTD,521.44,PHY LTS 65+,HOMECARE - C&V,2103368910,1000059416
11.01.2022,ADULT SOCIAL CARE,SUPREME CARE SERVICES LTD,629.32,PHY LTS 65+,HOMECARE - C&V,2103368883,1000059416
11.01.2022,ADULT SOCIAL CARE,SUPREME CARE SERVICES LTD,629.32,PHY LTS 65+,HOMECARE - C&V,2103368886,1000059416
11.01.2022,ADULT SOCIAL CARE,SUPREME CARE SERVICES LTD,755.16,PHY LTS 65+,HOMECARE - C&V,2103368867,1000059416
11.01.2022,ADULT SOCIAL CARE,SUPREME CARE SERVICES LTD,755.16,PHY LTS 65+,HOMECARE - C&V,2103368891,1000059416
11.01.2022,ADULT SOCIAL CARE,SUPREME CARE SERVICES LTD,845.08,PHY LTS 65+,HOMECARE - C&V,2103368903,1000059416
11.01.2022,ADULT SOCIAL CARE,SUPREME CARE SERVICES LTD,881.04,PHY LTS 65+,HOMECARE - C&V,2103368874,1000059416
11.01.2022,ADULT SOCIAL CARE,SUPREME CARE SERVICES LTD,881.04,PHY LTS 65+,HOMECARE - C&V,2103368876,1000059416
11.01.2022,ADULT SOCIAL CARE,SUPREME CARE SERVICES LTD,881.04,PHY LTS 65+,HOMECARE - C&V,2103368884,1000059416
11.01.2022,ADULT SOCIAL CARE,SUPREME CARE SERVICES LTD,952.96,PHY LTS 65+,HOMECARE - C&V,2103368871,1000059416
11.01.2022,ADULT SOCIAL CARE,SUPREME CARE SERVICES LTD,"1,006.88",PHY LTS 65+,HOMECARE - C&V,2103368897,1000059416
11.01.2022,ADULT SOCIAL CARE,SUPREME CARE SERVICES LTD,"1,024.88",PHY LTS 65+,HOMECARE - C&V,2103368882,1000059416
11.01.2022,ADULT SOCIAL CARE,SUPREME CARE SERVICES LTD,"1,132.76",PHY LTS 65+,HOMECARE - C&V,2103368866,1000059416
11.01.2022,ADULT SOCIAL CARE,SUPREME CARE SERVICES LTD,"1,222.64",PHY LTS 65+,HOMECARE - C&V,2103368899,1000059416
11.01.2022,ADULT SOCIAL CARE,SUPREME CARE SERVICES LTD,"1,240.64",PHY LTS 65+,HOMECARE - C&V,2103368870,1000059416
11.01.2022,ADULT SOCIAL CARE,SUPREME CARE SERVICES LTD,"1,258.60",PHY LTS 65+,HOMECARE - C&V,2103368879,1000059416
11.01.2022,ADULT SOCIAL CARE,SUPREME CARE SERVICES LTD,"1,510.32",PHY LTS 65+,HOMECARE - C&V,2103368906,1000059416
11.01.2022,ADULT SOCIAL CARE,SUPREME CARE SERVICES LTD,"1,532.80",PHY LTS 65+,HOMECARE - C&V,2103368893,1000059416
11.01.2022,ADULT SOCIAL CARE,SUPREME CARE SERVICES LTD,"1,582.24",PHY LTS 65+,HOMECARE - C&V,2103368905,1000059416
11.01.2022,ADULT SOCIAL CARE,SUPREME CARE SERVICES LTD,"1,744.08",PHY LTS 65+,HOMECARE - C&V,2103368869,1000059416
11.01.2022,ADULT SOCIAL CARE,SUPREME CARE SERVICES LTD,"2,247.52",PHY LTS 65+,HOMECARE - C&V,2103368908,1000059416
11.01.2022,ADULT SOCIAL CARE,SUPREME CARE SERVICES LTD,"2,265.48",PHY LTS 65+,HOMECARE - C&V,2103368892,1000059416
11.01.2022,ADULT SOCIAL CARE,SUPREME CARE SERVICES LTD,"2,625.08",PHY LTS 65+,HOMECARE - C&V,2103368909,1000059416
11.01.2022,ADULT SOCIAL CARE,SUPREME CARE SERVICES LTD,"2,876.80",PHY LTS 65+,HOMECARE - C&V,2103368888,1000059416
11.01.2022,ADULT SOCIAL CARE,SUPREME CARE SERVICES LTD,881.04,SEN LTS 65+,HOMECARE - C&V,2103368900,1000059416
11.01.2022,ASSET MANAGEMENT,CAPITAL SERVICES LONDON LTD,"7,666.67",COMMERCIAL (QS),PROFESSIONAL FEES,5902504226,1000082548
11.01.2022,ASSET MANAGEMENT,AJM ADAPTIONS LTD,320.00,DISREPAIR,BUILDING R&M,5902504843,1000080297
11.01.2022,ASSET MANAGEMENT,ASHFORDS LLP,"8,291.67",DISREPAIR,PAYMENTS FOR LEGAL SERVICES,2103368848,1000055865
11.01.2022,ASSET MANAGEMENT,CHESHIRE ESTATE AND LEGAL LTD,416.67,DISREPAIR,PAYMENTS FOR LEGAL SERVICES,2103368845,1000081908
11.01.2022,ASSET MANAGEMENT,CHESHIRE ESTATE AND LEGAL LTD,416.67,DISREPAIR,PAYMENTS FOR LEGAL SERVICES,2103368853,1000081908
11.01.2022,ASSET MANAGEMENT,PURE LEGAL  LTD,833.33,DISREPAIR,PAYMENTS FOR LEGAL SERVICES,2103368851,1000087480
11.01.2022,ASSET MANAGEMENT,GC CONSTRUCT LTD,276.41,DISREPAIR,PAYMENTS FOR LEGAL SERVICES,2103368812,3000002106
11.01.2022,ASSET MANAGEMENT,GC CONSTRUCT LTD,374.06,DISREPAIR,PAYMENTS FOR LEGAL SERVICES,2103368813,3000002106
11.01.2022,ASSET MANAGEMENT,ARMINA LTD,"1,072.74",DISREPAIR,PAYMENTS FOR LEGAL SERVICES,2103368816,3000002121
11.01.2022,ASSET MANAGEMENT,ARMINA LTD,"1,410.33",DISREPAIR,PAYMENTS FOR LEGAL SERVICES,2103368817,3000002121
11.01.2022,ASSET MANAGEMENT,ARMINA LTD,"1,584.63",DISREPAIR,PAYMENTS FOR LEGAL SERVICES,2103368815,3000002121
11.01.2022,ASSET MANAGEMENT,JUDGE AND PRIESTLEY SOLICITORS,"40,500.00",DISREPAIR,PAYMENTS FOR LEGAL SERVICES,5902504386,1472217
11.01.2022,ASSET MANAGEMENT,ANTHONY GOLD SOLICITORS,750.00,DISREPAIR,PAYMENTS FOR LEGAL SERVICES,2103368842,1000050198
11.01.2022,ASSET MANAGEMENT,CHRIS & CO SOLICITORS,"4,750.00",DISREPAIR,PAYMENTS FOR LEGAL SERVICES,2103368844,1000080247
11.01.2022,ASSET MANAGEMENT,BARNES SOLICITORS LLP,750.00,DISREPAIR,PAYMENTS FOR LEGAL SERVICES,2103368846,1000083820
11.01.2022,ASSET MANAGEMENT,BARNES SOLICITORS LLP,"1,666.67",DISREPAIR,PAYMENTS FOR LEGAL SERVICES,2103368847,1000083820
11.01.2022,ASSET MANAGEMENT,SBW  LAW,"1,958.33",DISREPAIR,PAYMENTS FOR LEGAL SERVICES,2103368849,1000085191
11.01.2022,ASSET MANAGEMENT,MJV & CO  SOLICITORS LTD,"1,500.00",DISREPAIR,PAYMENTS FOR LEGAL SERVICES,2103368854,1000086326
11.01.2022,ASSET MANAGEMENT,OA  SOLICITORS,"9,000.00",DISREPAIR,PAYMENTS FOR LEGAL SERVICES,2103368855,1000087542
11.01.2022,ASSET MANAGEMENT,LONDON FIRE BRIGADE,352.00,ENG CONTRACTS (NORTH),LIFTS,5902504765,1000083629
11.01.2022,ASSET MANAGEMENT HGF,MITIE FM LIMITED,"539,221.15",FM SERVICES BY INTERSERVE,INTEGRATED FACILITIES MANAGEMENT CONTRACT,5902504447,1000070792
11.01.2022,CENTRAL FUNCTIONS,KENT COUNTY COUNCIL - LASER,"-91,761.85",HEATING ACCOUNT,ELECTRICITY,5902504444,1000012926
11.01.2022,CENTRAL FUNCTIONS,KENT COUNTY COUNCIL - LASER,"164,190.24",HEATING ACCOUNT,ELECTRICITY,5902504442,1000012926
11.01.2022,CHILDREN AND ADULT,CHERRY GARDEN SCHOOL,970.00,CAPITAL PS (EDUCATION),ICT ACQUISITION FEES,5902504726,5001000020
11.01.2022,CHILDREN AND FAMILIES,AIDHOUR LIMITED,"2,819.65",CHILD PROTECTION UNIT,PROFESSIONAL FEES,5902504786,1000057345
11.01.2022,CHILDREN AND FAMILIES,REDACTED PERSONAL DATA,325.50,FAMILY GROUP CONF�S,PROFESSIONAL FEES,REDACTED,REDACTED
11.01.2022,CHILDREN AND FAMILIES,REDACTED PERSONAL DATA,270.83,FAMILY GROUP CONF�S,PROFESSIONAL FEES,REDACTED,REDACTED
11.01.2022,CHILDREN AND FAMILIES,OASIS AQUILA HOUSING,"-3,049.90",SEMI-IND CARELEAVERS,EXTERNAL AGENCIES AND BODIES,2103365903,1000002184
11.01.2022,CHILDREN AND FAMILIES,OASIS AQUILA HOUSING,-585.16,SEMI-IND CARELEAVERS,EXTERNAL AGENCIES AND BODIES,2103365904,1000002184
11.01.2022,CHILDREN AND FAMILIES,REDACTED PERSONAL DATA,300.00,SFS MGMT & SUPPORT,EXTERNAL AGENCIES AND BODIES,REDACTED,REDACTED
11.01.2022,CHILDREN AND FAMILIES,MILLENNIUM MINIS LIMITED,"2,078.30",TEAM C,OTHER PAYMENTS FOR CLIENTS,5902501826,1000087671
11.01.2022,COMMUNITIES,COMMUNITY SOUTHWARK,"95,932.50",CVS & VOLUNTEERING,GRANTS,5902504385,1000018147
11.01.2022,COMMUNITIES,COMMUNITY SOUTHWARK,"35,000.00",HEALTHWATCH,GRANTS,5902504383,1000018147
11.01.2022,COMMUNITIES,SOUTHWARK LAW CENTRE,"84,000.00",LEGAL GRANTS,EXTERNAL AGENCIES AND BODIES,5902504195,1981325
11.01.2022,COMMUNITIES,THE BLACK SOCIETY,500.00,SOUTHWARK CONVERSATION,GRANTS,5902504456,1000087721
11.01.2022,COMMUNITIES HRA,STYLES HOUSE TMO,"7,683.78",STYLES HOUSE TMO,M&M ALLOWANCE CO-OPS,5902504439,1000072012
11.01.2022,CUSTOMER EXPERIENCE HGF,DOTTED EYES LTD,990.00,APPLICATIONS,SUBSCRIPTIONS,5902504746,1000030843
11.01.2022,CUSTOMER EXPERIENCE HGF,ALLIED PUBLICITY SERVICES (MANCHESTER) LTD,821.85,BLUE BADGES,MATERIALS,5902504455,1000082115
11.01.2022,CUSTOMER EXPERIENCE HGF,GUYS & ST THOMAS NHS FOUNDATION TRUST,"1,477.00",CORONER'S,OTHER CONTRACTORS,5902504454,1765536
11.01.2022,CUSTOMER EXPERIENCE HGF,CORONERS' COURTS SUPPORT SERVICE,550.00,CORONER'S,PROFESSIONAL FEES,5902504716,1000077579
11.01.2022,CUSTOMER EXPERIENCE HGF,IMPERIAL COLLEGE PROJECTS LTD,344.00,CORONER'S,PROFESSIONAL FEES,5902504451,1000080106
11.01.2022,CUSTOMER EXPERIENCE HGF,IMPERIAL COLLEGE PROJECTS LTD,404.00,CORONER'S,PROFESSIONAL FEES,5902504452,1000080106
11.01.2022,CUSTOMER EXPERIENCE HGF,IMPERIAL COLLEGE PROJECTS LTD,508.00,CORONER'S,PROFESSIONAL FEES,5902504453,1000080106
11.01.2022,CUSTOMER EXPERIENCE HGF,BUDDI LTD,300.00,SMART MOBILE RESPONSE TEAM,EQUIPMENT PURCHASE & REPAIR,5902504441,1000067243
11.01.2022,DSG,ALBION PRIMARY SCHOOL,"196,375.00",ALBION PRIMARY SCHOOL,SCHOOLS CAPITATION,5902504460,5001000000
11.01.2022,DSG,ALFRED SALTER PRIMARY SCHOOL,"180,492.00",ALFRED SALTER PRIMARY SCHOOL,SCHOOLS CAPITATION,5902504464,5001000005
11.01.2022,DSG,ANN BERNADT NURSERY SCHOOL,"23,800.00",ANN BERNADT (SUMNER),EARLY YEARS - 3 AND 4 YEAR OLDS,5902504686,5001000085
11.01.2022,DSG,ANN BERNADT NURSERY SCHOOL,"31,361.00",ANN BERNADT (SUMNER),EARLY YEARS - 3 AND 4 YEAR OLDS,5902504687,5001000085
11.01.2022,DSG,BELLENDEN PRIMARY SCHOOL,"109,467.00",BELLENDEN PRIMARY SCHOOL,SCHOOLS CAPITATION,5902504468,5001000007
11.01.2022,DSG,BEORMUND PRIMARY SCHOOL,"29,167.00",BEORMUND PRIMARY SCHOOL,HIGH NEEDS - TOP UP FUNDING,5902504472,5001000008
11.01.2022,DSG,BEORMUND PRIMARY SCHOOL,"55,271.00",BEORMUND PRIMARY SCHOOL,HIGH NEEDS - TOP UP FUNDING,5902504473,5001000008
11.01.2022,DSG,BESSEMER GRANGE PRIMARY SCHOOL,"251,272.00",BESSEMER GRANGE PRIMARY SCHOOL,SCHOOLS CAPITATION,5902504474,5001000009
11.01.2022,DSG,BOUCHER C OF E PRIMARY SCHOOL,"101,906.00",BOUTCHER CE PRIMARY SCHOOL,SCHOOLS CAPITATION,5902504480,5001000011
11.01.2022,DSG,BRUNSWICK PARK PRIMARY SCHOOL,"182,028.00",BRUNSWICK PARK PRIMARY SCHOOL,SCHOOLS CAPITATION,5902504482,5001000013
11.01.2022,DSG,CAMELOT PRIMARY SCHOOL,"167,063.00",CAMELOT PRIMARY SCHOOL,SCHOOLS CAPITATION,5902504488,5001000014
11.01.2022,DSG,CHARLOTTE  SHARMAN PRIMARY SCHOOL,"67,043.00",CHARLOTTE SHARMAN PRIMARY SCHOOL,SCHOOLS CAPITATION,5902504492,5001000016
11.01.2022,DSG,CHERRY GARDEN SCHOOL,"70,833.00",CHERRY GARDEN PRIMARY SCHOOL,HIGH NEEDS - TOP UP FUNDING,5902504504,5001000020
11.01.2022,DSG,CHERRY GARDEN SCHOOL,"159,948.00",CHERRY GARDEN PRIMARY SCHOOL,HIGH NEEDS - TOP UP FUNDING,5902504505,5001000020
11.01.2022,DSG,COMBER GROVE PRIMARY SCHOOL,"97,935.00",COMBER GROVE PRIMARY SCHOOL,SCHOOLS CAPITATION,5902504510,5001000022
11.01.2022,DSG,CRAMPTON PRIMARY SCHOOL,"97,198.00",CRAMPTON PRIMARY SCHOOL,SCHOOLS CAPITATION,5902504514,5001000023
11.01.2022,DSG,CRAWFORD PRIMARY SCHOOL,"216,913.00",CRAWFORD PRIMARY SCHOOL,SCHOOLS CAPITATION,5902504516,5001000024
11.01.2022,DSG,DULWICH VILLAGE CE INFANTS SCHOOL,"123,691.00",DULWICH VILLAGE CE INFANTS' SCHOOL,SCHOOLS CAPITATION,5902504523,5001000027
11.01.2022,DSG,DULWICH WOOD CHILDRENS CENTRE,"29,706.00",DULWICH WOOD NURSERY SCHOOL,EARLY YEARS - 3 AND 4 YEAR OLDS,5902504709,5001000099
11.01.2022,DSG,DULWICH WOOD CHILDRENS CENTRE,"32,014.00",DULWICH WOOD NURSERY SCHOOL,EARLY YEARS - 3 AND 4 YEAR OLDS,5902504710,5001000099
11.01.2022,DSG,DULWICH WOOD PRIMARY SCHOOL,"168,620.00",DULWICH WOOD PRIMARY SCHOOL,SCHOOLS CAPITATION,5902504571,5001000042
11.01.2022,DSG,ENGLISH MARTYRS RC PRIMARY SCHOOL,"147,035.00",ENGLISH MARTYRS RC PRIMARY SCHOOL,SCHOOLS CAPITATION,5902504533,5001000030
11.01.2022,DSG,EVELINA HOSPITAL SCHOOL,"60,259.00",EVELINA HOSPITAL SCHOOL,HIGH NEEDS - BASE FUNDING,5902504538,5001000031
11.01.2022,DSG,EVELINA HOSPITAL SCHOOL,"44,167.00",EVELINA HOSPITAL SCHOOL,HIGH NEEDS - TOP UP FUNDING,5902504537,5001000031
11.01.2022,DSG,FRIARS PRIMARY (FOUNDATION) SCHOOL,"91,435.00",FRIARS FOUNDATION PRIMARY SCHOOL,SCHOOLS CAPITATION,5902504543,5001000033
11.01.2022,DSG,GOODRICH PRIMARY SCHOOL,"243,047.00",GOODRICH PRIMARY SCHOOL,SCHOOLS CAPITATION,5902504525,5001000028
11.01.2022,DSG,GRANGE PRIMARY SCHOOL,"175,159.00",GRANGE PRIMARY SCHOOL,SCHOOLS CAPITATION,5902504529,5001000029
11.01.2022,DSG,HAYMERLE SCHOOL,"64,167.00",HAYMERLE PRIMARY SCHOOL,HIGH NEEDS - TOP UP FUNDING,5902504573,5001000045
11.01.2022,DSG,HAYMERLE SCHOOL,"130,175.00",HAYMERLE PRIMARY SCHOOL,HIGH NEEDS - TOP UP FUNDING,5902504574,5001000045
11.01.2022,DSG,HEBER PRIMARY SCHOOL,"162,845.00",HEBER PRIMARY SCHOOL,SCHOOLS CAPITATION,5902504547,5001000035
11.01.2022,DSG,HIGHSHORE SCHOOL,"116,667.00",HIGHSHORE,HIGH NEEDS - TOP UP FUNDING,5902504575,5001000046
11.01.2022,DSG,HIGHSHORE SCHOOL,"168,922.00",HIGHSHORE,HIGH NEEDS - TOP UP FUNDING,5902504576,5001000046
11.01.2022,DSG,HOLLYDALE PRIMARY SCHOOL,"93,603.00",HOLLYDALE PRIMARY SCHOOL,SCHOOLS CAPITATION,5902504551,5001000036
11.01.2022,DSG,ILDERTON PRIMARY SCHOOL,"149,517.00",ILDERTON PRIMARY SCHOOL,SCHOOLS CAPITATION,5902504553,5001000037
11.01.2022,DSG,IVYDALE PRIMARY SCHOOL,"202,195.00",IVYDALE PRIMARY SCHOOL,SCHOOLS CAPITATION,5902504557,5001000038
11.01.2022,DSG,JOHN RUSKIN PRIMARY SCHOOL,"205,187.00",JOHN RUSKIN PRIMARY SCHOOL,SCHOOLS CAPITATION,5902504561,5001000040
11.01.2022,DSG,KEYWORTH PRIMARY SCHOOL,"157,030.00",KEYWORTH PRIMARY SCHOOL,SCHOOLS CAPITATION,5902504567,5001000041
11.01.2022,DSG,KINTORE WAY CHILDRENS CENTRE,"31,020.00",KINTORE WAY CHILDRENS CENTRE,EARLY YEARS - 3 AND 4 YEAR OLDS,5902504577,5001000047
11.01.2022,DSG,KINTORE WAY CHILDRENS CENTRE,"56,466.00",KINTORE WAY CHILDRENS CENTRE,EARLY YEARS - 3 AND 4 YEAR OLDS,5902504578,5001000047
11.01.2022,DSG,THE GROVE CHILDRENS CENTRE,"10,271.00",LBS MAINSTREAM,SCHOOLS CAPITATION,5902504694,5001000090
11.01.2022,DSG,ALBION PRIMARY SCHOOL,"3,875.00",LBS MAINSTREAM,SCHOOLS CAPITATION,5902504463,5001000000
11.01.2022,DSG,ALFRED SALTER PRIMARY SCHOOL,"11,923.00",LBS MAINSTREAM,SCHOOLS CAPITATION,5902504467,5001000005
11.01.2022,DSG,BELLENDEN PRIMARY SCHOOL,"3,667.00",LBS MAINSTREAM,SCHOOLS CAPITATION,5902504471,5001000007
11.01.2022,DSG,BESSEMER GRANGE PRIMARY SCHOOL,"12,000.00",LBS MAINSTREAM,SCHOOLS CAPITATION,5902504477,5001000009
11.01.2022,DSG,BOUCHER C OF E PRIMARY SCHOOL,"4,726.00",LBS MAINSTREAM,SCHOOLS CAPITATION,5902504481,5001000011
11.01.2022,DSG,BRUNSWICK PARK PRIMARY SCHOOL,"10,759.00",LBS MAINSTREAM,SCHOOLS CAPITATION,5902504487,5001000013
11.01.2022,DSG,CAMELOT PRIMARY SCHOOL,"6,289.00",LBS MAINSTREAM,SCHOOLS CAPITATION,5902504491,5001000014
11.01.2022,DSG,CHARLOTTE  SHARMAN PRIMARY SCHOOL,"2,162.00",LBS MAINSTREAM,SCHOOLS CAPITATION,5902504495,5001000016
11.01.2022,DSG,ST JOSEPHS RC JUNIOR  SCHOOL,469.00,LBS MAINSTREAM,SCHOOLS CAPITATION,5902504497,5001000017
11.01.2022,DSG,ST JOSEPHS CATHOLIC INFANTS SCHOOL,"1,333.00",LBS MAINSTREAM,SCHOOLS CAPITATION,5902504499,5001000018
11.01.2022,DSG,ST JUDES CHURCH OF ENGLAND PRIMARY,"1,000.00",LBS MAINSTREAM,SCHOOLS CAPITATION,5902504503,5001000019
11.01.2022,DSG,COMBER GROVE PRIMARY SCHOOL,"4,000.00",LBS MAINSTREAM,SCHOOLS CAPITATION,5902504513,5001000022
11.01.2022,DSG,CRAMPTON PRIMARY SCHOOL,"2,651.00",LBS MAINSTREAM,SCHOOLS CAPITATION,5902504515,5001000023
11.01.2022,DSG,CRAWFORD PRIMARY SCHOOL,"6,580.00",LBS MAINSTREAM,SCHOOLS CAPITATION,5902504519,5001000024
11.01.2022,DSG,DOG KENNEL HILL PRIMARY SCHOOL,"5,772.00",LBS MAINSTREAM,SCHOOLS CAPITATION,5902504522,5001000025
11.01.2022,DSG,DULWICH VILLAGE CE INFANTS SCHOOL,"2,201.00",LBS MAINSTREAM,SCHOOLS CAPITATION,5902504524,5001000027
11.01.2022,DSG,GOODRICH PRIMARY SCHOOL,"2,485.00",LBS MAINSTREAM,SCHOOLS CAPITATION,5902504528,5001000028
11.01.2022,DSG,GRANGE PRIMARY SCHOOL,"6,393.00",LBS MAINSTREAM,SCHOOLS CAPITATION,5902504532,5001000029
11.01.2022,DSG,ENGLISH MARTYRS RC PRIMARY SCHOOL,"3,679.00",LBS MAINSTREAM,SCHOOLS CAPITATION,5902504536,5001000030
11.01.2022,DSG,PHOENIX PRIMARY SCHOOL,"10,973.00",LBS MAINSTREAM,SCHOOLS CAPITATION,5902504542,5001000032
11.01.2022,DSG,FRIARS PRIMARY (FOUNDATION) SCHOOL,"5,393.00",LBS MAINSTREAM,SCHOOLS CAPITATION,5902504546,5001000033
11.01.2022,DSG,HEBER PRIMARY SCHOOL,"6,060.00",LBS MAINSTREAM,SCHOOLS CAPITATION,5902504550,5001000035
11.01.2022,DSG,HOLLYDALE PRIMARY SCHOOL,"4,060.00",LBS MAINSTREAM,SCHOOLS CAPITATION,5902504552,5001000036
11.01.2022,DSG,ILDERTON PRIMARY SCHOOL,"6,350.00",LBS MAINSTREAM,SCHOOLS CAPITATION,5902504556,5001000037
11.01.2022,DSG,IVYDALE PRIMARY SCHOOL,"6,450.00",LBS MAINSTREAM,SCHOOLS CAPITATION,5902504560,5001000038
11.01.2022,DSG,JOHN RUSKIN PRIMARY SCHOOL,"17,393.00",LBS MAINSTREAM,SCHOOLS CAPITATION,5902504566,5001000040
11.01.2022,DSG,KEYWORTH PRIMARY SCHOOL,"6,667.00",LBS MAINSTREAM,SCHOOLS CAPITATION,5902504570,5001000041
11.01.2022,DSG,DULWICH WOOD PRIMARY SCHOOL,"4,726.00",LBS MAINSTREAM,SCHOOLS CAPITATION,5902504572,5001000042
11.01.2022,DSG,KINTORE WAY CHILDRENS CENTRE,"6,844.00",LBS MAINSTREAM,SCHOOLS CAPITATION,5902504579,5001000047
11.01.2022,DSG,MICHAEL FARADAY PRIMARY SCHOOL,"7,594.00",LBS MAINSTREAM,SCHOOLS CAPITATION,5902504583,5001000048
11.01.2022,DSG,NOTRE DAME RC GIRLS SCHOOL,"1,716.00",LBS MAINSTREAM,SCHOOLS CAPITATION,5902504587,5001000050
11.01.2022,DSG,OLIVER GOLDSMITH PRIMARY SCHOOL,"4,333.00",LBS MAINSTREAM,SCHOOLS CAPITATION,5902504591,5001000051
11.01.2022,DSG,PETER HILLS CE SCHOOL,"1,333.00",LBS MAINSTREAM,SCHOOLS CAPITATION,5902504595,5001000053
11.01.2022,DSG,PILGRIM'S WAY PRIMARY SCHOOL,"4,453.00",LBS MAINSTREAM,SCHOOLS CAPITATION,5902504599,5001000054
11.01.2022,DSG,RIVERSIDE PRIMARY SCHOOL,"8,631.00",LBS MAINSTREAM,SCHOOLS CAPITATION,5902504603,5001000056
11.01.2022,DSG,ROBERT BROWNING PRIMARY SCHOOL,"8,333.00",LBS MAINSTREAM,SCHOOLS CAPITATION,5902504607,5001000057
11.01.2022,DSG,ROTHERHITHE PRIMARY SCHOOL,"5,650.00",LBS MAINSTREAM,SCHOOLS CAPITATION,5902504611,5001000058
11.01.2022,DSG,RYE OAK PRIMARY SCHOOL,"6,000.00",LBS MAINSTREAM,SCHOOLS CAPITATION,5902504617,5001000059
11.01.2022,DSG,SNOWSFIELDS PRIMARY SCHOOL,"5,333.00",LBS MAINSTREAM,SCHOOLS CAPITATION,5902504623,5001000061
11.01.2022,DSG,SOUTHWARK PARK PRIMARY SCHOOL,"8,000.00",LBS MAINSTREAM,SCHOOLS CAPITATION,5902504627,5001000062
11.01.2022,DSG,ST ANTHONYS RC SCHOOL,"2,689.00",LBS MAINSTREAM,SCHOOLS CAPITATION,5902504631,5001000064
11.01.2022,DSG,ST FRANCESCA CABRINI PRIMARY SCHOOL,428.00,LBS MAINSTREAM,SCHOOLS CAPITATION,5902504635,5001000065
11.01.2022,DSG,ST GEORGES RC SCHOOL,"2,667.00",LBS MAINSTREAM,SCHOOLS CAPITATION,5902504643,5001000068
11.01.2022,DSG,ST GEORGES CE SCHOOL,"7,060.00",LBS MAINSTREAM,SCHOOLS CAPITATION,5902504645,5001000069
11.01.2022,DSG,ST JAMES CE SCHOOL,"10,226.00",LBS MAINSTREAM,SCHOOLS CAPITATION,5902504649,5001000070
11.01.2022,DSG,ST JAMES THE GREAT RC SCHOOL,"6,425.00",LBS MAINSTREAM,SCHOOLS CAPITATION,5902504653,5001000071
11.01.2022,DSG,ST JOHNS & ST CLEMENTS CE SCHOOL,"1,702.00",LBS MAINSTREAM,SCHOOLS CAPITATION,5902504657,5001000073
11.01.2022,DSG,THE ST THOMAS THE APOSTLE COLLEGE,"10,792.00",LBS MAINSTREAM,SCHOOLS CAPITATION,5902504660,5001000074
11.01.2022,DSG,ST JOHNS RC PRIMARY SCHOOL,"6,119.00",LBS MAINSTREAM,SCHOOLS CAPITATION,5902504664,5001000075
11.01.2022,DSG,ST JOSEPHS CATHOLIC SCHOOL,"6,667.00",LBS MAINSTREAM,SCHOOLS CAPITATION,5902504668,5001000076
11.01.2022,DSG,ST JOSEPHS RC PRIMARY SCHOOL,"4,584.00",LBS MAINSTREAM,SCHOOLS CAPITATION,5902504672,5001000077
11.01.2022,DSG,ST JOSEPHS CATHOLIC PRIMARY SCHOOL,"1,667.00",LBS MAINSTREAM,SCHOOLS CAPITATION,5902504676,5001000078
11.01.2022,DSG,ST MARY MAGDALENE CE SCHOOL,613.00,LBS MAINSTREAM,SCHOOLS CAPITATION,5902504678,5001000080
11.01.2022,DSG,ST PETERS CE SCHOOL,"2,060.00",LBS MAINSTREAM,SCHOOLS CAPITATION,5902504682,5001000083
11.01.2022,DSG,ST SAVIOURS & ST OLAVES SCHOOL,"3,594.00",LBS MAINSTREAM,SCHOOLS CAPITATION,5902504685,5001000084
11.01.2022,DSG,CATHEDRAL SCHOOL OF ST SAVIOUR & MARY,"3,000.00",LBS MAINSTREAM,SCHOOLS CAPITATION,5902504691,5001000088
11.01.2022,DSG,TOWER BRIDGE PRIMARY SCHOOL,"8,000.00",LBS MAINSTREAM,SCHOOLS CAPITATION,5902504698,5001000095
11.01.2022,DSG,TOWNSEND PRIMARY SCHOOL,"3,512.00",LBS MAINSTREAM,SCHOOLS CAPITATION,5902504701,5001000096
11.01.2022,DSG,VICTORY SCHOOL,906.00,LBS MAINSTREAM,SCHOOLS CAPITATION,5902504708,5001000098
11.01.2022,DSG,BRUNSWICK PARK PRIMARY SCHOOL,"8,375.00",LBS RB / SEN UNIT,SCHOOLS CAPITATION,5902504485,5001000013
11.01.2022,DSG,BRUNSWICK PARK PRIMARY SCHOOL,"13,027.00",LBS RB / SEN UNIT,SCHOOLS CAPITATION,5902504486,5001000013
11.01.2022,DSG,JOHN RUSKIN PRIMARY SCHOOL,"10,902.00",LBS RB / SEN UNIT,SCHOOLS CAPITATION,5902504565,5001000040
11.01.2022,DSG,JOHN RUSKIN PRIMARY SCHOOL,"14,000.00",LBS RB / SEN UNIT,SCHOOLS CAPITATION,5902504564,5001000040
11.01.2022,DSG,RYE OAK PRIMARY SCHOOL,"7,417.00",LBS RB / SEN UNIT,SCHOOLS CAPITATION,5902504615,5001000059
11.01.2022,DSG,RYE OAK PRIMARY SCHOOL,"16,835.00",LBS RB / SEN UNIT,SCHOOLS CAPITATION,5902504616,5001000059
11.01.2022,DSG,SNOWSFIELDS PRIMARY SCHOOL,"7,333.00",LBS RB / SEN UNIT,SCHOOLS CAPITATION,5902504621,5001000061
11.01.2022,DSG,SNOWSFIELDS PRIMARY SCHOOL,"16,389.00",LBS RB / SEN UNIT,SCHOOLS CAPITATION,5902504622,5001000061
11.01.2022,DSG,ST JOHNS & ST CLEMENTS CE SCHOOL,"8,167.00",LBS RB / SEN UNIT,SCHOOLS CAPITATION,5902504655,5001000073
11.01.2022,DSG,ST JOHNS & ST CLEMENTS CE SCHOOL,"9,380.00",LBS RB / SEN UNIT,SCHOOLS CAPITATION,5902504656,5001000073
11.01.2022,DSG,BETHLEM & MAUDSLEY HOSPITAL SCHOOL,"53,333.00",MAUDSLEY & BETHLEM,HIGH NEEDS - TOP UP FUNDING,5902504478,5001000010
11.01.2022,DSG,BETHLEM & MAUDSLEY HOSPITAL SCHOOL,"106,754.00",MAUDSLEY & BETHLEM,HIGH NEEDS - TOP UP FUNDING,5902504479,5001000010
11.01.2022,DSG,MICHAEL FARADAY PRIMARY SCHOOL,"198,763.00",MICHAEL FARADAY PRIMARY SCHOOL,SCHOOLS CAPITATION,5902504580,5001000048
11.01.2022,DSG,NELL GWYNN NURSERY SCHOOL,"23,612.00",NELL GWYNN CHILDRENS CENTRE,EARLY YEARS - 3 AND 4 YEAR OLDS,5902504584,5001000049
11.01.2022,DSG,NELL GWYNN NURSERY SCHOOL,"35,383.00",NELL GWYNN CHILDRENS CENTRE,EARLY YEARS - 3 AND 4 YEAR OLDS,5902504585,5001000049
11.01.2022,DSG,NOTRE DAME RC GIRLS SCHOOL,"403,264.00",NOTRE DAME RC GIRLS' SCHOOL,SCHOOLS CAPITATION,5902504586,5001000050
11.01.2022,DSG,ALBION PRIMARY SCHOOL,"1,437.00",NURSERY ED GRANT 3 AND 4 YR OLDS,EARLY YEARS - 3 AND 4 YEAR OLDS,5902504461,5001000000
11.01.2022,DSG,ALBION PRIMARY SCHOOL,"17,670.00",NURSERY ED GRANT 3 AND 4 YR OLDS,EARLY YEARS - 3 AND 4 YEAR OLDS,5902504462,5001000000
11.01.2022,DSG,ALFRED SALTER PRIMARY SCHOOL,725.00,NURSERY ED GRANT 3 AND 4 YR OLDS,EARLY YEARS - 3 AND 4 YEAR OLDS,5902504465,5001000005
11.01.2022,DSG,ALFRED SALTER PRIMARY SCHOOL,"9,148.00",NURSERY ED GRANT 3 AND 4 YR OLDS,EARLY YEARS - 3 AND 4 YEAR OLDS,5902504466,5001000005
11.01.2022,DSG,BELLENDEN PRIMARY SCHOOL,633.00,NURSERY ED GRANT 3 AND 4 YR OLDS,EARLY YEARS - 3 AND 4 YEAR OLDS,5902504469,5001000007
11.01.2022,DSG,BELLENDEN PRIMARY SCHOOL,"10,456.00",NURSERY ED GRANT 3 AND 4 YR OLDS,EARLY YEARS - 3 AND 4 YEAR OLDS,5902504470,5001000007
11.01.2022,DSG,BESSEMER GRANGE PRIMARY SCHOOL,"1,122.00",NURSERY ED GRANT 3 AND 4 YR OLDS,EARLY YEARS - 3 AND 4 YEAR OLDS,5902504475,5001000009
11.01.2022,DSG,BESSEMER GRANGE PRIMARY SCHOOL,"20,421.00",NURSERY ED GRANT 3 AND 4 YR OLDS,EARLY YEARS - 3 AND 4 YEAR OLDS,5902504476,5001000009
11.01.2022,DSG,BRUNSWICK PARK PRIMARY SCHOOL,619.00,NURSERY ED GRANT 3 AND 4 YR OLDS,EARLY YEARS - 3 AND 4 YEAR OLDS,5902504483,5001000013
11.01.2022,DSG,BRUNSWICK PARK PRIMARY SCHOOL,"7,561.00",NURSERY ED GRANT 3 AND 4 YR OLDS,EARLY YEARS - 3 AND 4 YEAR OLDS,5902504484,5001000013
11.01.2022,DSG,CAMELOT PRIMARY SCHOOL,"1,050.00",NURSERY ED GRANT 3 AND 4 YR OLDS,EARLY YEARS - 3 AND 4 YEAR OLDS,5902504489,5001000014
11.01.2022,DSG,CAMELOT PRIMARY SCHOOL,"10,855.00",NURSERY ED GRANT 3 AND 4 YR OLDS,EARLY YEARS - 3 AND 4 YEAR OLDS,5902504490,5001000014
11.01.2022,DSG,CHARLOTTE  SHARMAN PRIMARY SCHOOL,726.00,NURSERY ED GRANT 3 AND 4 YR OLDS,EARLY YEARS - 3 AND 4 YEAR OLDS,5902504493,5001000016
11.01.2022,DSG,CHARLOTTE  SHARMAN PRIMARY SCHOOL,"5,000.00",NURSERY ED GRANT 3 AND 4 YR OLDS,EARLY YEARS - 3 AND 4 YEAR OLDS,5902504494,5001000016
11.01.2022,DSG,ST JUDES CHURCH OF ENGLAND PRIMARY,"1,201.00",NURSERY ED GRANT 3 AND 4 YR OLDS,EARLY YEARS - 3 AND 4 YEAR OLDS,5902504502,5001000019
11.01.2022,DSG,COMBER GROVE PRIMARY SCHOOL,383.00,NURSERY ED GRANT 3 AND 4 YR OLDS,EARLY YEARS - 3 AND 4 YEAR OLDS,5902504511,5001000022
11.01.2022,DSG,COMBER GROVE PRIMARY SCHOOL,"5,709.00",NURSERY ED GRANT 3 AND 4 YR OLDS,EARLY YEARS - 3 AND 4 YEAR OLDS,5902504512,5001000022
11.01.2022,DSG,CRAWFORD PRIMARY SCHOOL,"1,083.00",NURSERY ED GRANT 3 AND 4 YR OLDS,EARLY YEARS - 3 AND 4 YEAR OLDS,5902504517,5001000024
11.01.2022,DSG,CRAWFORD PRIMARY SCHOOL,"10,159.00",NURSERY ED GRANT 3 AND 4 YR OLDS,EARLY YEARS - 3 AND 4 YEAR OLDS,5902504518,5001000024
11.01.2022,DSG,DOG KENNEL HILL PRIMARY SCHOOL,368.00,NURSERY ED GRANT 3 AND 4 YR OLDS,EARLY YEARS - 3 AND 4 YEAR OLDS,5902504520,5001000025
11.01.2022,DSG,DOG KENNEL HILL PRIMARY SCHOOL,"7,997.00",NURSERY ED GRANT 3 AND 4 YR OLDS,EARLY YEARS - 3 AND 4 YEAR OLDS,5902504521,5001000025
11.01.2022,DSG,GOODRICH PRIMARY SCHOOL,311.00,NURSERY ED GRANT 3 AND 4 YR OLDS,EARLY YEARS - 3 AND 4 YEAR OLDS,5902504526,5001000028
11.01.2022,DSG,GOODRICH PRIMARY SCHOOL,"19,806.00",NURSERY ED GRANT 3 AND 4 YR OLDS,EARLY YEARS - 3 AND 4 YEAR OLDS,5902504527,5001000028
11.01.2022,DSG,GRANGE PRIMARY SCHOOL,950.00,NURSERY ED GRANT 3 AND 4 YR OLDS,EARLY YEARS - 3 AND 4 YEAR OLDS,5902504530,5001000029
11.01.2022,DSG,GRANGE PRIMARY SCHOOL,"6,189.00",NURSERY ED GRANT 3 AND 4 YR OLDS,EARLY YEARS - 3 AND 4 YEAR OLDS,5902504531,5001000029
11.01.2022,DSG,ENGLISH MARTYRS RC PRIMARY SCHOOL,960.00,NURSERY ED GRANT 3 AND 4 YR OLDS,EARLY YEARS - 3 AND 4 YEAR OLDS,5902504534,5001000030
11.01.2022,DSG,ENGLISH MARTYRS RC PRIMARY SCHOOL,"9,407.00",NURSERY ED GRANT 3 AND 4 YR OLDS,EARLY YEARS - 3 AND 4 YEAR OLDS,5902504535,5001000030
11.01.2022,DSG,PHOENIX PRIMARY SCHOOL,"1,452.00",NURSERY ED GRANT 3 AND 4 YR OLDS,EARLY YEARS - 3 AND 4 YEAR OLDS,5902504540,5001000032
11.01.2022,DSG,PHOENIX PRIMARY SCHOOL,"12,328.00",NURSERY ED GRANT 3 AND 4 YR OLDS,EARLY YEARS - 3 AND 4 YEAR OLDS,5902504541,5001000032
11.01.2022,DSG,FRIARS PRIMARY (FOUNDATION) SCHOOL,718.00,NURSERY ED GRANT 3 AND 4 YR OLDS,EARLY YEARS - 3 AND 4 YEAR OLDS,5902504544,5001000033
11.01.2022,DSG,FRIARS PRIMARY (FOUNDATION) SCHOOL,"3,987.00",NURSERY ED GRANT 3 AND 4 YR OLDS,EARLY YEARS - 3 AND 4 YEAR OLDS,5902504545,5001000033
11.01.2022,DSG,HEBER PRIMARY SCHOOL,"11,143.00",NURSERY ED GRANT 3 AND 4 YR OLDS,EARLY YEARS - 3 AND 4 YEAR OLDS,5902504549,5001000035
11.01.2022,DSG,ILDERTON PRIMARY SCHOOL,919.00,NURSERY ED GRANT 3 AND 4 YR OLDS,EARLY YEARS - 3 AND 4 YEAR OLDS,5902504554,5001000037
11.01.2022,DSG,ILDERTON PRIMARY SCHOOL,"8,098.00",NURSERY ED GRANT 3 AND 4 YR OLDS,EARLY YEARS - 3 AND 4 YEAR OLDS,5902504555,5001000037
11.01.2022,DSG,IVYDALE PRIMARY SCHOOL,563.00,NURSERY ED GRANT 3 AND 4 YR OLDS,EARLY YEARS - 3 AND 4 YEAR OLDS,5902504558,5001000038
11.01.2022,DSG,IVYDALE PRIMARY SCHOOL,"9,895.00",NURSERY ED GRANT 3 AND 4 YR OLDS,EARLY YEARS - 3 AND 4 YEAR OLDS,5902504559,5001000038
11.01.2022,DSG,JOHN RUSKIN PRIMARY SCHOOL,"3,014.00",NURSERY ED GRANT 3 AND 4 YR OLDS,EARLY YEARS - 3 AND 4 YEAR OLDS,5902504562,5001000040
11.01.2022,DSG,JOHN RUSKIN PRIMARY SCHOOL,"21,608.00",NURSERY ED GRANT 3 AND 4 YR OLDS,EARLY YEARS - 3 AND 4 YEAR OLDS,5902504563,5001000040
11.01.2022,DSG,KEYWORTH PRIMARY SCHOOL,"1,483.00",NURSERY ED GRANT 3 AND 4 YR OLDS,EARLY YEARS - 3 AND 4 YEAR OLDS,5902504568,5001000041
11.01.2022,DSG,KEYWORTH PRIMARY SCHOOL,"11,240.00",NURSERY ED GRANT 3 AND 4 YR OLDS,EARLY YEARS - 3 AND 4 YEAR OLDS,5902504569,5001000041
11.01.2022,DSG,MICHAEL FARADAY PRIMARY SCHOOL,"2,865.00",NURSERY ED GRANT 3 AND 4 YR OLDS,EARLY YEARS - 3 AND 4 YEAR OLDS,5902504581,5001000048
11.01.2022,DSG,MICHAEL FARADAY PRIMARY SCHOOL,"14,869.00",NURSERY ED GRANT 3 AND 4 YR OLDS,EARLY YEARS - 3 AND 4 YEAR OLDS,5902504582,5001000048
11.01.2022,DSG,OLIVER GOLDSMITH PRIMARY SCHOOL,813.00,NURSERY ED GRANT 3 AND 4 YR OLDS,EARLY YEARS - 3 AND 4 YEAR OLDS,5902504589,5001000051
11.01.2022,DSG,OLIVER GOLDSMITH PRIMARY SCHOOL,"9,850.00",NURSERY ED GRANT 3 AND 4 YR OLDS,EARLY YEARS - 3 AND 4 YEAR OLDS,5902504590,5001000051
11.01.2022,DSG,PETER HILLS CE SCHOOL,696.00,NURSERY ED GRANT 3 AND 4 YR OLDS,EARLY YEARS - 3 AND 4 YEAR OLDS,5902504593,5001000053
11.01.2022,DSG,PETER HILLS CE SCHOOL,"6,278.00",NURSERY ED GRANT 3 AND 4 YR OLDS,EARLY YEARS - 3 AND 4 YEAR OLDS,5902504594,5001000053
11.01.2022,DSG,PILGRIM'S WAY PRIMARY SCHOOL,"1,626.00",NURSERY ED GRANT 3 AND 4 YR OLDS,EARLY YEARS - 3 AND 4 YEAR OLDS,5902504597,5001000054
11.01.2022,DSG,PILGRIM'S WAY PRIMARY SCHOOL,"8,035.00",NURSERY ED GRANT 3 AND 4 YR OLDS,EARLY YEARS - 3 AND 4 YEAR OLDS,5902504598,5001000054
11.01.2022,DSG,RIVERSIDE PRIMARY SCHOOL,310.00,NURSERY ED GRANT 3 AND 4 YR OLDS,EARLY YEARS - 3 AND 4 YEAR OLDS,5902504601,5001000056
11.01.2022,DSG,RIVERSIDE PRIMARY SCHOOL,"3,768.00",NURSERY ED GRANT 3 AND 4 YR OLDS,EARLY YEARS - 3 AND 4 YEAR OLDS,5902504602,5001000056
11.01.2022,DSG,ROBERT BROWNING PRIMARY SCHOOL,651.00,NURSERY ED GRANT 3 AND 4 YR OLDS,EARLY YEARS - 3 AND 4 YEAR OLDS,5902504605,5001000057
11.01.2022,DSG,ROBERT BROWNING PRIMARY SCHOOL,"5,614.00",NURSERY ED GRANT 3 AND 4 YR OLDS,EARLY YEARS - 3 AND 4 YEAR OLDS,5902504606,5001000057
11.01.2022,DSG,ROTHERHITHE PRIMARY SCHOOL,"1,303.00",NURSERY ED GRANT 3 AND 4 YR OLDS,EARLY YEARS - 3 AND 4 YEAR OLDS,5902504609,5001000058
11.01.2022,DSG,ROTHERHITHE PRIMARY SCHOOL,"9,356.00",NURSERY ED GRANT 3 AND 4 YR OLDS,EARLY YEARS - 3 AND 4 YEAR OLDS,5902504610,5001000058
11.01.2022,DSG,RYE OAK PRIMARY SCHOOL,"1,920.00",NURSERY ED GRANT 3 AND 4 YR OLDS,EARLY YEARS - 3 AND 4 YEAR OLDS,5902504613,5001000059
11.01.2022,DSG,RYE OAK PRIMARY SCHOOL,"21,981.00",NURSERY ED GRANT 3 AND 4 YR OLDS,EARLY YEARS - 3 AND 4 YEAR OLDS,5902504614,5001000059
11.01.2022,DSG,SNOWSFIELDS PRIMARY SCHOOL,325.00,NURSERY ED GRANT 3 AND 4 YR OLDS,EARLY YEARS - 3 AND 4 YEAR OLDS,5902504619,5001000061
11.01.2022,DSG,SNOWSFIELDS PRIMARY SCHOOL,"5,045.00",NURSERY ED GRANT 3 AND 4 YR OLDS,EARLY YEARS - 3 AND 4 YEAR OLDS,5902504620,5001000061
11.01.2022,DSG,SOUTHWARK PARK PRIMARY SCHOOL,"2,114.00",NURSERY ED GRANT 3 AND 4 YR OLDS,EARLY YEARS - 3 AND 4 YEAR OLDS,5902504625,5001000062
11.01.2022,DSG,SOUTHWARK PARK PRIMARY SCHOOL,"15,008.00",NURSERY ED GRANT 3 AND 4 YR OLDS,EARLY YEARS - 3 AND 4 YEAR OLDS,5902504626,5001000062
11.01.2022,DSG,ST ANTHONYS RC SCHOOL,679.00,NURSERY ED GRANT 3 AND 4 YR OLDS,EARLY YEARS - 3 AND 4 YEAR OLDS,5902504629,5001000064
11.01.2022,DSG,ST ANTHONYS RC SCHOOL,"10,814.00",NURSERY ED GRANT 3 AND 4 YR OLDS,EARLY YEARS - 3 AND 4 YEAR OLDS,5902504630,5001000064
11.01.2022,DSG,ST FRANCESCA CABRINI PRIMARY SCHOOL,591.00,NURSERY ED GRANT 3 AND 4 YR OLDS,EARLY YEARS - 3 AND 4 YEAR OLDS,5902504633,5001000065
11.01.2022,DSG,ST FRANCESCA CABRINI PRIMARY SCHOOL,"8,267.00",NURSERY ED GRANT 3 AND 4 YR OLDS,EARLY YEARS - 3 AND 4 YEAR OLDS,5902504634,5001000065
11.01.2022,DSG,ST GEORGES RC SCHOOL,326.00,NURSERY ED GRANT 3 AND 4 YR OLDS,EARLY YEARS - 3 AND 4 YEAR OLDS,5902504641,5001000068
11.01.2022,DSG,ST GEORGES RC SCHOOL,"7,163.00",NURSERY ED GRANT 3 AND 4 YR OLDS,EARLY YEARS - 3 AND 4 YEAR OLDS,5902504642,5001000068
11.01.2022,DSG,ST JAMES CE SCHOOL,"2,691.00",NURSERY ED GRANT 3 AND 4 YR OLDS,EARLY YEARS - 3 AND 4 YEAR OLDS,5902504647,5001000070
11.01.2022,DSG,ST JAMES CE SCHOOL,"23,997.00",NURSERY ED GRANT 3 AND 4 YR OLDS,EARLY YEARS - 3 AND 4 YEAR OLDS,5902504648,5001000070
11.01.2022,DSG,ST JAMES THE GREAT RC SCHOOL,"1,628.00",NURSERY ED GRANT 3 AND 4 YR OLDS,EARLY YEARS - 3 AND 4 YEAR OLDS,5902504651,5001000071
11.01.2022,DSG,ST JAMES THE GREAT RC SCHOOL,"8,535.00",NURSERY ED GRANT 3 AND 4 YR OLDS,EARLY YEARS - 3 AND 4 YEAR OLDS,5902504652,5001000071
11.01.2022,DSG,ST JOHNS RC PRIMARY SCHOOL,504.00,NURSERY ED GRANT 3 AND 4 YR OLDS,EARLY YEARS - 3 AND 4 YEAR OLDS,5902504662,5001000075
11.01.2022,DSG,ST JOHNS RC PRIMARY SCHOOL,"9,527.00",NURSERY ED GRANT 3 AND 4 YR OLDS,EARLY YEARS - 3 AND 4 YEAR OLDS,5902504663,5001000075
11.01.2022,DSG,ST JOSEPHS CATHOLIC SCHOOL,"1,246.00",NURSERY ED GRANT 3 AND 4 YR OLDS,EARLY YEARS - 3 AND 4 YEAR OLDS,5902504666,5001000076
11.01.2022,DSG,ST JOSEPHS CATHOLIC SCHOOL,"8,737.00",NURSERY ED GRANT 3 AND 4 YR OLDS,EARLY YEARS - 3 AND 4 YEAR OLDS,5902504667,5001000076
11.01.2022,DSG,ST JOSEPHS RC PRIMARY SCHOOL,"1,190.00",NURSERY ED GRANT 3 AND 4 YR OLDS,EARLY YEARS - 3 AND 4 YEAR OLDS,5902504670,5001000077
11.01.2022,DSG,ST JOSEPHS RC PRIMARY SCHOOL,"8,756.00",NURSERY ED GRANT 3 AND 4 YR OLDS,EARLY YEARS - 3 AND 4 YEAR OLDS,5902504671,5001000077
11.01.2022,DSG,ST JOSEPHS CATHOLIC PRIMARY SCHOOL,"1,275.00",NURSERY ED GRANT 3 AND 4 YR OLDS,EARLY YEARS - 3 AND 4 YEAR OLDS,5902504674,5001000078
11.01.2022,DSG,ST JOSEPHS CATHOLIC PRIMARY SCHOOL,"9,831.00",NURSERY ED GRANT 3 AND 4 YR OLDS,EARLY YEARS - 3 AND 4 YEAR OLDS,5902504675,5001000078
11.01.2022,DSG,ST PETERS CE SCHOOL,"1,080.00",NURSERY ED GRANT 3 AND 4 YR OLDS,EARLY YEARS - 3 AND 4 YEAR OLDS,5902504680,5001000083
11.01.2022,DSG,ST PETERS CE SCHOOL,"6,094.00",NURSERY ED GRANT 3 AND 4 YR OLDS,EARLY YEARS - 3 AND 4 YEAR OLDS,5902504681,5001000083
11.01.2022,DSG,CATHEDRAL SCHOOL OF ST SAVIOUR & MARY,800.00,NURSERY ED GRANT 3 AND 4 YR OLDS,EARLY YEARS - 3 AND 4 YEAR OLDS,5902504689,5001000088
11.01.2022,DSG,CATHEDRAL SCHOOL OF ST SAVIOUR & MARY,"7,681.00",NURSERY ED GRANT 3 AND 4 YR OLDS,EARLY YEARS - 3 AND 4 YEAR OLDS,5902504690,5001000088
11.01.2022,DSG,TOWER BRIDGE PRIMARY SCHOOL,400.00,NURSERY ED GRANT 3 AND 4 YR OLDS,EARLY YEARS - 3 AND 4 YEAR OLDS,5902504696,5001000095
11.01.2022,DSG,TOWER BRIDGE PRIMARY SCHOOL,"4,893.00",NURSERY ED GRANT 3 AND 4 YR OLDS,EARLY YEARS - 3 AND 4 YEAR OLDS,5902504697,5001000095
11.01.2022,DSG,TOWNSEND PRIMARY SCHOOL,"4,514.00",NURSERY ED GRANT 3 AND 4 YR OLDS,EARLY YEARS - 3 AND 4 YEAR OLDS,5902504700,5001000096
11.01.2022,DSG,VICTORY SCHOOL,"2,314.00",NURSERY ED GRANT 3 AND 4 YR OLDS,EARLY YEARS - 3 AND 4 YEAR OLDS,5902504707,5001000098
11.01.2022,DSG,OLIVER GOLDSMITH PRIMARY SCHOOL,"171,741.00",OLIVER GOLDSMITH PRIMARY SCHOOL,SCHOOLS CAPITATION,5902504588,5001000051
11.01.2022,DSG,PETER HILLS CE SCHOOL,"79,331.00",PETER HILLS CE PRIMARY SCHOOL,SCHOOLS CAPITATION,5902504592,5001000053
11.01.2022,DSG,PHOENIX PRIMARY SCHOOL,"276,439.00",PHOENIX PRIMARY SCHOOL,SCHOOLS CAPITATION,5902504539,5001000032
11.01.2022,DSG,PILGRIM'S WAY PRIMARY SCHOOL,"99,277.00",PILGRIMS WAY PRIMARY SCHOOL,SCHOOLS CAPITATION,5902504596,5001000054
11.01.2022,DSG,RIVERSIDE PRIMARY SCHOOL,"151,301.00",RIVERSIDE PRIMARY SCHOOL,SCHOOLS CAPITATION,5902504600,5001000056
11.01.2022,DSG,ROBERT BROWNING PRIMARY SCHOOL,"102,449.00",ROBERT BROWNING PRIMARY SCHOOL,SCHOOLS CAPITATION,5902504604,5001000057
11.01.2022,DSG,ROTHERHITHE PRIMARY SCHOOL,"174,689.00",ROTHERHITHE PRIMARY SCHOOL,SCHOOLS CAPITATION,5902504608,5001000058
11.01.2022,DSG,RYE OAK PRIMARY SCHOOL,"139,904.00",RYE OAK PRIMARY SCHOOL,SCHOOLS CAPITATION,5902504612,5001000059
11.01.2022,DSG,SOUTHWARK INCLUSIVE LEARNING SERVICE,"83,333.00",SILS,HIGH NEEDS - TOP UP FUNDING,5902504711,5001000105
